Department family,Entity,Date,Expense type,Expense area,Supplier,Supplier type,Description,Transaction number,Amount
Department for Education,DEPARTMENT FOR EDUCATION,01/08/2013,ICT,Chief Information Officer Group,AUTOMATED INTELLIGENCE,Commercial,ICT Software,4000138834,"48,000"
Department for Education,DEPARTMENT FOR EDUCATION,02/08/2013,Professional Services Consultancy and Contingent Labour,Chief Information Officer Group,CAPITA RESOURCING LTD,Commercial,Costs related to temporary workers,4000138983,"3,218"
Department for Education,DEPARTMENT FOR EDUCATION,02/08/2013,Professional Services Consultancy and Contingent Labour,Chief Information Officer Group,CAPITA RESOURCING LTD,Commercial,Costs related to temporary workers,4000138983,"28,101"
Department for Education,DEPARTMENT FOR EDUCATION,06/08/2013,ICT,Chief Information Officer Group,DELL CORPORATION LTD,Commercial,ICT Services,4000139365,"42,234"
Department for Education,DEPARTMENT FOR EDUCATION,07/08/2013,ICT,Chief Information Officer Group,VODAFONE CORPORATE,Commercial,Telecoms Facilities and Services,4000139428,19
Department for Education,DEPARTMENT FOR EDUCATION,07/08/2013,ICT,Chief Information Officer Group,VODAFONE CORPORATE,Commercial,Telecoms Facilities and Services,4000139428,58
Department for Education,DEPARTMENT FOR EDUCATION,07/08/2013,ICT,Chief Information Officer Group,VODAFONE CORPORATE,Commercial,Telecoms Facilities and Services,4000139428,23
Department for Education,DEPARTMENT FOR EDUCATION,07/08/2013,ICT,Chief Information Officer Group,VODAFONE CORPORATE,Commercial,Telecoms Facilities and Services,4000139428,34
Department for Education,DEPARTMENT FOR EDUCATION,07/08/2013,ICT,Chief Information Officer Group,VODAFONE CORPORATE,Commercial,Telecoms Facilities and Services,4000139428,55
Department for Education,DEPARTMENT FOR EDUCATION,07/08/2013,ICT,Chief Information Officer Group,VODAFONE CORPORATE,Commercial,Telecoms Facilities and Services,4000139428,39
Department for Education,DEPARTMENT FOR EDUCATION,07/08/2013,ICT,Chief Information Officer Group,VODAFONE CORPORATE,Commercial,Telecoms Facilities and Services,4000139428,20
Department for Education,DEPARTMENT FOR EDUCATION,07/08/2013,ICT,Chief Information Officer Group,VODAFONE CORPORATE,Commercial,Telecoms Facilities and Services,4000139428,60
Department for Education,DEPARTMENT FOR EDUCATION,07/08/2013,ICT,Chief Information Officer Group,VODAFONE CORPORATE,Commercial,Telecoms Facilities and Services,4000139428,100
Department for Education,DEPARTMENT FOR EDUCATION,07/08/2013,ICT,Chief Information Officer Group,VODAFONE CORPORATE,Commercial,Telecoms Facilities and Services,4000139428,"2,507"
Department for Education,DEPARTMENT FOR EDUCATION,07/08/2013,ICT,Chief Information Officer Group,VODAFONE CORPORATE,Commercial,Telecoms Facilities and Services,4000139428,19
Department for Education,DEPARTMENT FOR EDUCATION,07/08/2013,ICT,Chief Information Officer Group,VODAFONE CORPORATE,Commercial,Telecoms Facilities and Services,4000139428,592
Department for Education,DEPARTMENT FOR EDUCATION,07/08/2013,ICT,Chief Information Officer Group,VODAFONE CORPORATE,Commercial,Telecoms Facilities and Services,4000139428,19
Department for Education,DEPARTMENT FOR EDUCATION,08/08/2013,ICT,Chief Information Officer Group,EDUSERV,Public Sector,ICT Services,4000139630,"90,713"
Department for Education,DEPARTMENT FOR EDUCATION,08/08/2013,ICT,Chief Information Officer Group,EDUSERV,Public Sector,ICT Services,4000139630,"188,621"
Department for Education,DEPARTMENT FOR EDUCATION,09/08/2013,Professional Services Consultancy and Contingent Labour,Chief Information Officer Group,CAPITA RESOURCING LTD,Commercial,Costs related to temporary workers,4000139775,"3,104"
Department for Education,DEPARTMENT FOR EDUCATION,09/08/2013,Professional Services Consultancy and Contingent Labour,Chief Information Officer Group,CAPITA RESOURCING LTD,Commercial,Costs related to temporary workers,4000139775,"30,583"
Department for Education,DEPARTMENT FOR EDUCATION,09/08/2013,ICT,Chief Information Officer Group,SKILLS FUNDING AGENCY,Central Government,ICT Services,4000139843,"622,441"
Department for Education,DEPARTMENT FOR EDUCATION,09/08/2013,ICT,Chief Information Officer Group,SKILLS FUNDING AGENCY,Central Government,ICT Services,4000139843,"117,292"
Department for Education,DEPARTMENT FOR EDUCATION,12/08/2013,Travel,Chief Information Officer Group,REDFERN TRAVEL LTD,Commercial,"Staff business travel including air, coach, ferry, rail and taxi",4000139985,"3,562"
Department for Education,DEPARTMENT FOR EDUCATION,12/08/2013,Travel,Chief Information Officer Group,REDFERN TRAVEL LTD,Commercial,"Staff business travel including air, coach, ferry, rail and taxi",4000139985,"1,448"
Department for Education,DEPARTMENT FOR EDUCATION,12/08/2013,Travel,Chief Information Officer Group,REDFERN TRAVEL LTD,Commercial,"Staff business travel including air, coach, ferry, rail and taxi",4000139985,648
Department for Education,DEPARTMENT FOR EDUCATION,12/08/2013,Travel,Chief Information Officer Group,REDFERN TRAVEL LTD,Commercial,"Staff business travel including air, coach, ferry, rail and taxi",4000139985,"1,598"
Department for Education,DEPARTMENT FOR EDUCATION,12/08/2013,Travel,Chief Information Officer Group,REDFERN TRAVEL LTD,Commercial,"Staff business travel including air, coach, ferry, rail and taxi",4000139985,"4,767"
Department for Education,DEPARTMENT FOR EDUCATION,12/08/2013,Travel,Chief Information Officer Group,REDFERN TRAVEL LTD,Commercial,"Staff business travel including air, coach, ferry, rail and taxi",4000139985,"1,763"
Department for Education,DEPARTMENT FOR EDUCATION,12/08/2013,Travel,Chief Information Officer Group,REDFERN TRAVEL LTD,Commercial,"Staff business travel including air, coach, ferry, rail and taxi",4000139985,132
Department for Education,DEPARTMENT FOR EDUCATION,12/08/2013,Travel,Chief Information Officer Group,REDFERN TRAVEL LTD,Commercial,"Staff business travel including air, coach, ferry, rail and taxi",4000139985,"2,349"
Department for Education,DEPARTMENT FOR EDUCATION,12/08/2013,Travel,Chief Information Officer Group,REDFERN TRAVEL LTD,Commercial,"Staff business travel including air, coach, ferry, rail and taxi",4000139985,"2,551"
Department for Education,DEPARTMENT FOR EDUCATION,12/08/2013,Travel,Chief Information Officer Group,REDFERN TRAVEL LTD,Commercial,"Staff business travel including air, coach, ferry, rail and taxi",4000139985,"1,325"
Department for Education,DEPARTMENT FOR EDUCATION,12/08/2013,Travel,Chief Information Officer Group,REDFERN TRAVEL LTD,Commercial,"Staff business travel including air, coach, ferry, rail and taxi",4000139985,147
Department for Education,DEPARTMENT FOR EDUCATION,12/08/2013,Travel,Chief Information Officer Group,REDFERN TRAVEL LTD,Commercial,"Staff business travel including air, coach, ferry, rail and taxi",4000139985,800
Department for Education,DEPARTMENT FOR EDUCATION,12/08/2013,Travel,Chief Information Officer Group,REDFERN TRAVEL LTD,Commercial,"Staff business travel including air, coach, ferry, rail and taxi",4000139985,"1,857"
Department for Education,DEPARTMENT FOR EDUCATION,12/08/2013,Travel,Chief Information Officer Group,REDFERN TRAVEL LTD,Commercial,"Staff business travel including air, coach, ferry, rail and taxi",4000139985,"1,695"
Department for Education,DEPARTMENT FOR EDUCATION,12/08/2013,Travel,Chief Information Officer Group,REDFERN TRAVEL LTD,Commercial,"Staff business travel including air, coach, ferry, rail and taxi to attend training events",4000139985,1
Department for Education,DEPARTMENT FOR EDUCATION,12/08/2013,Travel,Chief Information Officer Group,REDFERN TRAVEL LTD,Commercial,"Staff business travel including air, coach, ferry, rail and taxi",4000139985,70
Department for Education,DEPARTMENT FOR EDUCATION,12/08/2013,Travel,Chief Information Officer Group,REDFERN TRAVEL LTD,Commercial,"Staff business travel including air, coach, ferry, rail and taxi",4000139985,80
Department for Education,DEPARTMENT FOR EDUCATION,12/08/2013,Travel,Chief Information Officer Group,REDFERN TRAVEL LTD,Commercial,"Staff business travel including air, coach, ferry, rail and taxi",4000139985,180
Department for Education,DEPARTMENT FOR EDUCATION,13/08/2013,ICT,Chief Information Officer Group,BT GLOBAL SERVICES,Commercial,Telecoms Facilities and Services,4000140236,"177,186"
Department for Education,DEPARTMENT FOR EDUCATION,13/08/2013,ICT,Chief Information Officer Group,BT GLOBAL SERVICES,Commercial,Networking systems,4000140236,"51,778"
Department for Education,DEPARTMENT FOR EDUCATION,13/08/2013,ICT,Chief Information Officer Group,BT GLOBAL SERVICES,Commercial,ICT Services,4000140236,"83,392"
Department for Education,DEPARTMENT FOR EDUCATION,13/08/2013,ICT,Chief Information Officer Group,BT GLOBAL SERVICES,Commercial,ICT Services,4000140236,"192,750"
Department for Education,DEPARTMENT FOR EDUCATION,15/08/2013,ICT,Chief Information Officer Group,CAPGEMINI UK PLC,Commercial,ICT Services,4000140413,"1,275"
Department for Education,DEPARTMENT FOR EDUCATION,16/08/2013,Office Solutions,Chief Information Officer Group,XEROX UK LTD,Commercial,Office machines,4000140574,"69,668"
Department for Education,DEPARTMENT FOR EDUCATION,16/08/2013,Professional Services Consultancy and Contingent Labour,Chief Information Officer Group,CAPITA RESOURCING LTD,Commercial,Costs related to temporary workers,4000140613,"1,018"
Department for Education,DEPARTMENT FOR EDUCATION,16/08/2013,Professional Services Consultancy and Contingent Labour,Chief Information Officer Group,CAPITA RESOURCING LTD,Commercial,Costs related to temporary workers,4000140613,"38,882"
Department for Education,DEPARTMENT FOR EDUCATION,16/08/2013,Communications,Chief Information Officer Group,PROLOG,Commercial,Digital media and web production,4000140623,"31,961"
Department for Education,DEPARTMENT FOR EDUCATION,16/08/2013,Communications,Chief Information Officer Group,PROLOG,Commercial,Digital media and web production,4000140623,"34,249"
Department for Education,DEPARTMENT FOR EDUCATION,16/08/2013,Communications,Chief Information Officer Group,PROLOG,Commercial,Digital media and web production,4000140623,"47,535"
Department for Education,DEPARTMENT FOR EDUCATION,16/08/2013,Communications,Chief Information Officer Group,PROLOG,Commercial,Digital media and web production,4000140623,"44,919"
Department for Education,DEPARTMENT FOR EDUCATION,16/08/2013,ICT,Chief Information Officer Group,ATKINS MANTIX LTD,Commercial,Provision of a Technical Support service to the Information Standards Board,4000140640,"35,495"
Department for Education,DEPARTMENT FOR EDUCATION,19/08/2013,ICT,Chief Information Officer Group,SPECIALIST COMPUTER CENTRES PLC,Commercial,ICT Software,4000140731,"37,453"
Department for Education,DEPARTMENT FOR EDUCATION,19/08/2013,ICT,Chief Information Officer Group,CAPGEMINI UK PLC,Commercial,ICT Services,4000140786,"179,620"
Department for Education,DEPARTMENT FOR EDUCATION,22/08/2013,ICT,Chief Information Officer Group,ATKINS MANTIX LTD,Commercial,ICT Services,4000141323,"27,125"
Department for Education,DEPARTMENT FOR EDUCATION,27/08/2013,ICT,Chief Information Officer Group,CAPGEMINI UK PLC,Commercial,ICT Services,4000141573,"11,086"
Department for Education,DEPARTMENT FOR EDUCATION,27/08/2013,ICT,Chief Information Officer Group,CAPGEMINI UK PLC,Commercial,Capital licences and intangible work in progress,4000141573,"144,075"
Department for Education,DEPARTMENT FOR EDUCATION,27/08/2013,ICT,Chief Information Officer Group,CAPGEMINI UK PLC,Commercial,ICT Services,4000141573,"21,063"
Department for Education,DEPARTMENT FOR EDUCATION,28/08/2013,Professional Services Consultancy and Contingent Labour,Chief Information Officer Group,CAPITA RESOURCING LTD,Commercial,Costs related to temporary workers,4000141676,"4,020"
Department for Education,DEPARTMENT FOR EDUCATION,28/08/2013,Professional Services Consultancy and Contingent Labour,Chief Information Officer Group,CAPITA RESOURCING LTD,Commercial,Costs related to temporary workers,4000141676,"32,918"
Department for Education,DEPARTMENT FOR EDUCATION,29/08/2013,ICT,Chief Information Officer Group,REDWEB,Commercial,ICT Services,4000141762,"78,568"
Department for Education,DEPARTMENT FOR EDUCATION,12/08/2013,Grants,Supporting Delivery Group,NORTH MUSIC TRUST,Public Sector,Grants to third sector organisations / not for profit organisations,1001224,"82,264"
Department for Education,DEPARTMENT FOR EDUCATION,20/08/2013,Grants,Children's Services and Departmental Strategy Early Years Extended Schools and Special Needs Group,HOME START UK,VCS,Grants to third sector organisations / not for profit organisations,1001239,"77,822"
Department for Education,DEPARTMENT FOR EDUCATION,05/08/2013,Grants,Families Group,CAFCASS,Central Government,Current grant funding to arms length bodies for DfE's contribution to fund activity,2000814,"10,198,185"
Department for Education,DEPARTMENT FOR EDUCATION,14/08/2013,Grants,Supporting Delivery Group,OFFICE OF THE CHILDRENS COMMISSIONER,Central Government,Current grant funding to arms length bodies for DfE's contribution to fund activity,2000815,"186,383"
Department for Education,DEPARTMENT FOR EDUCATION,29/08/2013,Communications,Communications Group,HOOTSUITE MEDIA INC,Commercial,Digital media and web production,3000187,"28,183"
Department for Education,DEPARTMENT FOR EDUCATION,01/08/2013,Grants,Families Group,CONSORTIUM OF VOLUNTARY ADOPTION AGENCIES UK LTD,VCS,Grants to third sector organisations / not for profit organisations,4000138841,"55,333"
Department for Education,DEPARTMENT FOR EDUCATION,01/08/2013,Grants,Children's Services and Departmental Strategy Early Years Extended Schools and Special Needs Group,4CHILDREN,VCS,Grants to third sector organisations / not for profit organisations,4000138858,"99,345"
Department for Education,DEPARTMENT FOR EDUCATION,01/08/2013,Communications,Communications Group,CABINET OFFICE,Central Government, Marketing services,4000138860,"55,019"
Department for Education,DEPARTMENT FOR EDUCATION,01/08/2013,Grants,Children's Services and Departmental Strategy Safeguarding Group,THE COLLEGE OF SOCIAL WORK,VCS,Grants to third sector organisations / not for profit organisations,4000138876,"50,000"
Department for Education,DEPARTMENT FOR EDUCATION,01/08/2013,Grants,Children's Services and Departmental Strategy Safeguarding Group,BARNARDOS,VCS,Grants to third sector organisations / not for profit organisations,4000138879,"61,600"
Department for Education,DEPARTMENT FOR EDUCATION,02/08/2013,Professional Services Consultancy and Contingent Labour,Communications Group,CAPITA RESOURCING LTD,Commercial,Costs related to temporary workers,4000138983,887
Department for Education,DEPARTMENT FOR EDUCATION,02/08/2013,Professional Services Other,Strategic Analysis and Research and Policy Impact Group,INSTITUTE OF EDUCATION,Public Sector,Research and evaluation activities,4000138997,"73,837"
Department for Education,DEPARTMENT FOR EDUCATION,02/08/2013,Grants,Children's Services and Departmental Strategy Early Years Extended Schools and Special Needs Group,THE ACE CENTRE NORTH,VCS,Grants to third sector organisations / not for profit organisations,4000139011,"42,373"
Department for Education,DEPARTMENT FOR EDUCATION,02/08/2013,Grants,Children's Services and Departmental Strategy Early Years Extended Schools and Special Needs Group,THE FAMILY FUND TRUST,VCS,Grants to third sector organisations / not for profit organisations,4000139012,"2,043,000"
Department for Education,DEPARTMENT FOR EDUCATION,02/08/2013,Programme costs,Families Group,BRITISH ASSOCIATION FOR ADOPTION & FOSTERING,VCS,Funding to deliver policies (excluding consultancy) paid to third parties via a service delivery contract,4000139023,"75,037"
Department for Education,DEPARTMENT FOR EDUCATION,02/08/2013,Professional Services Other,Families Group,THE TAVISTOCK INSTITUTE OF HUMAN RELATIONS,VCS,Research and evaluation activities,4000139037,"41,540"
Department for Education,DEPARTMENT FOR EDUCATION,05/08/2013,Programme costs,Families Group,KINGS COLLEGE LONDON,Public Sector,Funding to deliver policies (excluding consultancy) paid to third parties via a service delivery contract,4000139139,"445,720"
Department for Education,DEPARTMENT FOR EDUCATION,05/08/2013,Programme costs,Children's Services and Departmental Strategy Early Years Extended Schools and Special Needs Group,ACHIEVEMENT FOR ALL 3AS LTD,VCS,Funding to deliver policies (excluding consultancy) paid to third parties via a service delivery contract,4000139166,"325,654"
Department for Education,DEPARTMENT FOR EDUCATION,05/08/2013,Programme costs,Families Group,TAVISTOCK CENTRE FOR COUPLE RELATIONSHIPS,VCS,Funding to deliver policies (excluding consultancy) paid to third parties via a service delivery contract,4000139168,"450,688"
Department for Education,DEPARTMENT FOR EDUCATION,05/08/2013,Programme costs,Families Group,ECORYS UK LTD,Commercial,Funding to deliver policies (excluding consultancy) paid to third parties via a service delivery contract,4000139178,"52,800"
Department for Education,DEPARTMENT FOR EDUCATION,05/08/2013,Programme costs,Children's Services and Departmental Strategy Early Years Extended Schools and Special Needs Group,YOUNG MINDS,VCS,Funding to deliver policies (excluding consultancy) paid to third parties via a service delivery contract,4000139180,"163,063"
Department for Education,DEPARTMENT FOR EDUCATION,05/08/2013,Grants,Children's Services and Departmental Strategy Safeguarding Group,SOCIAL CARE INSTITUTE FOR EXCELLENCE,VCS,Grants to third sector organisations / not for profit organisations,4000139199,"29,727"
Department for Education,DEPARTMENT FOR EDUCATION,05/08/2013,Grants,Children's Services and Departmental Strategy Early Years Extended Schools and Special Needs Group,4CHILDREN,VCS,Grants to third sector organisations / not for profit organisations,4000139219,"97,413"
Department for Education,DEPARTMENT FOR EDUCATION,06/08/2013,Programme costs,Children's Services and Departmental Strategy Early Years Extended Schools and Special Needs Group,COUNCIL FOR DISABLED,VCS,Funding to deliver policies (excluding consultancy) paid to third parties via a service delivery contract,4000139232,"186,874"
Department for Education,DEPARTMENT FOR EDUCATION,06/08/2013,Grants,Families Group,BRITISH ASSOCIATION FOR ADOPTION & FOSTERING,VCS,Grants to third sector organisations / not for profit organisations,4000139234,"30,942"
Department for Education,DEPARTMENT FOR EDUCATION,06/08/2013,Professional Services Other,Strategic Analysis and Research and Policy Impact Group,NATIONAL CENTRE FOR SOCIAL RESEARCH,VCS,Research and evaluation activities,4000139292,"208,000"
Department for Education,DEPARTMENT FOR EDUCATION,06/08/2013,Grants,Children's Services and Departmental Strategy Safeguarding Group,COORDINATED ACTION AGAINST DOMESTIC ABUSE,VCS,Grants to third sector organisations / not for profit organisations,4000139350,"67,447"
Department for Education,DEPARTMENT FOR EDUCATION,06/08/2013,Programme costs,Families Group,CORAM,VCS,Funding to deliver policies (excluding consultancy) paid to third parties via a service delivery contract,4000139368,"28,967"
Department for Education,DEPARTMENT FOR EDUCATION,07/08/2013,Programme costs,Children's Services and Departmental Strategy Early Years Extended Schools and Special Needs Group,4CHILDREN,VCS,Funding to deliver policies (excluding consultancy) paid to third parties via a service delivery contract,4000139417,"53,910"
Department for Education,DEPARTMENT FOR EDUCATION,07/08/2013,ICT,Children's Services and Departmental Strategy Directorate Support,VODAFONE CORPORATE,Commercial,Telecoms Facilities and Services,4000139428,175
Department for Education,DEPARTMENT FOR EDUCATION,07/08/2013,ICT,Families Group,VODAFONE CORPORATE,Commercial,Telecoms Facilities and Services,4000139428,39
Department for Education,DEPARTMENT FOR EDUCATION,07/08/2013,ICT,Families Group,VODAFONE CORPORATE,Commercial,Telecoms Facilities and Services,4000139428,33
Department for Education,DEPARTMENT FOR EDUCATION,07/08/2013,ICT,Families Group,VODAFONE CORPORATE,Commercial,Telecoms Facilities and Services,4000139428,59
Department for Education,DEPARTMENT FOR EDUCATION,07/08/2013,ICT,Families Group,VODAFONE CORPORATE,Commercial,Telecoms Facilities and Services,4000139428,39
Department for Education,DEPARTMENT FOR EDUCATION,07/08/2013,ICT,Families Group,VODAFONE CORPORATE,Commercial,Telecoms Facilities and Services,4000139428,189
Department for Education,DEPARTMENT FOR EDUCATION,07/08/2013,ICT,Families Group,VODAFONE CORPORATE,Commercial,Telecoms Facilities and Services,4000139428,247
Department for Education,DEPARTMENT FOR EDUCATION,07/08/2013,ICT,Children's Services and Departmental Strategy Safeguarding Group,VODAFONE CORPORATE,Commercial,Telecoms Facilities and Services,4000139428,35
Department for Education,DEPARTMENT FOR EDUCATION,07/08/2013,ICT,Children's Services and Departmental Strategy Supporting Delivery Group,VODAFONE CORPORATE,Commercial,Telecoms Facilities and Services,4000139428,26
Department for Education,DEPARTMENT FOR EDUCATION,07/08/2013,ICT,Children's Services and Departmental Strategy Supporting Delivery Group,VODAFONE CORPORATE,Commercial,Telecoms Facilities and Services,4000139428,109
Department for Education,DEPARTMENT FOR EDUCATION,07/08/2013,ICT,Children's Services and Departmental Strategy Supporting Delivery Group,VODAFONE CORPORATE,Commercial,Telecoms Facilities and Services,4000139428,65
Department for Education,DEPARTMENT FOR EDUCATION,07/08/2013,ICT,Children's Services and Departmental Strategy Supporting Delivery Group,VODAFONE CORPORATE,Commercial,Telecoms Facilities and Services,4000139428,39
Department for Education,DEPARTMENT FOR EDUCATION,07/08/2013,ICT,Children's Services and Departmental Strategy Supporting Delivery Group,VODAFONE CORPORATE,Commercial,Telecoms Facilities and Services,4000139428,243
Department for Education,DEPARTMENT FOR EDUCATION,07/08/2013,ICT,Families Group,VODAFONE CORPORATE,Commercial,Telecoms Facilities and Services,4000139428,176
Department for Education,DEPARTMENT FOR EDUCATION,07/08/2013,ICT,Supporting Delivery Group,VODAFONE CORPORATE,Commercial,Telecoms Facilities and Services,4000139428,183
Department for Education,DEPARTMENT FOR EDUCATION,07/08/2013,ICT,Children's Services and Departmental Strategy Safeguarding Group,VODAFONE CORPORATE,Commercial,Telecoms Facilities and Services,4000139428,20
Department for Education,DEPARTMENT FOR EDUCATION,07/08/2013,ICT,Children's Services and Departmental Strategy Safeguarding Group,VODAFONE CORPORATE,Commercial,Telecoms Facilities and Services,4000139428,487
Department for Education,DEPARTMENT FOR EDUCATION,07/08/2013,ICT,Children's Services and Departmental Strategy Safeguarding Group,VODAFONE CORPORATE,Commercial,Telecoms Facilities and Services,4000139428,26
Department for Education,DEPARTMENT FOR EDUCATION,07/08/2013,ICT,Children's Services and Departmental Strategy Safeguarding Group,VODAFONE CORPORATE,Commercial,Telecoms Facilities and Services,4000139428,65
Department for Education,DEPARTMENT FOR EDUCATION,07/08/2013,ICT,Children's Services and Departmental Strategy Early Years Extended Schools and Special Needs Group,VODAFONE CORPORATE,Commercial,Telecoms Facilities and Services,4000139428,158
Department for Education,DEPARTMENT FOR EDUCATION,07/08/2013,ICT,Children's Services and Departmental Strategy Early Years Extended Schools and Special Needs Group,VODAFONE CORPORATE,Commercial,Telecoms Facilities and Services,4000139428,116
Department for Education,DEPARTMENT FOR EDUCATION,07/08/2013,ICT,Children's Services and Departmental Strategy Early Years Extended Schools and Special Needs Group,VODAFONE CORPORATE,Commercial,Telecoms Facilities and Services,4000139428,93
Department for Education,DEPARTMENT FOR EDUCATION,07/08/2013,ICT,Children's Services and Departmental Strategy Early Years Extended Schools and Special Needs Group,VODAFONE CORPORATE,Commercial,Telecoms Facilities and Services,4000139428,117
Department for Education,DEPARTMENT FOR EDUCATION,07/08/2013,ICT,Children's Services and Departmental Strategy Early Years Extended Schools and Special Needs Group,VODAFONE CORPORATE,Commercial,Telecoms Facilities and Services,4000139428,39
Department for Education,DEPARTMENT FOR EDUCATION,07/08/2013,ICT,Families Group,VODAFONE CORPORATE,Commercial,Telecoms Facilities and Services,4000139428,77
Department for Education,DEPARTMENT FOR EDUCATION,07/08/2013,ICT,Strategic Analysis and Research and Policy Impact Group,VODAFONE CORPORATE,Commercial,Telecoms Facilities and Services,4000139428,153
Department for Education,DEPARTMENT FOR EDUCATION,07/08/2013,ICT,Strategic Analysis and Research and Policy Impact Group,VODAFONE CORPORATE,Commercial,Telecoms Facilities and Services,4000139428,20
Department for Education,DEPARTMENT FOR EDUCATION,07/08/2013,ICT,Strategic Analysis and Research and Policy Impact Group,VODAFONE CORPORATE,Commercial,Telecoms Facilities and Services,4000139428,200
Department for Education,DEPARTMENT FOR EDUCATION,07/08/2013,ICT,Strategy and Performance Group,VODAFONE CORPORATE,Commercial,Telecoms Facilities and Services,4000139428,207
Department for Education,DEPARTMENT FOR EDUCATION,07/08/2013,ICT,Strategy and Performance Group,VODAFONE CORPORATE,Commercial,Telecoms Facilities and Services,4000139428,287
Department for Education,DEPARTMENT FOR EDUCATION,07/08/2013,ICT,People and Change,VODAFONE CORPORATE,Commercial,Telecoms Facilities and Services,4000139428,20
Department for Education,DEPARTMENT FOR EDUCATION,07/08/2013,ICT,People and Change,VODAFONE CORPORATE,Commercial,Telecoms Facilities and Services,4000139428,864
Department for Education,DEPARTMENT FOR EDUCATION,07/08/2013,ICT,People and Change,VODAFONE CORPORATE,Commercial,Telecoms Facilities and Services,4000139428,19
Department for Education,DEPARTMENT FOR EDUCATION,07/08/2013,ICT,People and Change,VODAFONE CORPORATE,Commercial,Telecoms Facilities and Services,4000139428,15
Department for Education,DEPARTMENT FOR EDUCATION,07/08/2013,ICT,School Standards Group,VODAFONE CORPORATE,Commercial,Telecoms Facilities and Services,4000139428,281
Department for Education,DEPARTMENT FOR EDUCATION,07/08/2013,ICT,Communications Group,VODAFONE CORPORATE,Commercial,Telecoms Facilities and Services,4000139428,301
Department for Education,DEPARTMENT FOR EDUCATION,07/08/2013,ICT,Communications Group,VODAFONE CORPORATE,Commercial,Telecoms Facilities and Services,4000139428,199
Department for Education,DEPARTMENT FOR EDUCATION,07/08/2013,ICT,Communications Group,VODAFONE CORPORATE,Commercial,Telecoms Facilities and Services,4000139428,430
Department for Education,DEPARTMENT FOR EDUCATION,07/08/2013,ICT,Communications Group,VODAFONE CORPORATE,Commercial,Telecoms Facilities and Services,4000139428,19
Department for Education,DEPARTMENT FOR EDUCATION,07/08/2013,Programme costs,Children's Services and Departmental Strategy Early Years Extended Schools and Special Needs Group,NDTI,VCS,Funding to deliver policies (excluding consultancy) paid to third parties via a service delivery contract,4000139512,"58,033"
Department for Education,DEPARTMENT FOR EDUCATION,08/08/2013,Programme costs,Families Group,MARRIAGE CARE,VCS,Funding to deliver policies (excluding consultancy) paid to third parties via a service delivery contract,4000139521,"294,660"
Department for Education,DEPARTMENT FOR EDUCATION,08/08/2013,Grants,Families Group,BOOK TRUST,VCS,Grants to third sector organisations / not for profit organisations,4000139530,"369,548"
Department for Education,DEPARTMENT FOR EDUCATION,08/08/2013,Grants,Children's Services and Departmental Strategy Early Years Extended Schools and Special Needs Group,NATIONAL CHILDRENS BUREAU,VCS,Grants to third sector organisations / not for profit organisations,4000139569,"89,687"
Department for Education,DEPARTMENT FOR EDUCATION,09/08/2013,Professional Services Consultancy and Contingent Labour,Communications Group,CAPITA RESOURCING LTD,Commercial,Costs related to temporary workers,4000139775,"1,109"
Department for Education,DEPARTMENT FOR EDUCATION,09/08/2013,Operational Goods,Children's Services and Departmental Strategy Safeguarding Group,THE STATIONERY OFFICE LTD,Commercial,Learning and Development Materials,4000139835,167
Department for Education,DEPARTMENT FOR EDUCATION,09/08/2013,Professional Services Other,Children's Services and Departmental Strategy Early Years Extended Schools and Special Needs Group,IPSOS MORI,Commercial,Research and evaluation activities,4000139849,"72,550"
Department for Education,DEPARTMENT FOR EDUCATION,12/08/2013,Programme costs,Families Group,ONE PLUS ONE,VCS,Funding to deliver policies (excluding consultancy) paid to third parties via a service delivery contract,4000139892,"86,531"
Department for Education,DEPARTMENT FOR EDUCATION,12/08/2013,Grants,Children's Services and Departmental Strategy Supporting Delivery Group,VIRTUAL STAFF COLLEGE,Commercial,Grants to third sector organisations / not for profit organisations,4000139913,"281,780"
Department for Education,DEPARTMENT FOR EDUCATION,12/08/2013,Grants,Children's Services and Departmental Strategy Safeguarding Group,NATIONAL CHILDRENS BUREAU,VCS,Grants to third sector organisations / not for profit organisations,4000139966,"182,119"
Department for Education,DEPARTMENT FOR EDUCATION,12/08/2013,Grants,Children's Services and Departmental Strategy Early Years Extended Schools and Special Needs Group,OXFORD PARENT INFANT PROJECT,VCS,Grants to third sector organisations / not for profit organisations,4000139983,"26,088"
Department for Education,DEPARTMENT FOR EDUCATION,12/08/2013,Travel,Children's Services and Departmental Strategy Directorate Support,REDFERN TRAVEL LTD,Commercial,"Staff business travel including air, coach, ferry, rail and taxi",4000139985,584
Department for Education,DEPARTMENT FOR EDUCATION,12/08/2013,Travel,Children's Services and Departmental Strategy Directorate Support,REDFERN TRAVEL LTD,Commercial,"Staff business travel including air, coach, ferry, rail and taxi to attend training events",4000139985,2
Department for Education,DEPARTMENT FOR EDUCATION,12/08/2013,Travel,Children's Services and Departmental Strategy Directorate Support,REDFERN TRAVEL LTD,Commercial,"Staff business travel including air, coach, ferry, rail and taxi",4000139985,150
Department for Education,DEPARTMENT FOR EDUCATION,12/08/2013,Travel,Families Group,REDFERN TRAVEL LTD,Commercial,"Staff business travel including air, coach, ferry, rail and taxi",4000139985,444
Department for Education,DEPARTMENT FOR EDUCATION,12/08/2013,Travel,Families Group,REDFERN TRAVEL LTD,Commercial,"Staff business travel including air, coach, ferry, rail and taxi",4000139985,879
Department for Education,DEPARTMENT FOR EDUCATION,12/08/2013,Travel,Families Group,REDFERN TRAVEL LTD,Commercial,"Staff business travel including air, coach, ferry, rail and taxi",4000139985,391
Department for Education,DEPARTMENT FOR EDUCATION,12/08/2013,Travel,Families Group,REDFERN TRAVEL LTD,Commercial,"Staff business travel including air, coach, ferry, rail and taxi",4000139985,"1,049"
Department for Education,DEPARTMENT FOR EDUCATION,12/08/2013,Travel,Families Group,REDFERN TRAVEL LTD,Commercial,"Staff business travel including air, coach, ferry, rail and taxi",4000139985,"3,623"
Department for Education,DEPARTMENT FOR EDUCATION,12/08/2013,Travel,Children's Services and Departmental Strategy Supporting Delivery Group,REDFERN TRAVEL LTD,Commercial,"Staff business travel including air, coach, ferry, rail and taxi",4000139985,"1,043"
Department for Education,DEPARTMENT FOR EDUCATION,12/08/2013,Travel,Children's Services and Departmental Strategy Supporting Delivery Group,REDFERN TRAVEL LTD,Commercial,"Staff business travel including air, coach, ferry, rail and taxi",4000139985,"4,099"
Department for Education,DEPARTMENT FOR EDUCATION,12/08/2013,Travel,Children's Services and Departmental Strategy Supporting Delivery Group,REDFERN TRAVEL LTD,Commercial,"Staff business travel including air, coach, ferry, rail and taxi",4000139985,"1,333"
Department for Education,DEPARTMENT FOR EDUCATION,12/08/2013,Travel,Families Group,REDFERN TRAVEL LTD,Commercial,"Staff business travel including air, coach, ferry, rail and taxi",4000139985,"1,605"
Department for Education,DEPARTMENT FOR EDUCATION,12/08/2013,Travel,Supporting Delivery Group,REDFERN TRAVEL LTD,Commercial,"Staff business travel including air, coach, ferry, rail and taxi",4000139985,561
Department for Education,DEPARTMENT FOR EDUCATION,12/08/2013,Travel,Children's Services and Departmental Strategy Safeguarding Group,REDFERN TRAVEL LTD,Commercial,"Staff business travel including air, coach, ferry, rail and taxi",4000139985,"11,761"
Department for Education,DEPARTMENT FOR EDUCATION,12/08/2013,Travel,Children's Services and Departmental Strategy Early Years Extended Schools and Special Needs Group,REDFERN TRAVEL LTD,Commercial,"Staff business travel including air, coach, ferry, rail and taxi",4000139985,"1,788"
Department for Education,DEPARTMENT FOR EDUCATION,12/08/2013,Travel,Children's Services and Departmental Strategy Early Years Extended Schools and Special Needs Group,REDFERN TRAVEL LTD,Commercial,"Staff business travel including air, coach, ferry, rail and taxi",4000139985,216
Department for Education,DEPARTMENT FOR EDUCATION,12/08/2013,Travel,Children's Services and Departmental Strategy Early Years Extended Schools and Special Needs Group,REDFERN TRAVEL LTD,Commercial,"Staff business travel including air, coach, ferry, rail and taxi",4000139985,"1,369"
Department for Education,DEPARTMENT FOR EDUCATION,12/08/2013,Travel,Children's Services and Departmental Strategy Early Years Extended Schools and Special Needs Group,REDFERN TRAVEL LTD,Commercial,"Staff business travel including air, coach, ferry, rail and taxi",4000139985,"1,929"
Department for Education,DEPARTMENT FOR EDUCATION,12/08/2013,Travel,Children's Services and Departmental Strategy Early Years Extended Schools and Special Needs Group,REDFERN TRAVEL LTD,Commercial,"Staff business travel including air, coach, ferry, rail and taxi",4000139985,957
Department for Education,DEPARTMENT FOR EDUCATION,12/08/2013,Travel,Families Group,REDFERN TRAVEL LTD,Commercial,"Staff business travel including air, coach, ferry, rail and taxi",4000139985,197
Department for Education,DEPARTMENT FOR EDUCATION,12/08/2013,Travel,Families Group,REDFERN TRAVEL LTD,Commercial,"Staff business travel including air, coach, ferry, rail and taxi",4000139985,164
Department for Education,DEPARTMENT FOR EDUCATION,12/08/2013,Travel,Strategic Analysis and Research and Policy Impact Group,REDFERN TRAVEL LTD,Commercial,"Staff business travel including air, coach, ferry, rail and taxi",4000139985,119
Department for Education,DEPARTMENT FOR EDUCATION,12/08/2013,Travel,Strategic Analysis and Research and Policy Impact Group,REDFERN TRAVEL LTD,Commercial,"Staff business travel including air, coach, ferry, rail and taxi",4000139985,"2,410"
Department for Education,DEPARTMENT FOR EDUCATION,12/08/2013,Travel,Strategy and Performance Group,REDFERN TRAVEL LTD,Commercial,"Staff business travel including air, coach, ferry, rail and taxi",4000139985,"1,126"
Department for Education,DEPARTMENT FOR EDUCATION,12/08/2013,Travel,Strategy and Performance Group,REDFERN TRAVEL LTD,Commercial,"Staff business travel including air, coach, ferry, rail and taxi",4000139985,226
Department for Education,DEPARTMENT FOR EDUCATION,12/08/2013,Travel,People and Change,REDFERN TRAVEL LTD,Commercial,"Staff business travel including air, coach, ferry, rail and taxi",4000139985,108
Department for Education,DEPARTMENT FOR EDUCATION,12/08/2013,Travel,People and Change,REDFERN TRAVEL LTD,Commercial,"Staff business travel including air, coach, ferry, rail and taxi",4000139985,"19,123"
Department for Education,DEPARTMENT FOR EDUCATION,12/08/2013,Travel,People and Change,REDFERN TRAVEL LTD,Commercial,"Staff business travel including air, coach, ferry, rail and taxi",4000139985,149
Department for Education,DEPARTMENT FOR EDUCATION,12/08/2013,Travel,School Standards Group,REDFERN TRAVEL LTD,Commercial,"Staff business travel including air, coach, ferry, rail and taxi",4000139985,"2,094"
Department for Education,DEPARTMENT FOR EDUCATION,12/08/2013,Travel,School Standards Group,REDFERN TRAVEL LTD,Commercial,Staff travel expenses for travel overseas on official duty,4000139985,2
Department for Education,DEPARTMENT FOR EDUCATION,12/08/2013,Travel,Communications Group,REDFERN TRAVEL LTD,Commercial,"Staff business travel including air, coach, ferry, rail and taxi",4000139985,96
Department for Education,DEPARTMENT FOR EDUCATION,12/08/2013,Travel,Communications Group,REDFERN TRAVEL LTD,Commercial,"Staff business travel including air, coach, ferry, rail and taxi",4000139985,"3,376"
Department for Education,DEPARTMENT FOR EDUCATION,12/08/2013,Travel,Communications Group,REDFERN TRAVEL LTD,Commercial,"Staff business travel including air, coach, ferry, rail and taxi",4000139985,"6,643"
Department for Education,DEPARTMENT FOR EDUCATION,12/08/2013,Travel,Communications Group,REDFERN TRAVEL LTD,Commercial,"Staff business travel including air, coach, ferry, rail and taxi",4000139985,841
Department for Education,DEPARTMENT FOR EDUCATION,12/08/2013,Grants,Children's Services and Departmental Strategy Early Years Extended Schools and Special Needs Group,PRE SCHOOL LEARNING ALLIANCE,VCS,Grants to third sector organisations / not for profit organisations,4000140034,"137,818"
Department for Education,DEPARTMENT FOR EDUCATION,12/08/2013,Programme costs,Children's Services and Departmental Strategy Early Years Extended Schools and Special Needs Group,NATIONAL AUTISTIC SOCIETY,VCS,Funding to deliver policies (excluding consultancy) paid to third parties via a service delivery contract,4000140043,"68,098"
Department for Education,DEPARTMENT FOR EDUCATION,14/08/2013,Grants,Children's Services and Departmental Strategy Early Years Extended Schools and Special Needs Group,BRITISH DYSLEXIA ASSOCIATION,VCS,Grants to third sector organisations / not for profit organisations,4000140341,"25,141"
Department for Education,DEPARTMENT FOR EDUCATION,15/08/2013,Programme costs,Children's Services and Departmental Strategy Early Years Extended Schools and Special Needs Group,BRITISH DYSLEXIA ASSOCIATION,VCS,Funding to deliver policies (excluding consultancy) paid to third parties via a service delivery contract,4000140355,"41,699"
Department for Education,DEPARTMENT FOR EDUCATION,15/08/2013,Grants,Families Group,BRITISH ASSOCIATION FOR ADOPTION & FOSTERING,VCS,Grants to third sector organisations / not for profit organisations,4000140361,"61,526"
Department for Education,DEPARTMENT FOR EDUCATION,15/08/2013,Grants,Children's Services and Departmental Strategy Early Years Extended Schools and Special Needs Group,PEN GREEN RESEARCH,Commercial,Grants to third sector organisations / not for profit organisations,4000140362,"145,127"
Department for Education,DEPARTMENT FOR EDUCATION,15/08/2013,Programme costs,Children's Services and Departmental Strategy Early Years Extended Schools and Special Needs Group,NATIONAL CHILDRENS BUREAU,VCS,Funding to deliver policies (excluding consultancy) paid to third parties via a service delivery contract,4000140386,"788,547"
Department for Education,DEPARTMENT FOR EDUCATION,15/08/2013,Professional Services Other,Children's Services and Departmental Strategy Early Years Extended Schools and Special Needs Group,MOTT MACDONALD LTD,Commercial,"Fees / expenses of professionals from the private sector, for example to implement advice or changes",4000140433,"47,305"
Department for Education,DEPARTMENT FOR EDUCATION,16/08/2013,Personnel Related,Families Group,THE SHARE FOUNDATION 3RD PARTY TRUST,Public Sector,Other relocation expenses for staff on permanent transfer ,4000140538,"26,800"
Department for Education,DEPARTMENT FOR EDUCATION,16/08/2013,Grants,Families Group,THE SHARE FOUNDATION 3RD PARTY TRUST,Public Sector,Grants to third sector organisations / not for profit organisations,4000140538,"67,000"
Department for Education,DEPARTMENT FOR EDUCATION,16/08/2013,Professional Services Other,Children's Services and Departmental Strategy Early Years Extended Schools and Special Needs Group,SQW LTD,Commercial,Research and evaluation activities,4000140564,"40,704"
Department for Education,DEPARTMENT FOR EDUCATION,16/08/2013,Office Solutions,Communications Group,PROLOG,Commercial,Office Supplies,4000140623,292
Department for Education,DEPARTMENT FOR EDUCATION,16/08/2013,Programme costs,Families Group,ONE PLUS ONE,VCS,Funding to deliver policies (excluding consultancy) paid to third parties via a service delivery contract,4000140641,"31,682"
Department for Education,DEPARTMENT FOR EDUCATION,19/08/2013,Programme costs,Families Group,ONE PLUS ONE,VCS,Funding to deliver policies (excluding consultancy) paid to third parties via a service delivery contract,4000140729,"106,614"
Department for Education,DEPARTMENT FOR EDUCATION,19/08/2013,Programme costs,Children's Services and Departmental Strategy Early Years Extended Schools and Special Needs Group,YOUNG MINDS,VCS,Funding to deliver policies (excluding consultancy) paid to third parties via a service delivery contract,4000140736,"122,357"
Department for Education,DEPARTMENT FOR EDUCATION,19/08/2013,Programme costs,Families Group,YOUNG MINDS,VCS,Funding to deliver policies (excluding consultancy) paid to third parties via a service delivery contract,4000140736,"25,910"
Department for Education,DEPARTMENT FOR EDUCATION,19/08/2013,Grants,Children's Services and Departmental Strategy Early Years Extended Schools and Special Needs Group,NATIONAL DAY NURSERIES ASSOCIATION,VCS,Grants to third sector organisations / not for profit organisations,4000140755,"65,939"
Department for Education,DEPARTMENT FOR EDUCATION,19/08/2013,Grants,Supporting Delivery Group,BRITISH YOUTH COUNCIL,VCS,Grants to third sector organisations / not for profit organisations,4000140829,"36,699"
Department for Education,DEPARTMENT FOR EDUCATION,20/08/2013,Programme costs,Families Group,UNIVERSITY OF ESSEX,Public Sector,Funding to deliver policies (excluding consultancy) paid to third parties via a service delivery contract,4000140891,"30,950"
Department for Education,DEPARTMENT FOR EDUCATION,20/08/2013,Professional Services Other,Children's Services and Departmental Strategy Early Years Extended Schools and Special Needs Group,NATIONAL CENTRE FOR SOCIAL RESEARCH,VCS,Research and evaluation activities,4000140893,"125,000"
Department for Education,DEPARTMENT FOR EDUCATION,20/08/2013,Programme costs,Families Group,RELATE,VCS,Funding to deliver policies (excluding consultancy) paid to third parties via a service delivery contract,4000140914,"27,875"
Department for Education,DEPARTMENT FOR EDUCATION,20/08/2013,Programme costs,Families Group,RELATE,VCS,Funding to deliver policies (excluding consultancy) paid to third parties via a service delivery contract,4000140914,"164,168"
Department for Education,DEPARTMENT FOR EDUCATION,20/08/2013,Travel,People and Change,CIVIL SERVICE LEARNING,Public Sector,"Staff business travel including air, coach, ferry, rail and taxi to attend training events",4000140926,"2,857"
Department for Education,DEPARTMENT FOR EDUCATION,20/08/2013,Learning and Development,People and Change,CIVIL SERVICE LEARNING,Public Sector,Staff training and development including materials and courses,4000140926,"5,128"
Department for Education,DEPARTMENT FOR EDUCATION,20/08/2013,Travel,People and Change,CIVIL SERVICE LEARNING,Public Sector,"Staff business travel including air, coach, ferry, rail and taxi to attend training events",4000140926,"7,496"
Department for Education,DEPARTMENT FOR EDUCATION,20/08/2013,Learning and Development,People and Change,CIVIL SERVICE LEARNING,Public Sector,Staff training and development including materials and courses,4000140926,"9,723"
Department for Education,DEPARTMENT FOR EDUCATION,20/08/2013,Professional Services Other,Strategic Analysis and Research and Policy Impact Group,THE UNIVERSITY OF YORK,Public Sector,Research and evaluation activities,4000140976,"30,000"
Department for Education,DEPARTMENT FOR EDUCATION,20/08/2013,Programme costs,Children's Services and Departmental Strategy Safeguarding Group,PENNA PLC,Commercial,Funding to deliver policies (excluding consultancy) paid to third parties via a service delivery contract,4000141000,"59,020"
Department for Education,DEPARTMENT FOR EDUCATION,21/08/2013,Grants,Children's Services and Departmental Strategy Safeguarding Group,BEATBULLYING,VCS,Grants to third sector organisations / not for profit organisations,4000141039,"64,568"
Department for Education,DEPARTMENT FOR EDUCATION,21/08/2013,Grants,Children's Services and Departmental Strategy Early Years Extended Schools and Special Needs Group,FATHERHOOD INSTITUTE,VCS,Grants to third sector organisations / not for profit organisations,4000141046,"33,473"
Department for Education,DEPARTMENT FOR EDUCATION,21/08/2013,Grants,Children's Services and Departmental Strategy Safeguarding Group,THE ASSOCIATION OF INDEPENDENT LSCB CHAIRS,Public Sector,Grants to third sector organisations / not for profit organisations,4000141054,"45,000"
Department for Education,DEPARTMENT FOR EDUCATION,21/08/2013,Grants,Children's Services and Departmental Strategy Safeguarding Group,ARK UK PROGRAMMES,Public Sector,Grants to third sector organisations / not for profit organisations,4000141180,"64,668"
Department for Education,DEPARTMENT FOR EDUCATION,21/08/2013,Grants,Families Group,CONSORTIUM OF VOLUNTARY ADOPTION AGENCIES UK LTD,VCS,Grants to third sector organisations / not for profit organisations,4000141230,"58,333"
Department for Education,DEPARTMENT FOR EDUCATION,22/08/2013,Grants,Children's Services and Departmental Strategy Supporting Delivery Group,THE CHILDRENS PARTNERSHIP,VCS,Grants to third sector organisations / not for profit organisations,4000141290,"150,000"
Department for Education,DEPARTMENT FOR EDUCATION,22/08/2013,Professional Services Other,People and Change,CABINET OFFICE,Central Government,"Fees / expenses of professionals from the private sector, for example to implement advice or changes",4000141333,"154,558"
Department for Education,DEPARTMENT FOR EDUCATION,22/08/2013,Programme costs,Families Group,BARNARDOS,VCS,Funding to deliver policies (excluding consultancy) paid to third parties via a service delivery contract,4000141361,"87,736"
Department for Education,DEPARTMENT FOR EDUCATION,23/08/2013,Grants,Families Group,THE SHARE FOUNDATION 3RD PARTY TRUST,Public Sector,Grants to third sector organisations / not for profit organisations,4000141442,"68,000"
Department for Education,DEPARTMENT FOR EDUCATION,27/08/2013,Programme costs,Children's Services and Departmental Strategy Early Years Extended Schools and Special Needs Group,EC HARRIS LLP,Commercial,Funding to deliver policies (excluding consultancy) paid to third parties via a service delivery contract,4000141538,"4,980"
Department for Education,DEPARTMENT FOR EDUCATION,27/08/2013,Programme costs,Children's Services and Departmental Strategy Early Years Extended Schools and Special Needs Group,4 CHILDREN EARLY INTERVENTION,VCS,Funding to deliver policies (excluding consultancy) paid to third parties via a service delivery contract,4000141609,"103,110"
Department for Education,DEPARTMENT FOR EDUCATION,27/08/2013,Programme costs,Families Group,FAMILY RIGHTS GROUP LTD,VCS,Funding to deliver policies (excluding consultancy) paid to third parties via a service delivery contract,4000141660,"29,452"
Department for Education,DEPARTMENT FOR EDUCATION,28/08/2013,Programme costs,Families Group,ONE PLUS ONE,VCS,Funding to deliver policies (excluding consultancy) paid to third parties via a service delivery contract,4000141724,"31,688"
Department for Education,DEPARTMENT FOR EDUCATION,29/08/2013,Grants,Families Group,LONDON BOROUGH OF HARINGEY,Public Sector,Grants to local authorities outside AEF/AEG (aggregate external funding/aggregate exchequer grant),4000141753,"212,652"
Department for Education,DEPARTMENT FOR EDUCATION,29/08/2013,Grants,Families Group,LONDON BOROUGH OF ENFIELD COUNCIL,Public Sector,Grants to local authorities outside AEF/AEG (aggregate external funding/aggregate exchequer grant),4000141754,"225,543"
Department for Education,DEPARTMENT FOR EDUCATION,29/08/2013,Grants,Families Group,LONDON BOROUGH OF EALING COUNCIL,Public Sector,Grants to local authorities outside AEF/AEG (aggregate external funding/aggregate exchequer grant),4000141755,"257,628"
Department for Education,DEPARTMENT FOR EDUCATION,29/08/2013,Grants,Families Group,LONDON BOROUGH OF CROYDON COUNCIL,Public Sector,Grants to local authorities outside AEF/AEG (aggregate external funding/aggregate exchequer grant),4000141756,"265,121"
Department for Education,DEPARTMENT FOR EDUCATION,29/08/2013,Grants,Families Group,WOKINGHAM BOROUGH COUNCIL,Public Sector,Grants to local authorities outside AEF/AEG (aggregate external funding/aggregate exchequer grant),4000141757,"72,915"
Department for Education,DEPARTMENT FOR EDUCATION,29/08/2013,Grants,Families Group,SLOUGH BOROUGH COUNCIL,Public Sector,Grants to local authorities outside AEF/AEG (aggregate external funding/aggregate exchequer grant),4000141758,"147,527"
Department for Education,DEPARTMENT FOR EDUCATION,29/08/2013,Grants,Families Group,READING BOROUGH COUNCIL,Public Sector,Grants to local authorities outside AEF/AEG (aggregate external funding/aggregate exchequer grant),4000141759,"173,333"
Department for Education,DEPARTMENT FOR EDUCATION,29/08/2013,Grants,Families Group,WEST BERKSHIRE COUNCIL,Public Sector,Grants to local authorities outside AEF/AEG (aggregate external funding/aggregate exchequer grant),4000141760,"103,116"
Department for Education,DEPARTMENT FOR EDUCATION,29/08/2013,Grants,Children's Services and Departmental Strategy Early Years Extended Schools and Special Needs Group,LONDON BOROUGH OF BROMLEY COUNCIL,Public Sector,Grants to local authorities within AEF/AEG (aggregate external funding/aggregate exchequer grant),4000141767,"48,650"
Department for Education,DEPARTMENT FOR EDUCATION,29/08/2013,Grants,Families Group,LONDON BOROUGH OF BROMLEY COUNCIL,Public Sector,Grants to local authorities outside AEF/AEG (aggregate external funding/aggregate exchequer grant),4000141767,"174,398"
Department for Education,DEPARTMENT FOR EDUCATION,29/08/2013,Grants,Families Group,LONDON BOROUGH OF BRENT,Public Sector,Grants to local authorities outside AEF/AEG (aggregate external funding/aggregate exchequer grant),4000141768,"235,121"
Department for Education,DEPARTMENT FOR EDUCATION,29/08/2013,Grants,Children's Services and Departmental Strategy Early Years Extended Schools and Special Needs Group,LONDON BOROUGH OF BEXLEY COUNCIL,Public Sector,Grants to local authorities within AEF/AEG (aggregate external funding/aggregate exchequer grant),4000141769,"37,500"
Department for Education,DEPARTMENT FOR EDUCATION,29/08/2013,Grants,Families Group,LONDON BOROUGH OF BEXLEY COUNCIL,Public Sector,Grants to local authorities outside AEF/AEG (aggregate external funding/aggregate exchequer grant),4000141769,"165,100"
Department for Education,DEPARTMENT FOR EDUCATION,29/08/2013,Grants,Families Group,LONDON BOROUGH OF BARNET COUNCIL,Public Sector,Grants to local authorities outside AEF/AEG (aggregate external funding/aggregate exchequer grant),4000141770,"248,331"
Department for Education,DEPARTMENT FOR EDUCATION,29/08/2013,Grants,Families Group,THE ROYAL BOROUGH OF WINDSOR & MAIDENHEAD,Public Sector,Grants to local authorities outside AEF/AEG (aggregate external funding/aggregate exchequer grant),4000141771,"85,810"
Department for Education,DEPARTMENT FOR EDUCATION,29/08/2013,Grants,Families Group,BRACKNELL FOREST BOROUGH COUNCIL,Public Sector,Grants to local authorities outside AEF/AEG (aggregate external funding/aggregate exchequer grant),4000141772,"75,986"
Department for Education,DEPARTMENT FOR EDUCATION,29/08/2013,Grants,Families Group,SWINDON BOROUGH COUNCIL,Public Sector,Grants to local authorities outside AEF/AEG (aggregate external funding/aggregate exchequer grant),4000141773,"135,668"
Department for Education,DEPARTMENT FOR EDUCATION,29/08/2013,Grants,Children's Services and Departmental Strategy Early Years Extended Schools and Special Needs Group,WILTSHIRE COUNCIL,Public Sector,Grants to local authorities within AEF/AEG (aggregate external funding/aggregate exchequer grant),4000141774,"53,238"
Department for Education,DEPARTMENT FOR EDUCATION,29/08/2013,Grants,Families Group,WILTSHIRE COUNCIL,Public Sector,Grants to local authorities outside AEF/AEG (aggregate external funding/aggregate exchequer grant),4000141774,"267,675"
Department for Education,DEPARTMENT FOR EDUCATION,29/08/2013,Grants,Families Group,LONDON BOROUGH OF BARKING & DAGENHAM COUNCIL,Public Sector,Grants to local authorities outside AEF/AEG (aggregate external funding/aggregate exchequer grant),4000141775,"226,448"
Department for Education,DEPARTMENT FOR EDUCATION,29/08/2013,Grants,Families Group,CITY OF WESTMINSTER,Public Sector,Grants to local authorities outside AEF/AEG (aggregate external funding/aggregate exchequer grant),4000141776,"147,238"
Department for Education,DEPARTMENT FOR EDUCATION,29/08/2013,Grants,Families Group,SHEFFIELD CITY COUNCIL,Public Sector,Grants to local authorities outside AEF/AEG (aggregate external funding/aggregate exchequer grant),4000141777,"383,850"
Department for Education,DEPARTMENT FOR EDUCATION,29/08/2013,Grants,Families Group,SUNDERLAND CITY COUNCIL,Public Sector,Grants to local authorities outside AEF/AEG (aggregate external funding/aggregate exchequer grant),4000141778,"224,505"
Department for Education,DEPARTMENT FOR EDUCATION,29/08/2013,Grants,Families Group,DONCASTER MBC,Public Sector,Grants to local authorities outside AEF/AEG (aggregate external funding/aggregate exchequer grant),4000141779,"263,114"
Department for Education,DEPARTMENT FOR EDUCATION,29/08/2013,Grants,Families Group,STOKE ON TRENT CITY COUNCIL,Public Sector,Grants to local authorities outside AEF/AEG (aggregate external funding/aggregate exchequer grant),4000141780,"242,956"
Department for Education,DEPARTMENT FOR EDUCATION,29/08/2013,Grants,Families Group,STAFFORDSHIRE COUNCIL,Public Sector,Grants to local authorities outside AEF/AEG (aggregate external funding/aggregate exchequer grant),4000141781,"523,937"
Department for Education,DEPARTMENT FOR EDUCATION,29/08/2013,Grants,Families Group,RUTLAND COUNTY COUNCIL,Public Sector,Grants to local authorities outside AEF/AEG (aggregate external funding/aggregate exchequer grant),4000141782,"25,773"
Department for Education,DEPARTMENT FOR EDUCATION,29/08/2013,Grants,Children's Services and Departmental Strategy Early Years Extended Schools and Special Needs Group,LEICESTER CITY COUNCIL,Public Sector,Grants to local authorities within AEF/AEG (aggregate external funding/aggregate exchequer grant),4000141783,"47,850"
Department for Education,DEPARTMENT FOR EDUCATION,29/08/2013,Grants,Families Group,LEICESTER CITY COUNCIL,Public Sector,Grants to local authorities outside AEF/AEG (aggregate external funding/aggregate exchequer grant),4000141783,"264,946"
Department for Education,DEPARTMENT FOR EDUCATION,29/08/2013,Grants,Families Group,CHESHIRE EAST COUNCIL,Public Sector,Grants to local authorities outside AEF/AEG (aggregate external funding/aggregate exchequer grant),4000141784,"225,888"
Department for Education,DEPARTMENT FOR EDUCATION,29/08/2013,Grants,Families Group,METROPOLITAN BOROUGH OF WIRRAL,Public Sector,Grants to local authorities outside AEF/AEG (aggregate external funding/aggregate exchequer grant),4000141785,"167,968"
Department for Education,DEPARTMENT FOR EDUCATION,29/08/2013,Grants,Children's Services and Departmental Strategy Early Years Extended Schools and Special Needs Group,LONDON BOROUGH OF LEWISHAM,Public Sector,Grants to local authorities within AEF/AEG (aggregate external funding/aggregate exchequer grant),4000141787,"37,500"
Department for Education,DEPARTMENT FOR EDUCATION,29/08/2013,Grants,Families Group,LONDON BOROUGH OF LEWISHAM,Public Sector,Grants to local authorities outside AEF/AEG (aggregate external funding/aggregate exchequer grant),4000141787,"253,959"
Department for Education,DEPARTMENT FOR EDUCATION,29/08/2013,Grants,Families Group,LEEDS CITY COUNCIL,Public Sector,Grants to local authorities outside AEF/AEG (aggregate external funding/aggregate exchequer grant),4000141788,"658,305"
Department for Education,DEPARTMENT FOR EDUCATION,29/08/2013,Grants,Families Group,WALSALL MBC,Public Sector,Grants to local authorities outside AEF/AEG (aggregate external funding/aggregate exchequer grant),4000141789,"208,433"
Department for Education,DEPARTMENT FOR EDUCATION,29/08/2013,Grants,Families Group,CHESHIRE WEST & CHESTER COUNCIL,Public Sector,Grants to local authorities outside AEF/AEG (aggregate external funding/aggregate exchequer grant),4000141790,"169,343"
Department for Education,DEPARTMENT FOR EDUCATION,29/08/2013,Grants,Families Group,LONDON BOROUGH OF SUTTON,Public Sector,Grants to local authorities outside AEF/AEG (aggregate external funding/aggregate exchequer grant),4000141791,"134,524"
Department for Education,DEPARTMENT FOR EDUCATION,29/08/2013,Grants,Families Group,LEICESTERSHIRE COUNTY COUNCIL,Public Sector,Grants to local authorities outside AEF/AEG (aggregate external funding/aggregate exchequer grant),4000141792,"302,200"
Department for Education,DEPARTMENT FOR EDUCATION,29/08/2013,Grants,Children's Services and Departmental Strategy Early Years Extended Schools and Special Needs Group,SOUTHAMPTON CITY COUNCIL,Public Sector,Grants to local authorities within AEF/AEG (aggregate external funding/aggregate exchequer grant),4000141793,"44,388"
Department for Education,DEPARTMENT FOR EDUCATION,29/08/2013,Grants,Families Group,SOUTHAMPTON CITY COUNCIL,Public Sector,Grants to local authorities outside AEF/AEG (aggregate external funding/aggregate exchequer grant),4000141793,"189,421"
Department for Education,DEPARTMENT FOR EDUCATION,29/08/2013,Grants,Families Group,PORTSMOUTH CITY COUNCIL,Public Sector,Grants to local authorities outside AEF/AEG (aggregate external funding/aggregate exchequer grant),4000141794,"166,395"
Department for Education,DEPARTMENT FOR EDUCATION,29/08/2013,Grants,Families Group,LONDON BOROUGH OF TOWER HAMLETS COUNCIL,Public Sector,Grants to local authorities outside AEF/AEG (aggregate external funding/aggregate exchequer grant),4000141797,"236,314"
Department for Education,DEPARTMENT FOR EDUCATION,29/08/2013,Grants,Families Group,LONDON BOROUGH OF ISLINGTON COUNCIL,Public Sector,Grants to local authorities outside AEF/AEG (aggregate external funding/aggregate exchequer grant),4000141798,"170,263"
Department for Education,DEPARTMENT FOR EDUCATION,29/08/2013,Grants,Families Group,LONDON BOROUGH OF CAMDEN,Public Sector,Grants to local authorities outside AEF/AEG (aggregate external funding/aggregate exchequer grant),4000141799,"166,801"
Department for Education,DEPARTMENT FOR EDUCATION,29/08/2013,Grants,Children's Services and Departmental Strategy Early Years Extended Schools and Special Needs Group,HAMPSHIRE COUNTY COUNCIL,Public Sector,Grants to local authorities within AEF/AEG (aggregate external funding/aggregate exchequer grant),4000141800,"37,500"
Department for Education,DEPARTMENT FOR EDUCATION,29/08/2013,Grants,Families Group,HAMPSHIRE COUNTY COUNCIL,Public Sector,Grants to local authorities outside AEF/AEG (aggregate external funding/aggregate exchequer grant),4000141800,"716,973"
Department for Education,DEPARTMENT FOR EDUCATION,29/08/2013,Grants,Children's Services and Departmental Strategy Early Years Extended Schools and Special Needs Group,BRIGHTON & HOVE CITY COUNCIL,Public Sector,Grants to local authorities within AEF/AEG (aggregate external funding/aggregate exchequer grant),4000141801,"37,500"
Department for Education,DEPARTMENT FOR EDUCATION,29/08/2013,Grants,Families Group,BRIGHTON & HOVE CITY COUNCIL,Public Sector,Grants to local authorities outside AEF/AEG (aggregate external funding/aggregate exchequer grant),4000141801,"244,094"
Department for Education,DEPARTMENT FOR EDUCATION,29/08/2013,Grants,Children's Services and Departmental Strategy Early Years Extended Schools and Special Needs Group,EAST SUSSEX COUNTY COUNCIL,Public Sector,Grants to local authorities within AEF/AEG (aggregate external funding/aggregate exchequer grant),4000141802,"52,839"
Department for Education,DEPARTMENT FOR EDUCATION,29/08/2013,Grants,Families Group,EAST SUSSEX COUNTY COUNCIL,Public Sector,Grants to local authorities outside AEF/AEG (aggregate external funding/aggregate exchequer grant),4000141802,"327,915"
Department for Education,DEPARTMENT FOR EDUCATION,29/08/2013,Grants,Children's Services and Departmental Strategy Early Years Extended Schools and Special Needs Group,DARLINGTON BOROUGH COUNCIL,Public Sector,Grants to local authorities within AEF/AEG (aggregate external funding/aggregate exchequer grant),4000141803,"37,500"
Department for Education,DEPARTMENT FOR EDUCATION,29/08/2013,Grants,Families Group,DARLINGTON BOROUGH COUNCIL,Public Sector,Grants to local authorities outside AEF/AEG (aggregate external funding/aggregate exchequer grant),4000141803,"62,035"
Department for Education,DEPARTMENT FOR EDUCATION,29/08/2013,Grants,Families Group,LONDON BOROUGH OF WANDSWORTH COUNCIL,Public Sector,Grants to local authorities outside AEF/AEG (aggregate external funding/aggregate exchequer grant),4000141804,"235,921"
Department for Education,DEPARTMENT FOR EDUCATION,29/08/2013,Grants,Children's Services and Departmental Strategy Early Years Extended Schools and Special Needs Group,LONDON BOROUGH OF GREENWICH,Public Sector,Grants to local authorities within AEF/AEG (aggregate external funding/aggregate exchequer grant),4000141805,"23,109"
Department for Education,DEPARTMENT FOR EDUCATION,29/08/2013,Grants,Families Group,LONDON BOROUGH OF GREENWICH,Public Sector,Grants to local authorities outside AEF/AEG (aggregate external funding/aggregate exchequer grant),4000141805,"232,026"
Department for Education,DEPARTMENT FOR EDUCATION,29/08/2013,Grants,Families Group,LONDON BOROUGH OF HAMMERSMITH & FULHAM COUNCIL,Public Sector,Grants to local authorities outside AEF/AEG (aggregate external funding/aggregate exchequer grant),4000141806,"154,251"
Department for Education,DEPARTMENT FOR EDUCATION,29/08/2013,Grants,Families Group,LONDON BOROUGH OF SOUTHWARK COUNCIL,Public Sector,Grants to local authorities outside AEF/AEG (aggregate external funding/aggregate exchequer grant),4000141807,"325,432"
Department for Education,DEPARTMENT FOR EDUCATION,29/08/2013,Grants,Families Group,DURHAM COUNTY COUNCIL,Public Sector,Grants to local authorities outside AEF/AEG (aggregate external funding/aggregate exchequer grant),4000141808,"363,260"
Department for Education,DEPARTMENT FOR EDUCATION,29/08/2013,Grants,Families Group,BOURNEMOUTH BOROUGH COUNCIL,Public Sector,Grants to local authorities outside AEF/AEG (aggregate external funding/aggregate exchequer grant),4000141809,"134,791"
Department for Education,DEPARTMENT FOR EDUCATION,29/08/2013,Grants,Families Group,POOLE BOROUGH COUNCIL,Public Sector,Grants to local authorities outside AEF/AEG (aggregate external funding/aggregate exchequer grant),4000141810,"103,181"
Department for Education,DEPARTMENT FOR EDUCATION,29/08/2013,Grants,Families Group,DORSET COUNTY COUNCIL,Public Sector,Grants to local authorities outside AEF/AEG (aggregate external funding/aggregate exchequer grant),4000141811,"205,708"
Department for Education,DEPARTMENT FOR EDUCATION,29/08/2013,Grants,Families Group,DERBY CITY COUNCIL,Public Sector,Grants to local authorities outside AEF/AEG (aggregate external funding/aggregate exchequer grant),4000141812,"276,977"
Department for Education,DEPARTMENT FOR EDUCATION,29/08/2013,Grants,Families Group,THE LONDON BOROUGH OF HACKNEY,Public Sector,Grants to local authorities outside AEF/AEG (aggregate external funding/aggregate exchequer grant),4000141818,"208,117"
Department for Education,DEPARTMENT FOR EDUCATION,29/08/2013,Grants,Families Group,THE ROYAL BOROUGH OF KENSINGTON & CHELSEA COUNCIL,Public Sector,Grants to local authorities outside AEF/AEG (aggregate external funding/aggregate exchequer grant),4000141819,"98,482"
Department for Education,DEPARTMENT FOR EDUCATION,29/08/2013,Grants,Families Group,LONDON BOROUGH OF LAMBETH COUNCIL,Public Sector,Grants to local authorities outside AEF/AEG (aggregate external funding/aggregate exchequer grant),4000141820,"261,931"
Department for Education,DEPARTMENT FOR EDUCATION,29/08/2013,Grants,Children's Services and Departmental Strategy Early Years Extended Schools and Special Needs Group,WEST SUSSEX COUNTY COUNCIL,Public Sector,Grants to local authorities within AEF/AEG (aggregate external funding/aggregate exchequer grant),4000141821,"37,500"
Department for Education,DEPARTMENT FOR EDUCATION,29/08/2013,Grants,Families Group,WEST SUSSEX COUNTY COUNCIL,Public Sector,Grants to local authorities outside AEF/AEG (aggregate external funding/aggregate exchequer grant),4000141821,"431,527"
Department for Education,DEPARTMENT FOR EDUCATION,29/08/2013,Grants,Families Group,DERBYSHIRE COUNTY COUNCIL,Public Sector,Grants to local authorities outside AEF/AEG (aggregate external funding/aggregate exchequer grant),4000141822,"550,740"
Department for Education,DEPARTMENT FOR EDUCATION,29/08/2013,Grants,Families Group,MILTON KEYNES COUNCIL,Public Sector,Grants to local authorities outside AEF/AEG (aggregate external funding/aggregate exchequer grant),4000141823,"222,263"
Department for Education,DEPARTMENT FOR EDUCATION,29/08/2013,Grants,Families Group,BUCKINGHAMSHIRE COUNTY COUNCIL,Public Sector,Grants to local authorities outside AEF/AEG (aggregate external funding/aggregate exchequer grant),4000141824,"280,587"
Department for Education,DEPARTMENT FOR EDUCATION,29/08/2013,Grants,Families Group,LUTON BOROUGH COUNCIL,Public Sector,Grants to local authorities outside AEF/AEG (aggregate external funding/aggregate exchequer grant),4000141825,"181,712"
Department for Education,DEPARTMENT FOR EDUCATION,29/08/2013,Grants,Families Group,WARWICKSHIRE COUNTY COUNCIL,Public Sector,Grants to local authorities outside AEF/AEG (aggregate external funding/aggregate exchequer grant),4000141832,"310,431"
Department for Education,DEPARTMENT FOR EDUCATION,29/08/2013,Grants,Children's Services and Departmental Strategy Early Years Extended Schools and Special Needs Group,SURREY COUNTY COUNCIL,Public Sector,Grants to local authorities within AEF/AEG (aggregate external funding/aggregate exchequer grant),4000141833,"37,500"
Department for Education,DEPARTMENT FOR EDUCATION,29/08/2013,Grants,Families Group,SURREY COUNTY COUNCIL,Public Sector,Grants to local authorities outside AEF/AEG (aggregate external funding/aggregate exchequer grant),4000141833,"627,596"
Department for Education,DEPARTMENT FOR EDUCATION,29/08/2013,Grants,Families Group,BOLTON MBC,Public Sector,Grants to local authorities outside AEF/AEG (aggregate external funding/aggregate exchequer grant),4000141834,"294,886"
Department for Education,DEPARTMENT FOR EDUCATION,29/08/2013,Grants,Families Group,BEDFORD BOROUGH COUNCIL,Public Sector,Grants to local authorities outside AEF/AEG (aggregate external funding/aggregate exchequer grant),4000141837,"99,346"
Department for Education,DEPARTMENT FOR EDUCATION,29/08/2013,Grants,Families Group,YORK CITY COUNCIL,Public Sector,Grants to local authorities outside AEF/AEG (aggregate external funding/aggregate exchequer grant),4000141838,"110,018"
Department for Education,DEPARTMENT FOR EDUCATION,29/08/2013,Grants,Children's Services and Departmental Strategy Early Years Extended Schools and Special Needs Group,NORTH YORKSHIRE COUNTY COUNCIL,Public Sector,Grants to local authorities within AEF/AEG (aggregate external funding/aggregate exchequer grant),4000141839,"37,500"
Department for Education,DEPARTMENT FOR EDUCATION,29/08/2013,Grants,Families Group,NORTH YORKSHIRE COUNTY COUNCIL,Public Sector,Grants to local authorities outside AEF/AEG (aggregate external funding/aggregate exchequer grant),4000141839,"322,926"
Department for Education,DEPARTMENT FOR EDUCATION,29/08/2013,Grants,Families Group,NORTH LINCOLNSHIRE COUNCIL,Public Sector,Grants to local authorities outside AEF/AEG (aggregate external funding/aggregate exchequer grant),4000141840,"125,668"
Department for Education,DEPARTMENT FOR EDUCATION,29/08/2013,Grants,Families Group,NORTH EAST LINCOLNSHIRE COUNCIL,Public Sector,Grants to local authorities outside AEF/AEG (aggregate external funding/aggregate exchequer grant),4000141841,"126,718"
Department for Education,DEPARTMENT FOR EDUCATION,29/08/2013,Grants,Families Group,NORTH TYNESIDE,Public Sector,Grants to local authorities outside AEF/AEG (aggregate external funding/aggregate exchequer grant),4000141842,"146,633"
Department for Education,DEPARTMENT FOR EDUCATION,29/08/2013,Grants,Families Group,NEWCASTLE CITY COUNCIL,Public Sector,Grants to local authorities outside AEF/AEG (aggregate external funding/aggregate exchequer grant),4000141843,"240,722"
Department for Education,DEPARTMENT FOR EDUCATION,29/08/2013,Grants,Children's Services and Departmental Strategy Early Years Extended Schools and Special Needs Group,GATESHEAD MBC,Public Sector,Grants to local authorities within AEF/AEG (aggregate external funding/aggregate exchequer grant),4000141844,"37,500"
Department for Education,DEPARTMENT FOR EDUCATION,29/08/2013,Grants,Families Group,GATESHEAD MBC,Public Sector,Grants to local authorities outside AEF/AEG (aggregate external funding/aggregate exchequer grant),4000141844,"130,943"
Department for Education,DEPARTMENT FOR EDUCATION,29/08/2013,Grants,Families Group,WAKEFIELD MDC,Public Sector,Grants to local authorities outside AEF/AEG (aggregate external funding/aggregate exchequer grant),4000141845,"228,686"
Department for Education,DEPARTMENT FOR EDUCATION,29/08/2013,Grants,Families Group,KIRKLEES COUNCIL,Public Sector,Grants to local authorities outside AEF/AEG (aggregate external funding/aggregate exchequer grant),4000141846,"355,582"
Department for Education,DEPARTMENT FOR EDUCATION,29/08/2013,Grants,Families Group,NORFOLK COUNTY COUNCIL,Public Sector,Grants to local authorities outside AEF/AEG (aggregate external funding/aggregate exchequer grant),4000141849,"602,601"
Department for Education,DEPARTMENT FOR EDUCATION,29/08/2013,Grants,Children's Services and Departmental Strategy Early Years Extended Schools and Special Needs Group,SOLIHULL MBC,Public Sector,Grants to local authorities within AEF/AEG (aggregate external funding/aggregate exchequer grant),4000141851,"48,550"
Department for Education,DEPARTMENT FOR EDUCATION,29/08/2013,Grants,Families Group,SOLIHULL MBC,Public Sector,Grants to local authorities outside AEF/AEG (aggregate external funding/aggregate exchequer grant),4000141851,"110,710"
Department for Education,DEPARTMENT FOR EDUCATION,29/08/2013,Grants,Families Group,EAST RIDING OF YORKSHIRE,Public Sector,Grants to local authorities outside AEF/AEG (aggregate external funding/aggregate exchequer grant),4000141852,"192,259"
Department for Education,DEPARTMENT FOR EDUCATION,29/08/2013,Grants,Families Group,KINGSTON UPON HULL COUNCIL,Public Sector,Grants to local authorities outside AEF/AEG (aggregate external funding/aggregate exchequer grant),4000141853,"280,974"
Department for Education,DEPARTMENT FOR EDUCATION,29/08/2013,Grants,Families Group,STOCKTON ON TEES,Public Sector,Grants to local authorities outside AEF/AEG (aggregate external funding/aggregate exchequer grant),4000141854,"155,338"
Department for Education,DEPARTMENT FOR EDUCATION,29/08/2013,Grants,Families Group,REDCAR & CLEVELAND BOROUGH COUNCIL,Public Sector,Grants to local authorities outside AEF/AEG (aggregate external funding/aggregate exchequer grant),4000141855,"110,785"
Department for Education,DEPARTMENT FOR EDUCATION,29/08/2013,Grants,Children's Services and Departmental Strategy Early Years Extended Schools and Special Needs Group,CALDERDALE MBC,Public Sector,Grants to local authorities within AEF/AEG (aggregate external funding/aggregate exchequer grant),4000141856,"48,550"
Department for Education,DEPARTMENT FOR EDUCATION,29/08/2013,Grants,Families Group,CALDERDALE MBC,Public Sector,Grants to local authorities outside AEF/AEG (aggregate external funding/aggregate exchequer grant),4000141856,"160,385"
Department for Education,DEPARTMENT FOR EDUCATION,29/08/2013,Grants,Families Group,CITY OF BRADFORD METROPOLITAN DISTRICT COUNCIL,Public Sector,Grants to local authorities outside AEF/AEG (aggregate external funding/aggregate exchequer grant),4000141857,"493,317"
Department for Education,DEPARTMENT FOR EDUCATION,29/08/2013,Grants,Families Group,ROTHERHAM MBC,Public Sector,Grants to local authorities outside AEF/AEG (aggregate external funding/aggregate exchequer grant),4000141858,"242,365"
Department for Education,DEPARTMENT FOR EDUCATION,29/08/2013,Grants,Families Group,BARNSLEY MBC,Public Sector,Grants to local authorities outside AEF/AEG (aggregate external funding/aggregate exchequer grant),4000141859,"158,031"
Department for Education,DEPARTMENT FOR EDUCATION,29/08/2013,Grants,Children's Services and Departmental Strategy Early Years Extended Schools and Special Needs Group,WIGAN MBC,Public Sector,Grants to local authorities within AEF/AEG (aggregate external funding/aggregate exchequer grant),4000141860,"36,179"
Department for Education,DEPARTMENT FOR EDUCATION,29/08/2013,Grants,Families Group,WIGAN MBC,Public Sector,Grants to local authorities outside AEF/AEG (aggregate external funding/aggregate exchequer grant),4000141860,"240,364"
Department for Education,DEPARTMENT FOR EDUCATION,29/08/2013,Grants,Families Group,SOMERSET COUNTY COUNCIL,Public Sector,Grants to local authorities outside AEF/AEG (aggregate external funding/aggregate exchequer grant),4000141861,"321,812"
Department for Education,DEPARTMENT FOR EDUCATION,29/08/2013,Grants,Families Group,OXFORDSHIRE COUNTY COUNCIL,Public Sector,Grants to local authorities outside AEF/AEG (aggregate external funding/aggregate exchequer grant),4000141862,"402,973"
Department for Education,DEPARTMENT FOR EDUCATION,29/08/2013,Grants,Families Group,NORTHUMBERLAND COUNTY COUNCIL,Public Sector,Grants to local authorities outside AEF/AEG (aggregate external funding/aggregate exchequer grant),4000141863,"171,315"
Department for Education,DEPARTMENT FOR EDUCATION,29/08/2013,Grants,Children's Services and Departmental Strategy Early Years Extended Schools and Special Needs Group,NORTHAMPTONSHIRE COUNTY COUNCIL,Public Sector,Grants to local authorities within AEF/AEG (aggregate external funding/aggregate exchequer grant),4000141864,"28,008"
Department for Education,DEPARTMENT FOR EDUCATION,29/08/2013,Grants,Families Group,NORTHAMPTONSHIRE COUNTY COUNCIL,Public Sector,Grants to local authorities outside AEF/AEG (aggregate external funding/aggregate exchequer grant),4000141864,"503,841"
Department for Education,DEPARTMENT FOR EDUCATION,29/08/2013,Grants,Families Group,LINCOLNSHIRE COUNTY COUNCIL,Public Sector,Grants to local authorities outside AEF/AEG (aggregate external funding/aggregate exchequer grant),4000141865,"440,372"
Department for Education,DEPARTMENT FOR EDUCATION,29/08/2013,Grants,Families Group,MIDDLESBROUGH COUNCIL,Public Sector,Grants to local authorities outside AEF/AEG (aggregate external funding/aggregate exchequer grant),4000141866,"124,316"
Department for Education,DEPARTMENT FOR EDUCATION,29/08/2013,Grants,Children's Services and Departmental Strategy Early Years Extended Schools and Special Needs Group,HARTLEPOOL BOROUGH COUNCIL,Public Sector,Grants to local authorities within AEF/AEG (aggregate external funding/aggregate exchequer grant),4000141867,"53,538"
Department for Education,DEPARTMENT FOR EDUCATION,29/08/2013,Grants,Families Group,HARTLEPOOL BOROUGH COUNCIL,Public Sector,Grants to local authorities outside AEF/AEG (aggregate external funding/aggregate exchequer grant),4000141867,"84,099"
Department for Education,DEPARTMENT FOR EDUCATION,29/08/2013,Grants,Families Group,SOUTH GLOUCEST,Public Sector,Grants to local authorities outside AEF/AEG (aggregate external funding/aggregate exchequer grant),4000141868,"138,232"
Department for Education,DEPARTMENT FOR EDUCATION,29/08/2013,Grants,Families Group,NORTH SOMERSET COUNCIL,Public Sector,Grants to local authorities outside AEF/AEG (aggregate external funding/aggregate exchequer grant),4000141869,"128,719"
Department for Education,DEPARTMENT FOR EDUCATION,29/08/2013,Grants,Families Group,BRISTOL CITY COUNCIL,Public Sector,Grants to local authorities outside AEF/AEG (aggregate external funding/aggregate exchequer grant),4000141870,"332,063"
Department for Education,DEPARTMENT FOR EDUCATION,29/08/2013,Grants,Children's Services and Departmental Strategy Early Years Extended Schools and Special Needs Group,TRAFFORD MB COUNCIL,Public Sector,Grants to local authorities within AEF/AEG (aggregate external funding/aggregate exchequer grant),4000141871,"37,500"
Department for Education,DEPARTMENT FOR EDUCATION,29/08/2013,Grants,Families Group,TRAFFORD MB COUNCIL,Public Sector,Grants to local authorities outside AEF/AEG (aggregate external funding/aggregate exchequer grant),4000141871,"132,190"
Department for Education,DEPARTMENT FOR EDUCATION,29/08/2013,Grants,Families Group,TAMESIDE MBC,Public Sector,Grants to local authorities outside AEF/AEG (aggregate external funding/aggregate exchequer grant),4000141872,"171,892"
Department for Education,DEPARTMENT FOR EDUCATION,29/08/2013,Grants,Families Group,STOCKPORT MBC,Public Sector,Grants to local authorities outside AEF/AEG (aggregate external funding/aggregate exchequer grant),4000141873,"179,175"
Department for Education,DEPARTMENT FOR EDUCATION,29/08/2013,Grants,Families Group,SALFORD CITY COUNCIL,Public Sector,Grants to local authorities outside AEF/AEG (aggregate external funding/aggregate exchequer grant),4000141874,"203,590"
Department for Education,DEPARTMENT FOR EDUCATION,29/08/2013,Grants,Children's Services and Departmental Strategy Early Years Extended Schools and Special Needs Group,ROCHDALE MBC,Public Sector,Grants to local authorities within AEF/AEG (aggregate external funding/aggregate exchequer grant),4000141875,"2,767"
Department for Education,DEPARTMENT FOR EDUCATION,29/08/2013,Grants,Families Group,ROCHDALE MBC,Public Sector,Grants to local authorities outside AEF/AEG (aggregate external funding/aggregate exchequer grant),4000141875,"220,571"
Department for Education,DEPARTMENT FOR EDUCATION,29/08/2013,Grants,Families Group,ISLE OF WIGHT COUNCIL,Public Sector,Grants to local authorities outside AEF/AEG (aggregate external funding/aggregate exchequer grant),4000141876,"75,216"
Department for Education,DEPARTMENT FOR EDUCATION,29/08/2013,Grants,Children's Services and Departmental Strategy Early Years Extended Schools and Special Needs Group,HERTFORDSHIRE,Public Sector,Grants to local authorities within AEF/AEG (aggregate external funding/aggregate exchequer grant),4000141877,"48,750"
Department for Education,DEPARTMENT FOR EDUCATION,29/08/2013,Grants,Families Group,HERTFORDSHIRE,Public Sector,Grants to local authorities outside AEF/AEG (aggregate external funding/aggregate exchequer grant),4000141877,"656,079"
Department for Education,DEPARTMENT FOR EDUCATION,29/08/2013,Grants,Families Group,GLOUCESTERSHIRE COUNTY COUNCIL,Public Sector,Grants to local authorities outside AEF/AEG (aggregate external funding/aggregate exchequer grant),4000141878,"315,418"
Department for Education,DEPARTMENT FOR EDUCATION,29/08/2013,Grants,Families Group,CUMBRIA COUNTY COUNCIL,Public Sector,Grants to local authorities outside AEF/AEG (aggregate external funding/aggregate exchequer grant),4000141879,"337,910"
Department for Education,DEPARTMENT FOR EDUCATION,29/08/2013,Grants,Children's Services and Departmental Strategy Early Years Extended Schools and Special Needs Group,CORNWALL COUNCIL,Public Sector,Grants to local authorities within AEF/AEG (aggregate external funding/aggregate exchequer grant),4000141880,"37,500"
Department for Education,DEPARTMENT FOR EDUCATION,29/08/2013,Grants,Families Group,CORNWALL COUNCIL,Public Sector,Grants to local authorities outside AEF/AEG (aggregate external funding/aggregate exchequer grant),4000141880,"342,162"
Department for Education,DEPARTMENT FOR EDUCATION,29/08/2013,Grants,Families Group,BATH & NORTH EAST SOMERSET COUNCIL,Public Sector,Grants to local authorities outside AEF/AEG (aggregate external funding/aggregate exchequer grant),4000141881,"79,438"
Department for Education,DEPARTMENT FOR EDUCATION,29/08/2013,Grants,Families Group,SOUTH TYNESIDE,Public Sector,Grants to local authorities outside AEF/AEG (aggregate external funding/aggregate exchequer grant),4000141883,"153,619"
Department for Education,DEPARTMENT FOR EDUCATION,29/08/2013,Grants,Families Group,CENTRAL BEDFORDSHIRE COUNCIL,Public Sector,Grants to local authorities outside AEF/AEG (aggregate external funding/aggregate exchequer grant),4000141884,"138,710"
Department for Education,DEPARTMENT FOR EDUCATION,29/08/2013,Grants,Children's Services and Departmental Strategy Early Years Extended Schools and Special Needs Group,OLDHAM MBC,Public Sector,Grants to local authorities within AEF/AEG (aggregate external funding/aggregate exchequer grant),4000141886,"23,074"
Department for Education,DEPARTMENT FOR EDUCATION,29/08/2013,Grants,Families Group,OLDHAM MBC,Public Sector,Grants to local authorities outside AEF/AEG (aggregate external funding/aggregate exchequer grant),4000141886,"202,345"
Department for Education,DEPARTMENT FOR EDUCATION,29/08/2013,Grants,Children's Services and Departmental Strategy Early Years Extended Schools and Special Needs Group,MANCHESTER CITY COUNCIL,Public Sector,Grants to local authorities within AEF/AEG (aggregate external funding/aggregate exchequer grant),4000141888,"37,500"
Department for Education,DEPARTMENT FOR EDUCATION,29/08/2013,Grants,Families Group,MANCHESTER CITY COUNCIL,Public Sector,Grants to local authorities outside AEF/AEG (aggregate external funding/aggregate exchequer grant),4000141888,"493,936"
Department for Education,DEPARTMENT FOR EDUCATION,29/08/2013,Grants,Families Group,BURY MBC,Public Sector,Grants to local authorities outside AEF/AEG (aggregate external funding/aggregate exchequer grant),4000141889,"149,033"
Department for Education,DEPARTMENT FOR EDUCATION,29/08/2013,Grants,Families Group,SEFTON COUNCIL,Public Sector,Grants to local authorities outside AEF/AEG (aggregate external funding/aggregate exchequer grant),4000141890,"151,080"
Department for Education,DEPARTMENT FOR EDUCATION,29/08/2013,Grants,Families Group,TELFORD & WREKIN COUNCIL,Public Sector,Grants to local authorities outside AEF/AEG (aggregate external funding/aggregate exchequer grant),4000141891,"135,616"
Department for Education,DEPARTMENT FOR EDUCATION,29/08/2013,Grants,Families Group,SHROPSHIRE COUNCIL,Public Sector,Grants to local authorities outside AEF/AEG (aggregate external funding/aggregate exchequer grant),4000141892,"170,029"
Department for Education,DEPARTMENT FOR EDUCATION,29/08/2013,Grants,Families Group,COVENTRY CITY COUNCIL,Public Sector,Grants to local authorities outside AEF/AEG (aggregate external funding/aggregate exchequer grant),4000141894,"265,712"
Department for Education,DEPARTMENT FOR EDUCATION,29/08/2013,Grants,Families Group,NOTTINGHAM CITY COUNCIL,Public Sector,Grants to local authorities outside AEF/AEG (aggregate external funding/aggregate exchequer grant),4000141895,"296,582"
Department for Education,DEPARTMENT FOR EDUCATION,29/08/2013,Grants,Families Group,ST HELENS MBC,Public Sector,Grants to local authorities outside AEF/AEG (aggregate external funding/aggregate exchequer grant),4000141902,"140,658"
Department for Education,DEPARTMENT FOR EDUCATION,29/08/2013,Grants,Families Group,LIVERPOOL CITY COUNCIL,Public Sector,Grants to local authorities outside AEF/AEG (aggregate external funding/aggregate exchequer grant),4000141903,"298,779"
Department for Education,DEPARTMENT FOR EDUCATION,29/08/2013,Grants,Families Group,KNOWSLEY MBC,Public Sector,Grants to local authorities outside AEF/AEG (aggregate external funding/aggregate exchequer grant),4000141904,"102,357"
Department for Education,DEPARTMENT FOR EDUCATION,29/08/2013,Grants,Families Group,SANDWELL MBC,Public Sector,Grants to local authorities outside AEF/AEG (aggregate external funding/aggregate exchequer grant),4000141905,"271,416"
Department for Education,DEPARTMENT FOR EDUCATION,29/08/2013,Grants,Families Group,DUDLEY MBC,Public Sector,Grants to local authorities outside AEF/AEG (aggregate external funding/aggregate exchequer grant),4000141906,"247,995"
Department for Education,DEPARTMENT FOR EDUCATION,29/08/2013,Grants,Children's Services and Departmental Strategy Early Years Extended Schools and Special Needs Group,NOTTINGHAMSHIRE COUNTY COUNCIL,Public Sector,Grants to local authorities within AEF/AEG (aggregate external funding/aggregate exchequer grant),4000141907,"37,500"
Department for Education,DEPARTMENT FOR EDUCATION,29/08/2013,Grants,Families Group,NOTTINGHAMSHIRE COUNTY COUNCIL,Public Sector,Grants to local authorities outside AEF/AEG (aggregate external funding/aggregate exchequer grant),4000141907,"522,074"
Department for Education,DEPARTMENT FOR EDUCATION,29/08/2013,Grants,Families Group,BLACKPOOL BOROUGH COUNCIL,Public Sector,Grants to local authorities outside AEF/AEG (aggregate external funding/aggregate exchequer grant),4000141908,"174,904"
Department for Education,DEPARTMENT FOR EDUCATION,29/08/2013,Grants,Families Group,BLACKBURN WITH DARWEN BOROUGH COUNCIL,Public Sector,Grants to local authorities outside AEF/AEG (aggregate external funding/aggregate exchequer grant),4000141909,"156,226"
Department for Education,DEPARTMENT FOR EDUCATION,29/08/2013,Grants,Families Group,LANCASHIRE COUNTY COUNCIL,Public Sector,Grants to local authorities outside AEF/AEG (aggregate external funding/aggregate exchequer grant),4000141910,"765,865"
Department for Education,DEPARTMENT FOR EDUCATION,29/08/2013,Grants,Families Group,BIRMINGHAM CITY COUNCIL,Public Sector,Grants to local authorities outside AEF/AEG (aggregate external funding/aggregate exchequer grant),4000141917,"966,665"
Department for Education,DEPARTMENT FOR EDUCATION,29/08/2013,Grants,Families Group,LONDON BOROUGH OF WALTHAM FOREST COUNCIL,Public Sector,Grants to local authorities outside AEF/AEG (aggregate external funding/aggregate exchequer grant),4000141918,"217,471"
Department for Education,DEPARTMENT FOR EDUCATION,29/08/2013,Grants,Families Group,LONDON BOROUGH OF RICHMOND UPON THAMES,Public Sector,Grants to local authorities outside AEF/AEG (aggregate external funding/aggregate exchequer grant),4000141919,"108,914"
Department for Education,DEPARTMENT FOR EDUCATION,29/08/2013,Grants,Families Group,LONDON BOROUGH OF REDBRIDGE,Public Sector,Grants to local authorities outside AEF/AEG (aggregate external funding/aggregate exchequer grant),4000141920,"186,373"
Department for Education,DEPARTMENT FOR EDUCATION,29/08/2013,Grants,Children's Services and Departmental Strategy Early Years Extended Schools and Special Needs Group,MEDWAY COUNCIL,Public Sector,Grants to local authorities within AEF/AEG (aggregate external funding/aggregate exchequer grant),4000141921,"25,271"
Department for Education,DEPARTMENT FOR EDUCATION,29/08/2013,Grants,Families Group,MEDWAY COUNCIL,Public Sector,Grants to local authorities outside AEF/AEG (aggregate external funding/aggregate exchequer grant),4000141921,"205,453"
Department for Education,DEPARTMENT FOR EDUCATION,29/08/2013,Grants,Children's Services and Departmental Strategy Early Years Extended Schools and Special Needs Group,KENT COUNTY COUNCIL,Public Sector,Grants to local authorities within AEF/AEG (aggregate external funding/aggregate exchequer grant),4000141922,"37,500"
Department for Education,DEPARTMENT FOR EDUCATION,29/08/2013,Grants,Families Group,KENT COUNTY COUNCIL,Public Sector,Grants to local authorities outside AEF/AEG (aggregate external funding/aggregate exchequer grant),4000141922,"911,560"
Department for Education,DEPARTMENT FOR EDUCATION,29/08/2013,Grants,Families Group,WORCESTERSHIRE COUNTY COUNCIL,Public Sector,Grants to local authorities outside AEF/AEG (aggregate external funding/aggregate exchequer grant),4000141923,"357,485"
Department for Education,DEPARTMENT FOR EDUCATION,29/08/2013,Grants,Families Group,HEREFORDSHIRE COUNCIL,Public Sector,Grants to local authorities outside AEF/AEG (aggregate external funding/aggregate exchequer grant),4000141924,"124,902"
Department for Education,DEPARTMENT FOR EDUCATION,29/08/2013,Grants,Families Group,THURROCK COUNCIL,Public Sector,Grants to local authorities outside AEF/AEG (aggregate external funding/aggregate exchequer grant),4000141925,"109,841"
Department for Education,DEPARTMENT FOR EDUCATION,29/08/2013,Grants,Families Group,LONDON BOROUGH OF NEWHAM,Public Sector,Grants to local authorities outside AEF/AEG (aggregate external funding/aggregate exchequer grant),4000141932,"320,058"
Department for Education,DEPARTMENT FOR EDUCATION,29/08/2013,Grants,Families Group,LONDON BOROUGH OF MERTON COUNCIL,Public Sector,Grants to local authorities outside AEF/AEG (aggregate external funding/aggregate exchequer grant),4000141933,"136,064"
Department for Education,DEPARTMENT FOR EDUCATION,29/08/2013,Grants,Families Group,ROYAL BOROUGH OF KINGSTON UPON THAMES COUNCIL,Public Sector,Grants to local authorities outside AEF/AEG (aggregate external funding/aggregate exchequer grant),4000141934,"98,806"
Department for Education,DEPARTMENT FOR EDUCATION,29/08/2013,Grants,Families Group,LONDON BOROUGH OF HOUNSLOW COUNCIL,Public Sector,Grants to local authorities outside AEF/AEG (aggregate external funding/aggregate exchequer grant),4000141935,"207,794"
Department for Education,DEPARTMENT FOR EDUCATION,29/08/2013,Grants,Families Group,SOUTHEND ON SEA BOROUGH COUNCIL,Public Sector,Grants to local authorities outside AEF/AEG (aggregate external funding/aggregate exchequer grant),4000141936,"123,353"
Department for Education,DEPARTMENT FOR EDUCATION,29/08/2013,Grants,Families Group,ESSEX COUNTY COUNCIL,Public Sector,Grants to local authorities outside AEF/AEG (aggregate external funding/aggregate exchequer grant),4000141937,"830,244"
Department for Education,DEPARTMENT FOR EDUCATION,29/08/2013,Grants,Families Group,TORBAY COUNCIL,Public Sector,Grants to local authorities outside AEF/AEG (aggregate external funding/aggregate exchequer grant),4000141938,"79,973"
Department for Education,DEPARTMENT FOR EDUCATION,29/08/2013,Grants,Families Group,PLYMOUTH CITY COUNCIL,Public Sector,Grants to local authorities outside AEF/AEG (aggregate external funding/aggregate exchequer grant),4000141939,"213,077"
Department for Education,DEPARTMENT FOR EDUCATION,29/08/2013,Grants,Children's Services and Departmental Strategy Early Years Extended Schools and Special Needs Group,DEVON COUNTY COUNCIL,Public Sector,Grants to local authorities within AEF/AEG (aggregate external funding/aggregate exchequer grant),4000141940,"37,500"
Department for Education,DEPARTMENT FOR EDUCATION,29/08/2013,Grants,Families Group,DEVON COUNTY COUNCIL,Public Sector,Grants to local authorities outside AEF/AEG (aggregate external funding/aggregate exchequer grant),4000141940,"386,998"
Department for Education,DEPARTMENT FOR EDUCATION,29/08/2013,Grants,Families Group,SUFFOLK COUNTY COUNCIL,Public Sector,Grants to local authorities outside AEF/AEG (aggregate external funding/aggregate exchequer grant),4000141947,"514,489"
Department for Education,DEPARTMENT FOR EDUCATION,29/08/2013,Grants,Families Group,LONDON BOROUGH OF HILLINGDON  COUNCIL,Public Sector,Grants to local authorities outside AEF/AEG (aggregate external funding/aggregate exchequer grant),4000141948,"220,084"
Department for Education,DEPARTMENT FOR EDUCATION,29/08/2013,Grants,Families Group,LONDON BOROUGH OF HAVERING COUNCIL,Public Sector,Grants to local authorities outside AEF/AEG (aggregate external funding/aggregate exchequer grant),4000141949,"123,910"
Department for Education,DEPARTMENT FOR EDUCATION,29/08/2013,Grants,Families Group,LONDON BOROUGH OF HARROW COUNCIL,Public Sector,Grants to local authorities outside AEF/AEG (aggregate external funding/aggregate exchequer grant),4000141950,"137,788"
Department for Education,DEPARTMENT FOR EDUCATION,29/08/2013,Grants,Families Group,WARRINGTON BOROUGH COUNCIL,Public Sector,Grants to local authorities outside AEF/AEG (aggregate external funding/aggregate exchequer grant),4000141951,"119,052"
Department for Education,DEPARTMENT FOR EDUCATION,29/08/2013,Grants,Families Group,WOLVERHAMPTON CITY COUNCIL,Public Sector,Grants to local authorities outside AEF/AEG (aggregate external funding/aggregate exchequer grant),4000141952,"270,482"
Department for Education,DEPARTMENT FOR EDUCATION,29/08/2013,Grants,Families Group,HALTON BOROUGH COUNCIL,Public Sector,Grants to local authorities outside AEF/AEG (aggregate external funding/aggregate exchequer grant),4000141953,"90,940"
Department for Education,DEPARTMENT FOR EDUCATION,29/08/2013,Grants,Families Group,PETERBOROUGH CITY COUNCIL,Public Sector,Grants to local authorities outside AEF/AEG (aggregate external funding/aggregate exchequer grant),4000141954,"175,413"
Department for Education,DEPARTMENT FOR EDUCATION,29/08/2013,Grants,Families Group,CAMBRIDGESHIRE COUNTY COUNCIL,Public Sector,Grants to local authorities outside AEF/AEG (aggregate external funding/aggregate exchequer grant),4000141955,"361,979"
Department for Education,DEPARTMENT FOR EDUCATION,30/08/2013,Programme costs,Families Group,FAMILY LIVES,VCS,Funding to deliver policies (excluding consultancy) paid to third parties via a service delivery contract,4000141977,"76,582"
Department for Education,DEPARTMENT FOR EDUCATION,30/08/2013,Programme costs,School Standards Group,ECORYS UK LTD,Commercial,Funding to deliver policies (excluding consultancy) paid to third parties via a service delivery contract,4000142036,"128,782"
Department for Education,DEPARTMENT FOR EDUCATION,30/08/2013,Grants,Children's Services and Departmental Strategy Early Years Extended Schools and Special Needs Group,NATIONAL DAY NURSERIES ASSOCIATION,VCS,Grants to third sector organisations / not for profit organisations,4000142038,"61,549"
Department for Education,DEPARTMENT FOR EDUCATION,30/08/2013,Programme costs,Children's Services and Departmental Strategy Early Years Extended Schools and Special Needs Group,SERCO LTD,Commercial,Funding to deliver policies (excluding consultancy) paid to third parties via a service delivery contract,4000142055,"80,510"
Department for Education,DEPARTMENT FOR EDUCATION,31/08/2013,Redactions,Various,Various,Various,"The total redacted transactions, including funding payment to Education Funding Agency and payments to JP Morgan. See Technical Notes for further information.",Various,"4,431,938,000"
Department for Education,EDUCATION FUNDING AGENCY,12/08/2013,Travel,School Funding Division,REDFERN TRAVEL LTD,Commercial,"Staff business travel including air, coach, ferry, rail and taxi",4000139985,"1,611"
Department for Education,DEPARTMENT FOR EDUCATION,20/08/2013,Programme costs,Curriculum and General Qualifications Reform Group,EASTERN SHIRES PURCHASING ORGANISATION,Public Sector,Funding to deliver policies (excluding consultancy) paid to third parties via a service delivery contract,1001237,"437,108"
Department for Education,DEPARTMENT FOR EDUCATION,20/08/2013,Programme costs,Curriculum and General Qualifications Reform Group,EASTERN SHIRES PURCHASING ORGANISATION,Public Sector,Funding to deliver policies (excluding consultancy) paid to third parties via a service delivery contract,1001238,"47,650"
Department for Education,DEPARTMENT FOR EDUCATION,30/08/2013,Programme costs,Curriculum and General Qualifications Reform Group,EASTERN SHIRES PURCHASING ORGANISATION,Public Sector,Funding to deliver policies (excluding consultancy) paid to third parties via a service delivery contract,1001251,"556,406"
Department for Education,TEACHERS PENSION SCHEME,05/08/2013,Funding to Pay Teachers' Pensions,Workforce Group,CAPITA TP HSBC,Commercial,Funding to pay Teachers' Pensions,1001685,"29,593"
Department for Education,TEACHERS PENSION SCHEME,05/08/2013,Funding to Pay Teachers' Pensions,Workforce Group,CAPITA TP NATWEST,Commercial,Funding to pay Teachers' Pensions,1001686,"33,999,123"
Department for Education,TEACHERS PENSION SCHEME,06/08/2013,Funding to Pay Teachers' Pensions,Workforce Group,CAPITA TP HSBC,Commercial,Funding to pay Teachers' Pensions,1001687,"46,080"
Department for Education,TEACHERS PENSION SCHEME,06/08/2013,Funding to Pay Teachers' Pensions,Workforce Group,CAPITA TP NATWEST,Commercial,Funding to pay Teachers' Pensions,1001689,"52,561,370"
Department for Education,TEACHERS PENSION SCHEME,13/08/2013,Funding to Pay Teachers' Pensions,Workforce Group,CAPITA TP HSBC,Commercial,Funding to pay Teachers' Pensions,1001690,"54,112"
Department for Education,TEACHERS PENSION SCHEME,13/08/2013,Funding to Pay Teachers' Pensions,Workforce Group,CAPITA TP HSBC,Commercial,Funding to pay Teachers' Pensions,1001691,"198,513"
Department for Education,TEACHERS PENSION SCHEME,13/08/2013,Funding to Pay Teachers' Pensions,Workforce Group,CAPITA TP HSBC,Commercial,Funding to pay Teachers' Pensions,1001692,"50,634"
Department for Education,TEACHERS PENSION SCHEME,13/08/2013,Funding to Pay Teachers' Pensions,Workforce Group,CAPITA TP HSBC,Commercial,Funding to pay Teachers' Pensions,1001693,"231,204"
Department for Education,TEACHERS PENSION SCHEME,13/08/2013,Funding to Pay Teachers' Pensions,Workforce Group,CAPITA TP HSBC,Commercial,Funding to pay Teachers' Pensions,1001694,"237,052"
Department for Education,TEACHERS PENSION SCHEME,13/08/2013,Funding to Pay Teachers' Pensions,Workforce Group,CAPITA TP NATWEST,Commercial,Funding to pay Teachers' Pensions,1001695,"19,906,797"
Department for Education,TEACHERS PENSION SCHEME,13/08/2013,Funding to Pay Teachers' Pensions,Workforce Group,CAPITA TP NATWEST,Commercial,Funding to pay Teachers' Pensions,1001696,"52,956,516"
Department for Education,TEACHERS PENSION SCHEME,13/08/2013,Funding to Pay Teachers' Pensions,Workforce Group,CAPITA TP NATWEST,Commercial,Funding to pay Teachers' Pensions,1001697,"19,053,494"
Department for Education,TEACHERS PENSION SCHEME,13/08/2013,Funding to Pay Teachers' Pensions,Workforce Group,CAPITA TP NATWEST,Commercial,Funding to pay Teachers' Pensions,1001698,"19,069,105"
Department for Education,TEACHERS PENSION SCHEME,13/08/2013,Funding to Pay Teachers' Pensions,Workforce Group,CAPITA TP NATWEST,Commercial,Funding to pay Teachers' Pensions,1001699,"18,767,032"
Department for Education,TEACHERS PENSION SCHEME,13/08/2013,Funding to Pay Teachers' Pensions,Workforce Group,CAPITA TP NATWEST,Commercial,Funding to pay Teachers' Pensions,1001700,"20,038,182"
Department for Education,TEACHERS PENSION SCHEME,15/08/2013,Funding to Pay Teachers' Pensions,Workforce Group,CAPITA TP HSBC,Commercial,Funding to pay Teachers' Pensions,1001701,"52,290"
Department for Education,TEACHERS PENSION SCHEME,15/08/2013,Funding to Pay Teachers' Pensions,Workforce Group,CAPITA TP HSBC,Commercial,Funding to pay Teachers' Pensions,1001702,"146,875"
Department for Education,TEACHERS PENSION SCHEME,15/08/2013,Funding to Pay Teachers' Pensions,Workforce Group,CAPITA TP NATWEST,Commercial,Funding to pay Teachers' Pensions,1001703,"18,215,145"
Department for Education,TEACHERS PENSION SCHEME,15/08/2013,Funding to Pay Teachers' Pensions,Workforce Group,CAPITA TP NATWEST,Commercial,Funding to pay Teachers' Pensions,1001704,"18,504,172"
Department for Education,TEACHERS PENSION SCHEME,19/08/2013,Funding to Pay Teachers' Pensions,Workforce Group,CAPITA TP NATWEST,Commercial,Funding to pay Teachers' Pensions,1001706,"18,778,529"
Department for Education,TEACHERS PENSION SCHEME,20/08/2013,Funding to Pay Teachers' Pensions,Workforce Group,CAPITA TP HSBC,Commercial,Funding to pay Teachers' Pensions,1001707,"164,183"
Department for Education,TEACHERS PENSION SCHEME,20/08/2013,Funding to Pay Teachers' Pensions,Workforce Group,CAPITA TP NATWEST,Commercial,Funding to pay Teachers' Pensions,1001708,"52,352,074"
Department for Education,TEACHERS PENSION SCHEME,20/08/2013,Funding to Pay Teachers' Pensions,Workforce Group,CAPITA TP HSBC,Commercial,Funding to pay Teachers' Pensions,1001709,"118,502"
Department for Education,TEACHERS PENSION SCHEME,20/08/2013,Funding to Pay Teachers' Pensions,Workforce Group,CAPITA TP NATWEST,Commercial,Funding to pay Teachers' Pensions,1001710,"11,630,564"
Department for Education,TEACHERS PENSION SCHEME,21/08/2013,Funding to Pay Teachers' Pensions,Workforce Group,CAPITA TP NATWEST,Commercial,Funding to pay Teachers' Pensions,1001711,"53,158"
Department for Education,TEACHERS PENSION SCHEME,21/08/2013,Funding to Pay Teachers' Pensions,Workforce Group,CAPITA TP HSBC,Commercial,Funding to pay Teachers' Pensions,1001712,"80,827"
Department for Education,TEACHERS PENSION SCHEME,21/08/2013,Funding to Pay Teachers' Pensions,Workforce Group,CAPITA TP NATWEST,Commercial,Funding to pay Teachers' Pensions,1001713,"20,620,552"
Department for Education,TEACHERS PENSION SCHEME,22/08/2013,Funding to Pay Teachers' Pensions,Workforce Group,CAPITA TP NATWEST,Commercial,Funding to pay Teachers' Pensions,1001715,"18,470,646"
Department for Education,TEACHERS PENSION SCHEME,22/08/2013,Funding to Pay Teachers' Pensions,Workforce Group,CAPITA TP HSBC,Commercial,Funding to pay Teachers' Pensions,1001716,"338,127"
Department for Education,TEACHERS PENSION SCHEME,22/08/2013,Funding to Pay Teachers' Pensions,Workforce Group,CAPITA TP NATWEST,Commercial,Funding to pay Teachers' Pensions,1001717,"17,855,172"
Department for Education,TEACHERS PENSION SCHEME,27/08/2013,Funding to Pay Teachers' Pensions,Workforce Group,CAPITA TP HSBC,Commercial,Funding to pay Teachers' Pensions,1001718,"111,924"
Department for Education,TEACHERS PENSION SCHEME,27/08/2013,Funding to Pay Teachers' Pensions,Workforce Group,CAPITA TP NATWEST,Commercial,Funding to pay Teachers' Pensions,1001719,"103,057,381"
Department for Education,TEACHERS PENSION SCHEME,28/08/2013,Funding to Pay Teachers' Pensions,Workforce Group,CAPITA TP HSBC,Commercial,Funding to pay Teachers' Pensions,1001720,"111,057"
Department for Education,TEACHERS PENSION SCHEME,28/08/2013,Funding to Pay Teachers' Pensions,Workforce Group,CAPITA TP HSBC,Commercial,Funding to pay Teachers' Pensions,1001721,"124,992"
Department for Education,TEACHERS PENSION SCHEME,28/08/2013,Funding to Pay Teachers' Pensions,Workforce Group,CAPITA TP NATWEST,Commercial,Funding to pay Teachers' Pensions,1001722,"20,918,155"
Department for Education,TEACHERS PENSION SCHEME,28/08/2013,Funding to Pay Teachers' Pensions,Workforce Group,CAPITA TP NATWEST,Commercial,Funding to pay Teachers' Pensions,1001723,"66,621,098"
Department for Education,TEACHERS PENSION SCHEME,29/08/2013,Funding to Pay Teachers' Pensions,Workforce Group,CAPITA TP NATWEST,Commercial,Funding to pay Teachers' Pensions,1001725,"34,443,592"
Department for Education,TEACHERS PENSION SCHEME,30/08/2013,Funding to Pay Teachers' Pensions,Workforce Group,CAPITA TP HSBC,Commercial,Funding to pay Teachers' Pensions,1001726,"113,845"
Department for Education,TEACHERS PENSION SCHEME,30/08/2013,Funding to Pay Teachers' Pensions,Workforce Group,CAPITA TP NATWEST,Commercial,Funding to pay Teachers' Pensions,1001727,"17,129,871"
Department for Education,TEACHERS PENSION SCHEME,30/08/2013,Funding to Pay Teachers' Pensions,Workforce Group,CAPITA TP NATWEST,Commercial,Funding to pay Teachers' Pensions,1001729,"44,592,211"
Department for Education,DEPARTMENT FOR EDUCATION,14/08/2013,Facilities,Teachers Group,TEACHERS SUPERANN,Public Sector,Accomodation Services,2000816,"305,648"
Department for Education,DEPARTMENT FOR EDUCATION,14/08/2013,Facilities,Teachers Group,TEACHERS SUPERANN,Public Sector,Accomodation Services,2000816,"8,630"
Department for Education,DEPARTMENT FOR EDUCATION,14/08/2013,Facilities,Teachers Group,TEACHERS SUPERANN,Public Sector,Accomodation Services,2000816,"714,549"
Department for Education,DEPARTMENT FOR EDUCATION,19/08/2013,Facilities,Teachers Group,TEACHERS SUPERANN,Public Sector,Accomodation Services,2000820,"307,356"
Department for Education,DEPARTMENT FOR EDUCATION,19/08/2013,Facilities,Teachers Group,TEACHERS SUPERANN,Public Sector,Accomodation Services,2000820,"8,630"
Department for Education,DEPARTMENT FOR EDUCATION,19/08/2013,Facilities,Teachers Group,TEACHERS SUPERANN,Public Sector,Accomodation Services,2000820,"718,958"
Department for Education,DEPARTMENT FOR EDUCATION,02/08/2013,Programme costs,Curriculum and General Qualifications Reform Group,MYSCIENCE CO LTD,Commercial,Funding to deliver policies (excluding consultancy) paid to third parties via a service delivery contract,4000139014,"69,654"
Department for Education,DEPARTMENT FOR EDUCATION,05/08/2013,ICT,Participation and Vocational Education Group,STERIA LTD,Commercial,ICT Services,4000139110,"206,545"
Department for Education,DEPARTMENT FOR EDUCATION,05/08/2013,Programme costs,Teachers Group,CAPITA LIFE & PENSIONS SERVICES LTD,Commercial,Funding to deliver policies (excluding consultancy) paid to third parties via a service delivery contract,4000139131,"217,206"
Department for Education,DEPARTMENT FOR EDUCATION,05/08/2013,Programme costs,Participation and Vocational Education Group,BIS DEPARTMENT FOR BUSINESS INNOVATION & SKILLS,Central Government,Funding to deliver policies (excluding consultancy) paid to third parties via a service delivery contract,4000139146,"53,976"
Department for Education,DEPARTMENT FOR EDUCATION,07/08/2013,ICT,Education Strategy Performance Analysis Group,VODAFONE CORPORATE,Commercial,Telecoms Facilities and Services,4000139428,194
Department for Education,DEPARTMENT FOR EDUCATION,07/08/2013,ICT,Teachers Group,VODAFONE CORPORATE,Commercial,Telecoms Facilities and Services,4000139428,268
Department for Education,DEPARTMENT FOR EDUCATION,07/08/2013,ICT,Education Standards Directorate,VODAFONE CORPORATE,Commercial,Telecoms Facilities and Services,4000139428,20
Department for Education,DEPARTMENT FOR EDUCATION,07/08/2013,ICT,Education Strategy Performance Analysis Group,VODAFONE CORPORATE,Commercial,Telecoms Facilities and Services,4000139428,19
Department for Education,DEPARTMENT FOR EDUCATION,07/08/2013,ICT,Education Strategy Performance Analysis Group,VODAFONE CORPORATE,Commercial,Telecoms Facilities and Services,4000139428,19
Department for Education,DEPARTMENT FOR EDUCATION,07/08/2013,ICT,Curriculum and General Qualifications Reform Group,VODAFONE CORPORATE,Commercial,Telecoms Facilities and Services,4000139428,111
Department for Education,DEPARTMENT FOR EDUCATION,07/08/2013,ICT,Curriculum and General Qualifications Reform Group,VODAFONE CORPORATE,Commercial,Telecoms Facilities and Services,4000139428,248
Department for Education,DEPARTMENT FOR EDUCATION,07/08/2013,ICT,Curriculum and General Qualifications Reform Group,VODAFONE CORPORATE,Commercial,Telecoms Facilities and Services,4000139428,20
Department for Education,DEPARTMENT FOR EDUCATION,07/08/2013,ICT,Participation and Vocational Education Group,VODAFONE CORPORATE,Commercial,Telecoms Facilities and Services,4000139428,157
Department for Education,DEPARTMENT FOR EDUCATION,07/08/2013,ICT,Education Strategy Performance Analysis Group,VODAFONE CORPORATE,Commercial,Telecoms Facilities and Services,4000139428,293
Department for Education,DEPARTMENT FOR EDUCATION,07/08/2013,ICT,Curriculum and General Qualifications Reform Group,VODAFONE CORPORATE,Commercial,Telecoms Facilities and Services,4000139428,128
Department for Education,DEPARTMENT FOR EDUCATION,07/08/2013,ICT,Education Strategy Performance Analysis Group,VODAFONE CORPORATE,Commercial,Telecoms Facilities and Services,4000139428,120
Department for Education,DEPARTMENT FOR EDUCATION,07/08/2013,ICT,Participation and Vocational Education Group,VODAFONE CORPORATE,Commercial,Telecoms Facilities and Services,4000139428,40
Department for Education,DEPARTMENT FOR EDUCATION,07/08/2013,ICT,Education Strategy Performance Analysis Group,VODAFONE CORPORATE,Commercial,Telecoms Facilities and Services,4000139428,20
Department for Education,DEPARTMENT FOR EDUCATION,07/08/2013,ICT,Participation and Vocational Education Group,VODAFONE CORPORATE,Commercial,Telecoms Facilities and Services,4000139428,40
Department for Education,DEPARTMENT FOR EDUCATION,07/08/2013,ICT,Curriculum and General Qualifications Reform Group,VODAFONE CORPORATE,Commercial,Telecoms Facilities and Services,4000139428,97
Department for Education,DEPARTMENT FOR EDUCATION,07/08/2013,ICT,Participation and Vocational Education Group,VODAFONE CORPORATE,Commercial,Telecoms Facilities and Services,4000139428,31
Department for Education,DEPARTMENT FOR EDUCATION,07/08/2013,ICT,Participation and Vocational Education Group,VODAFONE CORPORATE,Commercial,Telecoms Facilities and Services,4000139428,151
Department for Education,DEPARTMENT FOR EDUCATION,07/08/2013,ICT,Participation and Vocational Education Group,VODAFONE CORPORATE,Commercial,Telecoms Facilities and Services,4000139428,101
Department for Education,DEPARTMENT FOR EDUCATION,07/08/2013,ICT,Participation and Vocational Education Group,VODAFONE CORPORATE,Commercial,Telecoms Facilities and Services,4000139428,210
Department for Education,DEPARTMENT FOR EDUCATION,07/08/2013,ICT,Teachers Group,VODAFONE CORPORATE,Commercial,Telecoms Facilities and Services,4000139428,303
Department for Education,DEPARTMENT FOR EDUCATION,07/08/2013,ICT,Teachers Group,VODAFONE CORPORATE,Commercial,Telecoms Facilities and Services,4000139428,119
Department for Education,DEPARTMENT FOR EDUCATION,07/08/2013,ICT,Teachers Group,VODAFONE CORPORATE,Commercial,Telecoms Facilities and Services,4000139428,56
Department for Education,DEPARTMENT FOR EDUCATION,07/08/2013,ICT,Teachers Group,VODAFONE CORPORATE,Commercial,Telecoms Facilities and Services,4000139428,188
Department for Education,DEPARTMENT FOR EDUCATION,07/08/2013,Programme costs,Education Strategy Performance Analysis Group,RESEARCH MACHINES PLC,Commercial,Funding to deliver policies (excluding consultancy) paid to third parties via a service delivery contract,4000139513,"475,642"
Department for Education,DEPARTMENT FOR EDUCATION,09/08/2013,Programme costs,Participation and Vocational Education Group,RURAL PAYMENTS AGENCY,Central Government,Funding to deliver policies (excluding consultancy) paid to third parties via a service delivery contract,4000139705,"59,751"
Department for Education,DEPARTMENT FOR EDUCATION,09/08/2013,Programme costs,Participation and Vocational Education Group,DEPARTMENT FOR BUSINESS INNOVATION & SKILLS,Central Government,Funding to deliver policies (excluding consultancy) paid to third parties via a service delivery contract,4000139789,"514,932"
Department for Education,DEPARTMENT FOR EDUCATION,09/08/2013,Operational Goods,Education Strategy Performance Analysis Group,THE STATIONERY OFFICE LTD,Commercial,Learning and Development Materials,4000139835,488
Department for Education,DEPARTMENT FOR EDUCATION,09/08/2013,Operational Goods,Teachers Group,THE STATIONERY OFFICE LTD,Commercial,Learning and Development Materials,4000139835,"4,273"
Department for Education,DEPARTMENT FOR EDUCATION,09/08/2013,Operational Goods,Curriculum and General Qualifications Reform Group,THE STATIONERY OFFICE LTD,Commercial,Learning and Development Materials,4000139835,316
Department for Education,DEPARTMENT FOR EDUCATION,12/08/2013,Travel,Education Strategy Performance Analysis Group,REDFERN TRAVEL LTD,Commercial,"Staff business travel including air, coach, ferry, rail and taxi",4000139985,"9,807"
Department for Education,DEPARTMENT FOR EDUCATION,12/08/2013,Travel,Teachers Group,REDFERN TRAVEL LTD,Commercial,"Staff business travel including air, coach, ferry, rail and taxi",4000139985,675
Department for Education,DEPARTMENT FOR EDUCATION,12/08/2013,Travel,Education Strategy Performance Analysis Group,REDFERN TRAVEL LTD,Commercial,"Staff business travel including air, coach, ferry, rail and taxi",4000139985,14
Department for Education,DEPARTMENT FOR EDUCATION,12/08/2013,Travel,Education Strategy Performance Analysis Group,REDFERN TRAVEL LTD,Commercial,"Staff business travel including air, coach, ferry, rail and taxi",4000139985,"1,614"
Department for Education,DEPARTMENT FOR EDUCATION,12/08/2013,Travel,Education Strategy Performance Analysis Group,REDFERN TRAVEL LTD,Commercial,"Staff business travel including air, coach, ferry, rail and taxi",4000139985,584
Department for Education,DEPARTMENT FOR EDUCATION,12/08/2013,Travel,Education Strategy Performance Analysis Group,REDFERN TRAVEL LTD,Commercial,"Staff business travel including air, coach, ferry, rail and taxi",4000139985,79
Department for Education,DEPARTMENT FOR EDUCATION,12/08/2013,Travel,Education Strategy Performance Analysis Group,REDFERN TRAVEL LTD,Commercial,"Staff business travel including air, coach, ferry, rail and taxi",4000139985,491
Department for Education,DEPARTMENT FOR EDUCATION,12/08/2013,Travel,Education Strategy Performance Analysis Group,REDFERN TRAVEL LTD,Commercial,"Staff business travel including air, coach, ferry, rail and taxi",4000139985,564
Department for Education,DEPARTMENT FOR EDUCATION,12/08/2013,Travel,Education Strategy Performance Analysis Group,REDFERN TRAVEL LTD,Commercial,"Staff business travel including air, coach, ferry, rail and taxi",4000139985,74
Department for Education,DEPARTMENT FOR EDUCATION,12/08/2013,Travel,Curriculum and General Qualifications Reform Group,REDFERN TRAVEL LTD,Commercial,"Staff business travel including air, coach, ferry, rail and taxi",4000139985,136
Department for Education,DEPARTMENT FOR EDUCATION,12/08/2013,Travel,Curriculum and General Qualifications Reform Group,REDFERN TRAVEL LTD,Commercial,"Staff business travel including air, coach, ferry, rail and taxi",4000139985,751
Department for Education,DEPARTMENT FOR EDUCATION,12/08/2013,Travel,Curriculum and General Qualifications Reform Group,REDFERN TRAVEL LTD,Commercial,"Staff business travel including air, coach, ferry, rail and taxi",4000139985,"3,974"
Department for Education,DEPARTMENT FOR EDUCATION,12/08/2013,Travel,Participation and Vocational Education Group,REDFERN TRAVEL LTD,Commercial,"Staff business travel including air, coach, ferry, rail and taxi",4000139985,"1,177"
Department for Education,DEPARTMENT FOR EDUCATION,12/08/2013,Travel,Education Strategy Performance Analysis Group,REDFERN TRAVEL LTD,Commercial,"Staff business travel including air, coach, ferry, rail and taxi",4000139985,"7,743"
Department for Education,DEPARTMENT FOR EDUCATION,12/08/2013,Travel,Curriculum and General Qualifications Reform Group,REDFERN TRAVEL LTD,Commercial,"Staff business travel including air, coach, ferry, rail and taxi",4000139985,"1,660"
Department for Education,DEPARTMENT FOR EDUCATION,12/08/2013,Travel,Education Strategy Performance Analysis Group,REDFERN TRAVEL LTD,Commercial,"Staff business travel including air, coach, ferry, rail and taxi",4000139985,502
Department for Education,DEPARTMENT FOR EDUCATION,12/08/2013,Travel,Participation and Vocational Education Group,REDFERN TRAVEL LTD,Commercial,"Staff business travel including air, coach, ferry, rail and taxi",4000139985,"1,083"
Department for Education,DEPARTMENT FOR EDUCATION,12/08/2013,Travel,Education Strategy Performance Analysis Group,REDFERN TRAVEL LTD,Commercial,"Staff business travel including air, coach, ferry, rail and taxi",4000139985,297
Department for Education,DEPARTMENT FOR EDUCATION,12/08/2013,Travel,Education Strategy Performance Analysis Group,REDFERN TRAVEL LTD,Commercial,"Staff business travel including air, coach, ferry, rail and taxi",4000139985,703
Department for Education,DEPARTMENT FOR EDUCATION,12/08/2013,Travel,Participation and Vocational Education Group,REDFERN TRAVEL LTD,Commercial,"Staff business travel including air, coach, ferry, rail and taxi",4000139985,70
Department for Education,DEPARTMENT FOR EDUCATION,12/08/2013,Travel,Curriculum and General Qualifications Reform Group,REDFERN TRAVEL LTD,Commercial,"Staff business travel including air, coach, ferry, rail and taxi",4000139985,"2,065"
Department for Education,DEPARTMENT FOR EDUCATION,12/08/2013,Travel,Participation and Vocational Education Group,REDFERN TRAVEL LTD,Commercial,"Staff business travel including air, coach, ferry, rail and taxi",4000139985,58
Department for Education,DEPARTMENT FOR EDUCATION,12/08/2013,Travel,Participation and Vocational Education Group,REDFERN TRAVEL LTD,Commercial,"Staff business travel including air, coach, ferry, rail and taxi",4000139985,"2,592"
Department for Education,DEPARTMENT FOR EDUCATION,12/08/2013,Travel,Participation and Vocational Education Group,REDFERN TRAVEL LTD,Commercial,"Staff business travel including air, coach, ferry, rail and taxi",4000139985,"1,615"
Department for Education,DEPARTMENT FOR EDUCATION,12/08/2013,Travel,Participation and Vocational Education Group,REDFERN TRAVEL LTD,Commercial,"Staff business travel including air, coach, ferry, rail and taxi",4000139985,"2,675"
Department for Education,DEPARTMENT FOR EDUCATION,12/08/2013,Travel,Teachers Group,REDFERN TRAVEL LTD,Commercial,"Staff business travel including air, coach, ferry, rail and taxi",4000139985,"1,248"
Department for Education,DEPARTMENT FOR EDUCATION,12/08/2013,Travel,Teachers Group,REDFERN TRAVEL LTD,Commercial,"Staff business travel including air, coach, ferry, rail and taxi",4000139985,"3,309"
Department for Education,DEPARTMENT FOR EDUCATION,12/08/2013,Travel,Teachers Group,REDFERN TRAVEL LTD,Commercial,"Staff business travel including air, coach, ferry, rail and taxi",4000139985,"2,914"
Department for Education,DEPARTMENT FOR EDUCATION,12/08/2013,Travel,Teachers Group,REDFERN TRAVEL LTD,Commercial,"Staff business travel including air, coach, ferry, rail and taxi",4000139985,"1,960"
Department for Education,DEPARTMENT FOR EDUCATION,14/08/2013,Programme costs,Teachers Group,CAPITA LIFE & PENSIONS SERVICES LTD,Commercial,Funding to deliver policies (excluding consultancy) paid to third parties via a service delivery contract,4000140342,"850,591"
Department for Education,DEPARTMENT FOR EDUCATION,15/08/2013,Professional Services Other,Education Strategy Performance Analysis Group,NFER TRADING LIMITED INV T,Commercial,Research and evaluation activities,4000140351,"30,000"
Department for Education,DEPARTMENT FOR EDUCATION,15/08/2013,Grants,Participation and Vocational Education Group,CHALLENGER TROOP,VCS,Grants to third sector organisations / not for profit organisations,4000140372,"45,686"
Department for Education,DEPARTMENT FOR EDUCATION,15/08/2013,ICT,Education Strategy Performance Analysis Group,CAPGEMINI UK PLC,Commercial,ICT Services,4000140413,"27,912"
Department for Education,DEPARTMENT FOR EDUCATION,16/08/2013,ICT,Education Strategy Performance Analysis Group,CAPGEMINI UK PLC,Commercial,ICT Services,4000140551,"83,656"
Department for Education,DEPARTMENT FOR EDUCATION,16/08/2013,Professional Services Other,Teachers Group,PROLOG,Commercial,Interpretations and translation services,4000140623,582
Department for Education,DEPARTMENT FOR EDUCATION,16/08/2013,Grants,Participation and Vocational Education Group,KNOWSLEY SKILLS ACADEMY,Public Sector,Grants to third sector organisations / not for profit organisations,4000140650,"26,816"
Department for Education,DEPARTMENT FOR EDUCATION,16/08/2013,Grants,Curriculum and General Qualifications Reform Group,PSHE ASSOCIATION,VCS,Grants to third sector organisations / not for profit organisations,4000140700,"25,000"
Department for Education,DEPARTMENT FOR EDUCATION,19/08/2013,Grants,Curriculum and General Qualifications Reform Group,CATHOLIC EDUCATION SERVICE,Public Sector,Grants to third sector organisations / not for profit organisations,4000140735,"116,700"
Department for Education,DEPARTMENT FOR EDUCATION,19/08/2013,Programme costs,Teachers Group,CAPITA LIFE & PENSIONS SERVICES LTD,Commercial,Funding to deliver policies (excluding consultancy) paid to third parties via a service delivery contract,4000140794,"143,369"
Department for Education,DEPARTMENT FOR EDUCATION,19/08/2013,ICT,Education Strategy Performance Analysis Group,SOFTWARE FOR DATA ANALYSIS LTD,Commercial,ICT Services,4000140825,"167,000"
Department for Education,DEPARTMENT FOR EDUCATION,20/08/2013,Programme costs,Teachers Group,GOVERNMENT ACTUARYS DEPARTMENT GAD,Central Government,Funding to deliver policies (excluding consultancy) paid to third parties via a service delivery contract,4000140949,"49,095"
Department for Education,DEPARTMENT FOR EDUCATION,20/08/2013,Grants,Participation and Vocational Education Group,CSABT LIMITED MUSIC & DANCE SCHEME,Public Sector,Grants to third sector organisations / not for profit organisations,4000140979,"8,140,159"
Department for Education,DEPARTMENT FOR EDUCATION,20/08/2013,Programme costs,Curriculum and General Qualifications Reform Group,MATHEMATICS IN EDUCATION & INDUSTRY,VCS,Funding to deliver policies (excluding consultancy) paid to third parties via a service delivery contract,4000140990,"148,500"
Department for Education,DEPARTMENT FOR EDUCATION,20/08/2013,Programme costs,Curriculum and General Qualifications Reform Group,MYSCIENCE CO LTD,Commercial,Funding to deliver policies (excluding consultancy) paid to third parties via a service delivery contract,4000140992,"592,926"
Department for Education,DEPARTMENT FOR EDUCATION,21/08/2013,Grants,Curriculum and General Qualifications Reform Group,NATIONAL SOCIETY C OF E,VCS,Grants to third sector organisations / not for profit organisations,4000141082,"35,950"
Department for Education,DEPARTMENT FOR EDUCATION,22/08/2013,Professional Services Other,Teachers Group,THE FINANCIAL REPORTING COUNCIL,Central Government,"Fees / expenses of professionals from the private sector, for example to implement advice or changes",4000141354,"42,909"
Department for Education,DEPARTMENT FOR EDUCATION,23/08/2013,Communications,Education Strategy Performance Analysis Group,SCISYS UK LTD,Commercial,Marketing services,4000141396,"25,000"
Department for Education,DEPARTMENT FOR EDUCATION,23/08/2013,Grants,Curriculum and General Qualifications Reform Group,STEMNET,VCS,Grants to third sector organisations / not for profit organisations,4000141406,"50,000"
Department for Education,DEPARTMENT FOR EDUCATION,27/08/2013,Programme costs,Curriculum and General Qualifications Reform Group,TRIBAL EDUCATION LIMITED,Commercial,Funding to deliver policies (excluding consultancy) paid to third parties via a service delivery contract,4000141557,"140,054"
Department for Education,DEPARTMENT FOR EDUCATION,27/08/2013,ICT,Education Strategy Performance Analysis Group,ATKINS LTD,Commercial,ICT Services,4000141618,"173,834"
Department for Education,DEPARTMENT FOR EDUCATION,28/08/2013,Programme costs,Teachers Group,BABCOCK 4S LTD,Commercial,Funding to deliver policies (excluding consultancy) paid to third parties via a service delivery contract,4000141725,"69,633"
Department for Education,DEPARTMENT FOR EDUCATION,30/08/2013,Communications,Education Strategy Performance Analysis Group,RM EDUCATION,Commercial,Marketing services,4000141974,"76,604"
Department for Education,DEPARTMENT FOR EDUCATION,07/08/2013,ICT,Finance and Commercial Group,VODAFONE CORPORATE,Commercial,Telecoms Facilities and Services,4000139428,7
Department for Education,DEPARTMENT FOR EDUCATION,07/08/2013,ICT,Finance and Commercial Group,VODAFONE CORPORATE,Commercial,Telecoms Facilities and Services,4000139428,40
Department for Education,DEPARTMENT FOR EDUCATION,07/08/2013,ICT,Finance and Commercial Group,VODAFONE CORPORATE,Commercial,Telecoms Facilities and Services,4000139428,19
Department for Education,DEPARTMENT FOR EDUCATION,07/08/2013,ICT,Finance and Commercial Group,VODAFONE CORPORATE,Commercial,Telecoms Facilities and Services,4000139428,20
Department for Education,DEPARTMENT FOR EDUCATION,07/08/2013,ICT,Finance and Commercial Group,VODAFONE CORPORATE,Commercial,Telecoms Facilities and Services,4000139428,"1,753"
Department for Education,DEPARTMENT FOR EDUCATION,07/08/2013,ICT,Finance and Commercial Group,VODAFONE CORPORATE,Commercial,Telecoms Facilities and Services,4000139428,20
Department for Education,DEPARTMENT FOR EDUCATION,07/08/2013,ICT,Finance and Commercial Group,VODAFONE CORPORATE,Commercial,Telecoms Facilities and Services,4000139428,20
Department for Education,DEPARTMENT FOR EDUCATION,07/08/2013,ICT,Finance and Commercial Group,VODAFONE CORPORATE,Commercial,Telecoms Facilities and Services,4000139428,7
Department for Education,DEPARTMENT FOR EDUCATION,07/08/2013,ICT,ALB Reform Group,VODAFONE CORPORATE,Commercial,Telecoms Facilities and Services,4000139428,162
Department for Education,DEPARTMENT FOR EDUCATION,07/08/2013,ICT,Finance and Commercial Group,VODAFONE CORPORATE,Commercial,Telecoms Facilities and Services,4000139428,20
Department for Education,DEPARTMENT FOR EDUCATION,07/08/2013,ICT,Finance and Commercial Group,VODAFONE CORPORATE,Commercial,Telecoms Facilities and Services,4000139428,20
Department for Education,DEPARTMENT FOR EDUCATION,07/08/2013,ICT,Finance and Commercial Group,VODAFONE CORPORATE,Commercial,Telecoms Facilities and Services,4000139428,173
Department for Education,DEPARTMENT FOR EDUCATION,09/08/2013,Professional Services Consultancy and Contingent Labour,Finance and Commercial Group,CAPITA RESOURCING LTD,Commercial,Costs related to temporary workers,4000139775,"8,917"
Department for Education,DEPARTMENT FOR EDUCATION,12/08/2013,Travel,Finance and Commercial Group,REDFERN TRAVEL LTD,Commercial,"Staff business travel including air, coach, ferry, rail and taxi",4000139985,"24,217"
Department for Education,DEPARTMENT FOR EDUCATION,12/08/2013,Travel,Finance and Commercial Group,REDFERN TRAVEL LTD,Commercial,"Staff business travel including air, coach, ferry, rail and taxi",4000139985,163
Department for Education,DEPARTMENT FOR EDUCATION,12/08/2013,Travel,ALB Reform Group,REDFERN TRAVEL LTD,Commercial,"Staff business travel including air, coach, ferry, rail and taxi",4000139985,"5,112"
Department for Education,DEPARTMENT FOR EDUCATION,12/08/2013,Travel,Finance and Commercial Group,REDFERN TRAVEL LTD,Commercial,"Staff business travel including air, coach, ferry, rail and taxi",4000139985,470
Department for Education,DEPARTMENT FOR EDUCATION,12/08/2013,Travel,Finance and Commercial Group,REDFERN TRAVEL LTD,Commercial,"Staff business travel including air, coach, ferry, rail and taxi",4000139985,693
Department for Education,DEPARTMENT FOR EDUCATION,12/08/2013,Travel,Finance and Commercial Group,REDFERN TRAVEL LTD,Commercial,"Staff business travel including air, coach, ferry, rail and taxi",4000139985,"7,103"
Department for Education,DEPARTMENT FOR EDUCATION,16/08/2013,Professional Services Consultancy and Contingent Labour,Finance and Commercial Group,CAPITA RESOURCING LTD,Commercial,Costs related to temporary workers,4000140613,"10,270"
Department for Education,DEPARTMENT FOR EDUCATION,28/08/2013,Professional Services Consultancy and Contingent Labour,Finance and Commercial Group,CAPITA RESOURCING LTD,Commercial,Costs related to temporary workers,4000141676,"2,679"
Department for Education,DEPARTMENT FOR EDUCATION,30/08/2013,Personnel Related,Finance and Commercial Group,GBS RE CO CIVIL SUPERANNUATION,Central Government,Payments in relation to transfer of pension payments from local government to PCSPS,2000825,"3,514,633"
Department for Education,DEPARTMENT FOR EDUCATION,05/08/2013,Facilities,Finance and Commercial Group - Property Asset Management,INTERSERVE FACILITIES MANAGEMENT LTD,Commercial,"Building maintenance and repair, including repainting, replacing flooring, etc.",4000139172,"44,819"
Department for Education,DEPARTMENT FOR EDUCATION,05/08/2013,Facilities,Finance and Commercial Group - Property Asset Management,AMEY,Commercial,"Building maintenance and repair, including repainting, replacing flooring, etc.",4000139222,"8,979"
Department for Education,DEPARTMENT FOR EDUCATION,05/08/2013,Facilities,Finance and Commercial Group - Property Asset Management,AMEY,Commercial,"Building maintenance and repair, including repainting, replacing flooring, etc.",4000139222,"24,478"
Department for Education,DEPARTMENT FOR EDUCATION,07/08/2013,ICT,Finance and Commercial Group - Property Asset Management,VODAFONE CORPORATE,Commercial,Telecoms Facilities and Services,4000139428,19
Department for Education,DEPARTMENT FOR EDUCATION,07/08/2013,ICT,Finance and Commercial Group - Property Asset Management,VODAFONE CORPORATE,Commercial,Telecoms Facilities and Services,4000139428,20
Department for Education,DEPARTMENT FOR EDUCATION,07/08/2013,ICT,Finance and Commercial Group - Property Asset Management,VODAFONE CORPORATE,Commercial,Telecoms Facilities and Services,4000139428,38
Department for Education,DEPARTMENT FOR EDUCATION,07/08/2013,ICT,Finance and Commercial Group - Property Asset Management,VODAFONE CORPORATE,Commercial,Telecoms Facilities and Services,4000139428,39
Department for Education,DEPARTMENT FOR EDUCATION,07/08/2013,ICT,Finance and Commercial Group - Property Asset Management,VODAFONE CORPORATE,Commercial,Telecoms Facilities and Services,4000139428,20
Department for Education,DEPARTMENT FOR EDUCATION,07/08/2013,ICT,Finance and Commercial Group - Property Asset Management,VODAFONE CORPORATE,Commercial,Telecoms Facilities and Services,4000139428,595
Department for Education,DEPARTMENT FOR EDUCATION,07/08/2013,ICT,Finance and Commercial Group,VODAFONE CORPORATE,Commercial,Telecoms Facilities and Services,4000139428,185
Department for Education,DEPARTMENT FOR EDUCATION,07/08/2013,ICT,Finance and Commercial Group - Property Asset Management,VODAFONE CORPORATE,Commercial,Telecoms Facilities and Services,4000139428,11
Department for Education,DEPARTMENT FOR EDUCATION,12/08/2013,Facilities,Finance and Commercial Group - Property Asset Management,INTERSERVE FACILITIES MANAGEMENT LTD,Commercial,"Building maintenance and repair, including repainting, replacing flooring, etc.",4000139941,"312,742"
Department for Education,DEPARTMENT FOR EDUCATION,12/08/2013,Facilities,Finance and Commercial Group - Property Asset Management,INTERSERVE FACILITIES MANAGEMENT LTD,Commercial,"Building maintenance and repair, including repainting, replacing flooring, etc.",4000139941,"25,668"
Department for Education,DEPARTMENT FOR EDUCATION,12/08/2013,Travel,Finance and Commercial Group - Property Asset Management,REDFERN TRAVEL LTD,Commercial,"Staff business travel including air, coach, ferry, rail and taxi",4000139985,46
Department for Education,DEPARTMENT FOR EDUCATION,12/08/2013,Travel,Finance and Commercial Group - Property Asset Management,REDFERN TRAVEL LTD,Commercial,"Staff business travel including air, coach, ferry, rail and taxi",4000139985,"6,451"
Department for Education,DEPARTMENT FOR EDUCATION,12/08/2013,Travel,Finance and Commercial Group,REDFERN TRAVEL LTD,Commercial,"Staff business travel including air, coach, ferry, rail and taxi",4000139985,"1,789"
Department for Education,DEPARTMENT FOR EDUCATION,12/08/2013,Travel,Finance and Commercial Group - Property Asset Management,REDFERN TRAVEL LTD,Commercial,"Staff business travel including air, coach, ferry, rail and taxi",4000139985,173
Department for Education,DEPARTMENT FOR EDUCATION,20/08/2013,Energy and Fuels,Finance and Commercial Group - Property Asset Management,EDF ENERGY LTD,Commercial,Electricity supply,4000140987,"136,358"
Department for Education,DEPARTMENT FOR EDUCATION,27/08/2013,Facilities,Finance and Commercial Group - Property Asset Management,EC HARRIS LLP,Commercial,Property Management,4000141538,"53,806"
Department for Education,DEPARTMENT FOR EDUCATION,28/08/2013,Facilities,Finance and Commercial Group - Property Asset Management,GVA GRIMLEY LTD,Commercial,Business Rates,4000141697,"710,635"
Department for Education,DEPARTMENT FOR EDUCATION,12/08/2013,Grants,Free School Group,ASPIRE FREE SCHOOL ACADEMY TRUST,Public Sector,"Grants paid to organisations including agencies, arms length bodies and educational establishments",1001223,"66,000"
Department for Education,DEPARTMENT FOR EDUCATION,12/08/2013,Grants,Free School Group,HARLOW EDUCATION CONSORTIUM,Public Sector,"Grants paid to organisations including agencies, arms length bodies and educational establishments",1001225,"66,000"
Department for Education,DEPARTMENT FOR EDUCATION,12/08/2013,Grants,Free School Group,CITY GATEWAY 14-19 PROVISION,Public Sector,"Grants paid to organisations including agencies, arms length bodies and educational establishments",1001226,"132,000"
Department for Education,DEPARTMENT FOR EDUCATION,12/08/2013,Grants,Free School Group,PERRY BEECHES ACADEMY,Public Sector,"Grants paid to organisations including agencies, arms length bodies and educational establishments",1001227,"90,000"
Department for Education,DEPARTMENT FOR EDUCATION,12/08/2013,Grants,Free School Group,PERRY BEECHES ACADEMY,Public Sector,"Grants paid to organisations including agencies, arms length bodies and educational establishments",1001228,"175,000"
Department for Education,DEPARTMENT FOR EDUCATION,12/08/2013,Grants,Free School Group,TAUHEEDUL FREE SCHOOLS TRUST,Public Sector,"Grants paid to organisations including agencies, arms length bodies and educational establishments",1001230,"450,000"
Department for Education,DEPARTMENT FOR EDUCATION,12/08/2013,Grants,Free School Group,LONDON DESIGN & ENGINEERING UTC,Public Sector,"Grants paid to organisations including agencies, arms length bodies and educational establishments",1001231,"60,000"
Department for Education,DEPARTMENT FOR EDUCATION,12/08/2013,Grants,Free School Group,THE MARCO POLO ACADEMY TRUST,Public Sector,"Grants paid to organisations including agencies, arms length bodies and educational establishments",1001232,"66,000"
Department for Education,DEPARTMENT FOR EDUCATION,12/08/2013,Grants,Free School Group,CANARY WHARF COLLEGE,Public Sector,"Grants paid to organisations including agencies, arms length bodies and educational establishments",1001233,"66,000"
Department for Education,DEPARTMENT FOR EDUCATION,19/08/2013,Grants,Academies Delivery Group,ORCHARD HILL COLLEGE,Public Sector,"Grants paid to organisations including agencies, arms length bodies and educational establishments",1001236,"120,000"
Department for Education,DEPARTMENT FOR EDUCATION,22/08/2013,Grants,Academies Delivery Group,OUTWOOD GRANGE ACADEMY TRUST,Public Sector,"Grants paid to organisations including agencies, arms length bodies and educational establishments",1001240,"200,000"
Department for Education,DEPARTMENT FOR EDUCATION,22/08/2013,Grants,Free School Group,WEST HERTS COMMUNITY FREE SCHOOL TRUST,Public Sector,"Grants paid to organisations including agencies, arms length bodies and educational establishments",1001241,"66,000"
Department for Education,DEPARTMENT FOR EDUCATION,22/08/2013,Grants,Free School Group,THE ROSEDALE HEWENS ACADEMIES TRUST,Public Sector,"Grants paid to organisations including agencies, arms length bodies and educational establishments",1001242,"90,000"
Department for Education,DEPARTMENT FOR EDUCATION,27/08/2013,Grants,Free School Group,CHAPEL STREET COMMUNITY SCHOOLS TRUST,Public Sector,"Grants paid to organisations including agencies, arms length bodies and educational establishments",1001243,"156,000"
Department for Education,DEPARTMENT FOR EDUCATION,27/08/2013,Grants,Free School Group,GLADSTONE SCHOOL,Public Sector,"Grants paid to organisations including agencies, arms length bodies and educational establishments",1001244,"90,000"
Department for Education,DEPARTMENT FOR EDUCATION,27/08/2013,Grants,Free School Group,WEST HERTS COMMUNITY FREE SCHOOL TRUST,Public Sector,"Grants paid to organisations including agencies, arms length bodies and educational establishments",1001245,"132,000"
Department for Education,DEPARTMENT FOR EDUCATION,30/08/2013,Grants,Free School Group,LIPA PRIMARY SCHOOL,Public Sector,"Grants paid to organisations including agencies, arms length bodies and educational establishments",1001247,"66,000"
Department for Education,DEPARTMENT FOR EDUCATION,30/08/2013,Grants,Free School Group,WEEL TRUST,VCS,"Grants paid to organisations including agencies, arms length bodies and educational establishments",1001248,"90,000"
Department for Education,DEPARTMENT FOR EDUCATION,30/08/2013,Grants,Academies Delivery Group,HARRIS FEDERATION,Public Sector,"Grants paid to organisations including agencies, arms length bodies and educational establishments",1001249,"120,000"
Department for Education,DEPARTMENT FOR EDUCATION,30/08/2013,Grants,Free School Group,THE PHOENIX FAMILY OF SCHOOLS ACADEMY TRUST,Public Sector,"Grants paid to organisations including agencies, arms length bodies and educational establishments",1001250,"163,001"
Department for Education,DEPARTMENT FOR EDUCATION,30/08/2013,Grants,Academies Delivery Group,THE JCB ACADEMY,Public Sector,Capital grants paid to a private sector organisation,1001252,"400,000"
Department for Education,DEPARTMENT FOR EDUCATION,30/08/2013,Grants,Academies Delivery Group,SLOUGH GRAMMAR SCHOOL,Public Sector,"Grants paid to organisations including agencies, arms length bodies and educational establishments",1001253,"45,000"
Department for Education,DEPARTMENT FOR EDUCATION,30/08/2013,Grants,Free School Group,DV8 ACADEMY TRUST,Public Sector,"Grants paid to organisations including agencies, arms length bodies and educational establishments",1001254,"75,000"
Department for Education,DEPARTMENT FOR EDUCATION,30/08/2013,Grants,Free School Group,TOWER HAMLETS ENTERPRISE ACADEMY,Public Sector,"Grants paid to organisations including agencies, arms length bodies and educational establishments",1001255,"90,000"
Department for Education,DEPARTMENT FOR EDUCATION,30/08/2013,Grants,Free School Group,WAC FREE SCHOOL,Public Sector,"Grants paid to organisations including agencies, arms length bodies and educational establishments",1001256,"66,000"
Department for Education,DEPARTMENT FOR EDUCATION,30/08/2013,Grants,Free School Group,TOTTENHAM UTC,Public Sector,"Grants paid to organisations including agencies, arms length bodies and educational establishments",1001257,"90,000"
Department for Education,DEPARTMENT FOR EDUCATION,30/08/2013,Grants,Free School Group,MARYLEBONE SCHOOL,Public Sector,"Grants paid to organisations including agencies, arms length bodies and educational establishments",1001258,"90,000"
Department for Education,DEPARTMENT FOR EDUCATION,30/08/2013,Grants,Free School Group,SCIENCE UTC OXFORDSHIRE,Public Sector,"Grants paid to organisations including agencies, arms length bodies and educational establishments",1001259,"60,000"
Department for Education,DEPARTMENT FOR EDUCATION,30/08/2013,Grants,Free School Group,AUTISM SCHOOLS TRUST,Public Sector,"Grants paid to organisations including agencies, arms length bodies and educational establishments",1001260,"66,000"
Department for Education,DEPARTMENT FOR EDUCATION,15/08/2013,Grants,System Reform Group,DEPARTMENT FOR COMMUNTIES & LOCAL GOVERNMENT,Central Government,Current grant funding to other government departments for DfE's contribution to jointly funded programmes ,2000817,"16,427,498"
Department for Education,DEPARTMENT FOR EDUCATION,01/08/2013,Grants,Office of the Schools Commissioner Group,GEORGE SPENCER ACADEMY,Public Sector,"Grants paid to organisations including agencies, arms length bodies and educational establishments",4000138770,"89,250"
Department for Education,DEPARTMENT FOR EDUCATION,01/08/2013,Grants,Office of the Schools Commissioner Group,MONTENEY PRIMARY SCHOOL,Public Sector,"Grants paid to organisations including agencies, arms length bodies and educational establishments",4000138854,"80,000"
Department for Education,DEPARTMENT FOR EDUCATION,01/08/2013,Grants,Free School Group,BRISTOL & S GLOUCESTERSHIRE UTC,Public Sector,"Grants paid to organisations including agencies, arms length bodies and educational establishments",4000138866,"67,453"
Department for Education,DEPARTMENT FOR EDUCATION,02/08/2013,Grants,Academies Delivery Group,THE DEAN TRUST,Public Sector,"Grants paid to organisations including agencies, arms length bodies and educational establishments",4000138890,"100,000"
Department for Education,DEPARTMENT FOR EDUCATION,02/08/2013,Grants,Office of the Schools Commissioner Group,SOLENT ACADEMIES TRUST,Public Sector,"Grants paid to organisations including agencies, arms length bodies and educational establishments",4000138921,"28,900"
Department for Education,DEPARTMENT FOR EDUCATION,02/08/2013,Grants,Office of the Schools Commissioner Group,SAFFRON ACADEMY TRUST,Public Sector,"Grants paid to organisations including agencies, arms length bodies and educational establishments",4000138928,"97,836"
Department for Education,DEPARTMENT FOR EDUCATION,05/08/2013,Grants,Free School Group,THE REACH FREE SCHOOL TRUST,Public Sector,"Grants paid to organisations including agencies, arms length bodies and educational establishments",4000139080,"44,100"
Department for Education,DEPARTMENT FOR EDUCATION,05/08/2013,Grants,Academies Delivery Group,DIOCESE OF CANTERBURY ACADEMIES CO LTD,Public Sector,"Grants paid to organisations including agencies, arms length bodies and educational establishments",4000139099,"120,000"
Department for Education,DEPARTMENT FOR EDUCATION,05/08/2013,Programme costs,Academies Delivery Group,NAVIGANT CONSULTING,Commercial,Funding to deliver policies (excluding consultancy) paid to third parties via a service delivery contract,4000139174,"32,529"
Department for Education,DEPARTMENT FOR EDUCATION,05/08/2013,Grants,Free School Group,NEW SCHOOL NETWORK,VCS,"Grants paid to organisations including agencies, arms length bodies and educational establishments",4000139224,"60,697"
Department for Education,DEPARTMENT FOR EDUCATION,06/08/2013,Grants,Academies Delivery Group,ARK SCHOOLS,Public Sector,"Grants paid to organisations including agencies, arms length bodies and educational establishments",4000139279,"25,000"
Department for Education,DEPARTMENT FOR EDUCATION,06/08/2013,Grants,Academies Delivery Group,BLACKBIRD ACADEMY TRUST,Public Sector,"Grants paid to organisations including agencies, arms length bodies and educational establishments",4000139290,"240,000"
Department for Education,DEPARTMENT FOR EDUCATION,06/08/2013,Grants,Academies Delivery Group,NORTHERN EDUCATION TRUST,Public Sector,"Grants paid to organisations including agencies, arms length bodies and educational establishments",4000139294,"25,000"
Department for Education,DEPARTMENT FOR EDUCATION,06/08/2013,Grants,Academies Delivery Group,BEAUFORT COMMUNITY PRIMARY SCHOOL,Public Sector,"Grants paid to organisations including agencies, arms length bodies and educational establishments",4000139309,"25,000"
Department for Education,DEPARTMENT FOR EDUCATION,06/08/2013,Grants,Academies Delivery Group,BARNWELL PRIMARY SCHOOL,Public Sector,"Grants paid to organisations including agencies, arms length bodies and educational establishments",4000139310,"25,000"
Department for Education,DEPARTMENT FOR EDUCATION,06/08/2013,Grants,Academies Delivery Group,HUMBERSTONE JUNIOR ACADEMY,Public Sector,"Grants paid to organisations including agencies, arms length bodies and educational establishments",4000139311,"25,000"
Department for Education,DEPARTMENT FOR EDUCATION,06/08/2013,Grants,Academies Delivery Group,SEVERNDALE SPECIALIST SCHOOL,Public Sector,"Grants paid to organisations including agencies, arms length bodies and educational establishments",4000139313,"25,000"
Department for Education,DEPARTMENT FOR EDUCATION,06/08/2013,Grants,Academies Delivery Group,SOLENT ACADEMIES TRUST,Public Sector,"Grants paid to organisations including agencies, arms length bodies and educational establishments",4000139314,"60,000"
Department for Education,DEPARTMENT FOR EDUCATION,06/08/2013,Grants,Academies Delivery Group,LANDULPH SCHOOL,Public Sector,"Grants paid to organisations including agencies, arms length bodies and educational establishments",4000139322,"25,000"
Department for Education,DEPARTMENT FOR EDUCATION,06/08/2013,Grants,Academies Delivery Group,GLYN SCHOOL,Public Sector,"Grants paid to organisations including agencies, arms length bodies and educational establishments",4000139328,"130,000"
Department for Education,DEPARTMENT FOR EDUCATION,06/08/2013,Grants,Academies Delivery Group,ST ETHELBERTS CATHOLIC PRIMARY SCHOOL,Public Sector,"Grants paid to organisations including agencies, arms length bodies and educational establishments",4000139360,"25,000"
Department for Education,DEPARTMENT FOR EDUCATION,06/08/2013,Grants,Academies Delivery Group,FARNBOROUGH PRIMARY SCHOOL,Public Sector,"Grants paid to organisations including agencies, arms length bodies and educational establishments",4000139369,"50,000"
Department for Education,DEPARTMENT FOR EDUCATION,06/08/2013,Grants,Academies Delivery Group,HORSELL VILLAGE SCHOOL,Public Sector,"Grants paid to organisations including agencies, arms length bodies and educational establishments",4000139373,"25,000"
Department for Education,DEPARTMENT FOR EDUCATION,06/08/2013,Grants,Academies Delivery Group,DANE COURT GRAMMAR SCHOOL,Public Sector,"Grants paid to organisations including agencies, arms length bodies and educational establishments",4000139386,"40,000"
Department for Education,DEPARTMENT FOR EDUCATION,06/08/2013,Grants,Academies Delivery Group,GREENWOOD ACADEMIES TRUST,Public Sector,"Grants paid to organisations including agencies, arms length bodies and educational establishments",4000139390,"155,000"
Department for Education,DEPARTMENT FOR EDUCATION,06/08/2013,Grants,Academies Delivery Group,ST GILES SCHOOL,Public Sector,"Grants paid to organisations including agencies, arms length bodies and educational establishments",4000139391,"25,000"
Department for Education,DEPARTMENT FOR EDUCATION,07/08/2013,ICT,Free School Group,VODAFONE CORPORATE,Commercial,Telecoms Facilities and Services,4000139428,"1,155"
Department for Education,DEPARTMENT FOR EDUCATION,07/08/2013,ICT,System Reform Group,VODAFONE CORPORATE,Commercial,Telecoms Facilities and Services,4000139428,217
Department for Education,DEPARTMENT FOR EDUCATION,07/08/2013,ICT,Education Funding Group,VODAFONE CORPORATE,Commercial,Telecoms Facilities and Services,4000139428,182
Department for Education,DEPARTMENT FOR EDUCATION,07/08/2013,ICT,System Reform Group,VODAFONE CORPORATE,Commercial,Telecoms Facilities and Services,4000139428,214
Department for Education,DEPARTMENT FOR EDUCATION,07/08/2013,ICT,System Reform Group,VODAFONE CORPORATE,Commercial,Telecoms Facilities and Services,4000139428,139
Department for Education,DEPARTMENT FOR EDUCATION,07/08/2013,ICT,System Reform Group,VODAFONE CORPORATE,Commercial,Telecoms Facilities and Services,4000139428,39
Department for Education,DEPARTMENT FOR EDUCATION,07/08/2013,ICT,System Reform Group,VODAFONE CORPORATE,Commercial,Telecoms Facilities and Services,4000139428,716
Department for Education,DEPARTMENT FOR EDUCATION,07/08/2013,ICT,System Reform Group,VODAFONE CORPORATE,Commercial,Telecoms Facilities and Services,4000139428,39
Department for Education,DEPARTMENT FOR EDUCATION,07/08/2013,ICT,System Reform Group,VODAFONE CORPORATE,Commercial,Telecoms Facilities and Services,4000139428,39
Department for Education,DEPARTMENT FOR EDUCATION,07/08/2013,ICT,Education Funding Group,VODAFONE CORPORATE,Commercial,Telecoms Facilities and Services,4000139428,58
Department for Education,DEPARTMENT FOR EDUCATION,07/08/2013,ICT,Education Funding Group,VODAFONE CORPORATE,Commercial,Telecoms Facilities and Services,4000139428,265
Department for Education,DEPARTMENT FOR EDUCATION,07/08/2013,ICT,System Reform Group,VODAFONE CORPORATE,Commercial,Telecoms Facilities and Services,4000139428,20
Department for Education,DEPARTMENT FOR EDUCATION,07/08/2013,ICT,Infrastructure and Funding Directorate Support,VODAFONE CORPORATE,Commercial,Telecoms Facilities and Services,4000139428,86
Department for Education,DEPARTMENT FOR EDUCATION,07/08/2013,ICT,Education Funding Group,VODAFONE CORPORATE,Commercial,Telecoms Facilities and Services,4000139428,33
Department for Education,DEPARTMENT FOR EDUCATION,07/08/2013,ICT,Free School Group,VODAFONE CORPORATE,Commercial,Telecoms Facilities and Services,4000139428,77
Department for Education,DEPARTMENT FOR EDUCATION,07/08/2013,ICT,Academies Delivery Group,VODAFONE CORPORATE,Commercial,Telecoms Facilities and Services,4000139428,"1,080"
Department for Education,DEPARTMENT FOR EDUCATION,07/08/2013,ICT,Office of the Schools Commissioner Group,VODAFONE CORPORATE,Commercial,Telecoms Facilities and Services,4000139428,391
Department for Education,DEPARTMENT FOR EDUCATION,07/08/2013,ICT,Academies Delivery Group,VODAFONE CORPORATE,Commercial,Telecoms Facilities and Services,4000139428,19
Department for Education,DEPARTMENT FOR EDUCATION,07/08/2013,ICT,Academies Delivery Group,VODAFONE CORPORATE,Commercial,Telecoms Facilities and Services,4000139428,"1,023"
Department for Education,DEPARTMENT FOR EDUCATION,07/08/2013,ICT,Academies Delivery Group,VODAFONE CORPORATE,Commercial,Telecoms Facilities and Services,4000139428,318
Department for Education,DEPARTMENT FOR EDUCATION,07/08/2013,ICT,Academies Delivery Group,VODAFONE CORPORATE,Commercial,Telecoms Facilities and Services,4000139428,80
Department for Education,DEPARTMENT FOR EDUCATION,07/08/2013,ICT,Office of the Schools Commissioner Group,VODAFONE CORPORATE,Commercial,Telecoms Facilities and Services,4000139428,132
Department for Education,DEPARTMENT FOR EDUCATION,07/08/2013,ICT,Free School Group,VODAFONE CORPORATE,Commercial,Telecoms Facilities and Services,4000139428,105
Department for Education,DEPARTMENT FOR EDUCATION,07/08/2013,ICT,Free School Group,VODAFONE CORPORATE,Commercial,Telecoms Facilities and Services,4000139428,39
Department for Education,DEPARTMENT FOR EDUCATION,07/08/2013,ICT,Free School Group,VODAFONE CORPORATE,Commercial,Telecoms Facilities and Services,4000139428,19
Department for Education,DEPARTMENT FOR EDUCATION,07/08/2013,ICT,System Reform Group,VODAFONE CORPORATE,Commercial,Telecoms Facilities and Services,4000139428,38
Department for Education,DEPARTMENT FOR EDUCATION,08/08/2013,Grants,Academies Delivery Group,ACADEMY ENTERPRISE TRUST,Public Sector,Capital grants paid to a private sector organisation,4000139518,"90,031"
Department for Education,DEPARTMENT FOR EDUCATION,08/08/2013,Grants,Academies Delivery Group,GRIFFIN SCHOOLS TRUST,Public Sector,"Grants paid to organisations including agencies, arms length bodies and educational establishments",4000139584,"120,000"
Department for Education,DEPARTMENT FOR EDUCATION,08/08/2013,Grants,Office of the Schools Commissioner Group,DIOCESE OF NORWICH,Public Sector,"Grants paid to organisations including agencies, arms length bodies and educational establishments",4000139613,"85,000"
Department for Education,DEPARTMENT FOR EDUCATION,08/08/2013,Grants,Academies Delivery Group,WINDMILL PRIMARY SCHOOL,Public Sector,"Grants paid to organisations including agencies, arms length bodies and educational establishments",4000139616,"25,000"
Department for Education,DEPARTMENT FOR EDUCATION,08/08/2013,Grants,Academies Delivery Group,ONE WORLD LEARINING TRUST BRCA,Public Sector,Capital grants paid to a private sector organisation,4000139623,"30,346"
Department for Education,DEPARTMENT FOR EDUCATION,08/08/2013,Grants,Academies Delivery Group,ST CHRISTOPHERS COFE MULTI ACADEMY TRUST,Public Sector,"Grants paid to organisations including agencies, arms length bodies and educational establishments",4000139628,"120,000"
Department for Education,DEPARTMENT FOR EDUCATION,09/08/2013,Grants,Academies Delivery Group,MANOR SCHOOL SPORTS COLLEGE ACADEMY TRUST,Public Sector,"Grants paid to organisations including agencies, arms length bodies and educational establishments",4000139696,"65,000"
Department for Education,DEPARTMENT FOR EDUCATION,09/08/2013,Grants,Academies Delivery Group,THE HOLY FAMILY CATHOLIC SCHOOL,Public Sector,"Grants paid to organisations including agencies, arms length bodies and educational establishments",4000139697,"25,000"
Department for Education,DEPARTMENT FOR EDUCATION,09/08/2013,Grants,Academies Delivery Group,ST ANNES CATHOLIC PRIMARY SCHOOL,Public Sector,"Grants paid to organisations including agencies, arms length bodies and educational establishments",4000139698,"25,000"
Department for Education,DEPARTMENT FOR EDUCATION,09/08/2013,Grants,Academies Delivery Group,ST AIDANS CATHOLIC PRIAMRY SCHOOL,Public Sector,"Grants paid to organisations including agencies, arms length bodies and educational establishments",4000139711,"25,000"
Department for Education,DEPARTMENT FOR EDUCATION,09/08/2013,Grants,Academies Delivery Group,ENDERBY DANEMILL PRIMARY SCHOOL,Public Sector,"Grants paid to organisations including agencies, arms length bodies and educational establishments",4000139719,"25,000"
Department for Education,DEPARTMENT FOR EDUCATION,09/08/2013,Grants,Academies Delivery Group,RAWMARSH SANDHILL SCHOOL,Public Sector,"Grants paid to organisations including agencies, arms length bodies and educational establishments",4000139742,"40,000"
Department for Education,DEPARTMENT FOR EDUCATION,09/08/2013,Grants,Academies Delivery Group,SOMERSET COUNTY COUNCIL,Public Sector,"Grants paid to organisations including agencies, arms length bodies and educational establishments",4000139760,"75,000"
Department for Education,DEPARTMENT FOR EDUCATION,09/08/2013,Grants,Academies Delivery Group,ROBINHOOD PRIMARY SCHOOL,Public Sector,"Grants paid to organisations including agencies, arms length bodies and educational establishments",4000139787,"25,000"
Department for Education,DEPARTMENT FOR EDUCATION,09/08/2013,Grants,Academies Delivery Group,PENAIR SCHOOL,Public Sector,"Grants paid to organisations including agencies, arms length bodies and educational establishments",4000139804,"57,437"
Department for Education,DEPARTMENT FOR EDUCATION,09/08/2013,Grants,Academies Delivery Group,OASIS COMMUNITY LEARNING,Public Sector,"Grants paid to organisations including agencies, arms length bodies and educational establishments",4000139805,"65,000"
Department for Education,DEPARTMENT FOR EDUCATION,09/08/2013,Grants,Academies Delivery Group,GREENWOOD ACADEMIES TRUST,Public Sector,"Grants paid to organisations including agencies, arms length bodies and educational establishments",4000139809,"65,000"
Department for Education,DEPARTMENT FOR EDUCATION,09/08/2013,Grants,Academies Delivery Group,OUR LADY OF VICTORIES CATHOLIC PRIMARY SCHOOL,Public Sector,"Grants paid to organisations including agencies, arms length bodies and educational establishments",4000139819,"25,000"
Department for Education,DEPARTMENT FOR EDUCATION,09/08/2013,Operational Goods,System Reform Group,THE STATIONERY OFFICE LTD,Commercial,Learning and Development Materials,4000139835,320
Department for Education,DEPARTMENT FOR EDUCATION,09/08/2013,Grants,Academies Delivery Group,CHAPEL STREET COMMUNITY SCHOOLS TRUST,Public Sector,"Grants paid to organisations including agencies, arms length bodies and educational establishments",4000139842,"65,000"
Department for Education,DEPARTMENT FOR EDUCATION,09/08/2013,Grants,Academies Delivery Group,ORMISTON ACADEMIES TRUST,Public Sector,"Grants paid to organisations including agencies, arms length bodies and educational establishments",4000139846,"65,000"
Department for Education,DEPARTMENT FOR EDUCATION,12/08/2013,Grants,Academies Delivery Group,OASIS COMMUNITY LEARNING,Public Sector,"Grants paid to organisations including agencies, arms length bodies and educational establishments",4000139901,"50,000"
Department for Education,DEPARTMENT FOR EDUCATION,12/08/2013,Grants,Academies Delivery Group,GRIFFIN SCHOOLS TRUST,Public Sector,"Grants paid to organisations including agencies, arms length bodies and educational establishments",4000139984,"120,000"
Department for Education,DEPARTMENT FOR EDUCATION,12/08/2013,Travel,Free School Group,REDFERN TRAVEL LTD,Commercial,"Staff business travel including air, coach, ferry, rail and taxi",4000139985,"10,499"
Department for Education,DEPARTMENT FOR EDUCATION,12/08/2013,Travel,System Reform Group,REDFERN TRAVEL LTD,Commercial,"Staff business travel including air, coach, ferry, rail and taxi",4000139985,"2,352"
Department for Education,DEPARTMENT FOR EDUCATION,12/08/2013,Travel,Education Funding Group,REDFERN TRAVEL LTD,Commercial,"Staff business travel including air, coach, ferry, rail and taxi",4000139985,"4,226"
Department for Education,DEPARTMENT FOR EDUCATION,12/08/2013,Travel,System Reform Group,REDFERN TRAVEL LTD,Commercial,"Staff business travel including air, coach, ferry, rail and taxi",4000139985,"2,761"
Department for Education,DEPARTMENT FOR EDUCATION,12/08/2013,Travel,System Reform Group,REDFERN TRAVEL LTD,Commercial,"Staff business travel including air, coach, ferry, rail and taxi",4000139985,237
Department for Education,DEPARTMENT FOR EDUCATION,12/08/2013,Travel,System Reform Group,REDFERN TRAVEL LTD,Commercial,"Staff business travel including air, coach, ferry, rail and taxi",4000139985,"4,088"
Department for Education,DEPARTMENT FOR EDUCATION,12/08/2013,Travel,System Reform Group,REDFERN TRAVEL LTD,Commercial,"Staff business travel including air, coach, ferry, rail and taxi",4000139985,958
Department for Education,DEPARTMENT FOR EDUCATION,12/08/2013,Travel,System Reform Group,REDFERN TRAVEL LTD,Commercial,"Staff business travel including air, coach, ferry, rail and taxi",4000139985,372
Department for Education,DEPARTMENT FOR EDUCATION,12/08/2013,Travel,System Reform Group,REDFERN TRAVEL LTD,Commercial,"Staff business travel including air, coach, ferry, rail and taxi",4000139985,21
Department for Education,DEPARTMENT FOR EDUCATION,12/08/2013,Travel,Education Funding Group,REDFERN TRAVEL LTD,Commercial,"Staff business travel including air, coach, ferry, rail and taxi",4000139985,547
Department for Education,DEPARTMENT FOR EDUCATION,12/08/2013,Travel,Education Funding Group,REDFERN TRAVEL LTD,Commercial,"Staff business travel including air, coach, ferry, rail and taxi to attend training events",4000139985,0
Department for Education,DEPARTMENT FOR EDUCATION,12/08/2013,Travel,Education Funding Group,REDFERN TRAVEL LTD,Commercial,"Staff business travel including air, coach, ferry, rail and taxi",4000139985,"2,464"
Department for Education,DEPARTMENT FOR EDUCATION,12/08/2013,Travel,Infrastructure and Funding Directorate Support,REDFERN TRAVEL LTD,Commercial,"Staff business travel including air, coach, ferry, rail and taxi",4000139985,859
Department for Education,DEPARTMENT FOR EDUCATION,12/08/2013,Travel,Education Funding Group,REDFERN TRAVEL LTD,Commercial,"Staff business travel including air, coach, ferry, rail and taxi",4000139985,"2,455"
Department for Education,DEPARTMENT FOR EDUCATION,12/08/2013,Travel,Free School Group,REDFERN TRAVEL LTD,Commercial,"Staff business travel including air, coach, ferry, rail and taxi",4000139985,275
Department for Education,DEPARTMENT FOR EDUCATION,12/08/2013,Travel,Academies Delivery Group,REDFERN TRAVEL LTD,Commercial,"Staff business travel including air, coach, ferry, rail and taxi",4000139985,"12,837"
Department for Education,DEPARTMENT FOR EDUCATION,12/08/2013,Travel,Office of the Schools Commissioner Group,REDFERN TRAVEL LTD,Commercial,"Staff business travel including air, coach, ferry, rail and taxi",4000139985,"1,937"
Department for Education,DEPARTMENT FOR EDUCATION,12/08/2013,Travel,Academies Delivery Group,REDFERN TRAVEL LTD,Commercial,"Staff business travel including air, coach, ferry, rail and taxi",4000139985,138
Department for Education,DEPARTMENT FOR EDUCATION,12/08/2013,Travel,Academies Delivery Group,REDFERN TRAVEL LTD,Commercial,"Staff business travel including air, coach, ferry, rail and taxi",4000139985,"5,521"
Department for Education,DEPARTMENT FOR EDUCATION,12/08/2013,Travel,Academies Delivery Group,REDFERN TRAVEL LTD,Commercial,"Staff business travel including air, coach, ferry, rail and taxi",4000139985,"5,771"
Department for Education,DEPARTMENT FOR EDUCATION,12/08/2013,Travel,Academies Delivery Group,REDFERN TRAVEL LTD,Commercial,"Staff business travel including air, coach, ferry, rail and taxi",4000139985,"5,236"
Department for Education,DEPARTMENT FOR EDUCATION,12/08/2013,Travel,Office of the Schools Commissioner Group,REDFERN TRAVEL LTD,Commercial,"Staff business travel including air, coach, ferry, rail and taxi",4000139985,"1,309"
Department for Education,DEPARTMENT FOR EDUCATION,12/08/2013,Travel,Free School Group,REDFERN TRAVEL LTD,Commercial,"Staff business travel including air, coach, ferry, rail and taxi",4000139985,970
Department for Education,DEPARTMENT FOR EDUCATION,12/08/2013,Professional Services Consultancy and Contingent Labour,Free School Group,REDFERN TRAVEL LTD,Commercial,"Fees / expenses of professionals from the private sector such as auditors, accountants, lawyers, etc. engaged to provide advice or opinion on how to affect something",4000139985,0
Department for Education,DEPARTMENT FOR EDUCATION,12/08/2013,Travel,Free School Group,REDFERN TRAVEL LTD,Commercial,"Staff business travel including air, coach, ferry, rail and taxi",4000139985,765
Department for Education,DEPARTMENT FOR EDUCATION,12/08/2013,Travel,Free School Group,REDFERN TRAVEL LTD,Commercial,"Staff business travel including air, coach, ferry, rail and taxi",4000139985,"1,287"
Department for Education,DEPARTMENT FOR EDUCATION,12/08/2013,Travel,Free School Group,REDFERN TRAVEL LTD,Commercial,"Staff business travel including air, coach, ferry, rail and taxi",4000139985,484
Department for Education,DEPARTMENT FOR EDUCATION,12/08/2013,Travel,Education Funding Group,REDFERN TRAVEL LTD,Commercial,"Staff business travel including air, coach, ferry, rail and taxi",4000139985,136
Department for Education,DEPARTMENT FOR EDUCATION,12/08/2013,Travel,Infrastructure and Funding Directorate Support,REDFERN TRAVEL LTD,Commercial,"Staff business travel including air, coach, ferry, rail and taxi",4000139985,56
Department for Education,DEPARTMENT FOR EDUCATION,14/08/2013,Grants,Academies Delivery Group,ST MARTIN IN MENEAGE CP SCHOOL,Public Sector,"Grants paid to organisations including agencies, arms length bodies and educational establishments",4000140258,"25,000"
Department for Education,DEPARTMENT FOR EDUCATION,14/08/2013,Grants,Academies Delivery Group,HASELOR SCHOOL,Public Sector,"Grants paid to organisations including agencies, arms length bodies and educational establishments",4000140259,"25,000"
Department for Education,DEPARTMENT FOR EDUCATION,14/08/2013,Grants,Academies Delivery Group,HEATHLAND SCHOOL,Public Sector,"Grants paid to organisations including agencies, arms length bodies and educational establishments",4000140260,"25,000"
Department for Education,DEPARTMENT FOR EDUCATION,14/08/2013,Grants,Academies Delivery Group,GRADE RUAN C OF E SCHOOL,Public Sector,"Grants paid to organisations including agencies, arms length bodies and educational establishments",4000140261,"25,000"
Department for Education,DEPARTMENT FOR EDUCATION,14/08/2013,Grants,Academies Delivery Group,ST KEVERNE CP SCHOOL,Public Sector,"Grants paid to organisations including agencies, arms length bodies and educational establishments",4000140262,"25,000"
Department for Education,DEPARTMENT FOR EDUCATION,14/08/2013,Grants,Academies Delivery Group,CHRISTIAN MALFORD C OF E VC PRIMARY,Public Sector,"Grants paid to organisations including agencies, arms length bodies and educational establishments",4000140263,"25,000"
Department for Education,DEPARTMENT FOR EDUCATION,14/08/2013,Grants,Academies Delivery Group,ASH MANOR SCHOOL,Public Sector,"Grants paid to organisations including agencies, arms length bodies and educational establishments",4000140264,"25,000"
Department for Education,DEPARTMENT FOR EDUCATION,14/08/2013,Grants,Academies Delivery Group,ST GILES & ST GEORGES  PRIMARY SCHOOL,Public Sector,"Grants paid to organisations including agencies, arms length bodies and educational establishments",4000140265,"25,000"
Department for Education,DEPARTMENT FOR EDUCATION,14/08/2013,Grants,Academies Delivery Group,ST GEORGES C OF E PRIMARY ACADEMY,Public Sector,"Grants paid to organisations including agencies, arms length bodies and educational establishments",4000140266,"25,000"
Department for Education,DEPARTMENT FOR EDUCATION,14/08/2013,Grants,Academies Delivery Group,KENNINGTON PARK BRIDGE TO SCHOOL,Public Sector,"Grants paid to organisations including agencies, arms length bodies and educational establishments",4000140267,"50,000"
Department for Education,DEPARTMENT FOR EDUCATION,14/08/2013,Grants,Academies Delivery Group,CLEVES CROSS PRIMARY SCHOOL,Public Sector,"Grants paid to organisations including agencies, arms length bodies and educational establishments",4000140268,"25,000"
Department for Education,DEPARTMENT FOR EDUCATION,14/08/2013,Grants,Academies Delivery Group,PEAFIELD LANE PRIMARY & NURSERY SCHOOL,Public Sector,"Grants paid to organisations including agencies, arms length bodies and educational establishments",4000140269,"25,000"
Department for Education,DEPARTMENT FOR EDUCATION,14/08/2013,Grants,Academies Delivery Group,ST CHRISTOPHERS COFE MULTI ACADEMY TRUST,Public Sector,"Grants paid to organisations including agencies, arms length bodies and educational establishments",4000140270,"40,000"
Department for Education,DEPARTMENT FOR EDUCATION,14/08/2013,Grants,Academies Delivery Group,PONTEFRACT ACADAMIES TRUST,Public Sector,"Grants paid to organisations including agencies, arms length bodies and educational establishments",4000140271,"130,000"
Department for Education,DEPARTMENT FOR EDUCATION,14/08/2013,Grants,Academies Delivery Group,BANSTEAD INFANT SCHOOL,Public Sector,"Grants paid to organisations including agencies, arms length bodies and educational establishments",4000140275,"25,000"
Department for Education,DEPARTMENT FOR EDUCATION,14/08/2013,Grants,Academies Delivery Group,MANACCAN PRIMARY SCHOOL,Public Sector,"Grants paid to organisations including agencies, arms length bodies and educational establishments",4000140288,"25,000"
Department for Education,DEPARTMENT FOR EDUCATION,14/08/2013,Grants,Academies Delivery Group,UNITED LEARNING TRUST,Public Sector,"Grants paid to organisations including agencies, arms length bodies and educational establishments",4000140295,"300,000"
Department for Education,DEPARTMENT FOR EDUCATION,14/08/2013,Grants,Academies Delivery Group,BISHOP LUFFA SCHOOL,Public Sector,"Grants paid to organisations including agencies, arms length bodies and educational establishments",4000140300,"25,000"
Department for Education,DEPARTMENT FOR EDUCATION,14/08/2013,Grants,Academies Delivery Group,WARREN MEAD JUNIOR SCHOOL,Public Sector,"Grants paid to organisations including agencies, arms length bodies and educational establishments",4000140311,"25,000"
Department for Education,DEPARTMENT FOR EDUCATION,14/08/2013,Grants,Academies Delivery Group,ST MARYS ACADEMY TRUST,Public Sector,"Grants paid to organisations including agencies, arms length bodies and educational establishments",4000140324,"25,000"
Department for Education,DEPARTMENT FOR EDUCATION,14/08/2013,Grants,Academies Delivery Group,GREENWOOD ACADEMIES TRUST,Public Sector,"Grants paid to organisations including agencies, arms length bodies and educational establishments",4000140334,"25,000"
Department for Education,DEPARTMENT FOR EDUCATION,14/08/2013,Grants,Academies Delivery Group,NAVIGATE ACADEMY TRUST,Public Sector,"Grants paid to organisations including agencies, arms length bodies and educational establishments",4000140335,"50,000"
Department for Education,DEPARTMENT FOR EDUCATION,14/08/2013,Grants,Academies Delivery Group,COVERACK CP SCHOOL,Public Sector,"Grants paid to organisations including agencies, arms length bodies and educational establishments",4000140348,"25,000"
Department for Education,DEPARTMENT FOR EDUCATION,15/08/2013,Grants,Academies Delivery Group,REACH 2 LTD,Commercial,"Grants paid to organisations including agencies, arms length bodies and educational establishments",4000140385,"120,000"
Department for Education,DEPARTMENT FOR EDUCATION,15/08/2013,Grants,Academies Delivery Group,BRIDGWATER COLLEGE TRUST,Public Sector,"Grants paid to organisations including agencies, arms length bodies and educational establishments",4000140447,"98,300"
Department for Education,DEPARTMENT FOR EDUCATION,15/08/2013,Grants,Academies Delivery Group,EDUCATION CENTRAL MULTI ACADEMY TRUST,Public Sector,"Grants paid to organisations including agencies, arms length bodies and educational establishments",4000140475,"120,000"
Department for Education,DEPARTMENT FOR EDUCATION,15/08/2013,Grants,Academies Delivery Group,CARMEL COLLEGE,Public Sector,"Grants paid to organisations including agencies, arms length bodies and educational establishments",4000140486,"100,000"
Department for Education,DEPARTMENT FOR EDUCATION,16/08/2013,Operational Goods,Free School Group,SPECIALIST COMPUTER CENTRES PLC,Commercial,Learning and Development Materials,4000140642,"37,370"
Department for Education,DEPARTMENT FOR EDUCATION,21/08/2013,Grants,Office of the Schools Commissioner Group,BRISTOL CHURCH ACADEMIES TRUST,Public Sector,"Grants paid to organisations including agencies, arms length bodies and educational establishments",4000141195,"76,500"
Department for Education,DEPARTMENT FOR EDUCATION,23/08/2013,Grants,Free School Group,UTC BLUEWATER,Public Sector,"Grants paid to organisations including agencies, arms length bodies and educational establishments",4000141381,"30,000"
Department for Education,DEPARTMENT FOR EDUCATION,23/08/2013,Professional Services Other,Academies Delivery Group,VEREDUS C/O CAPITA RESOURCING LTD,Commercial,"Fees / expenses of professionals from the private sector, for example to implement advice or changes",4000141395,"76,353"
Department for Education,DEPARTMENT FOR EDUCATION,23/08/2013,Grants,Academies Delivery Group,OASIS COMMUNITY LEARNING,Public Sector,"Grants paid to organisations including agencies, arms length bodies and educational establishments",4000141403,"25,000"
Department for Education,DEPARTMENT FOR EDUCATION,23/08/2013,Grants,Academies Delivery Group,ORMISTON ACADEMIES TRUST,Public Sector,"Grants paid to organisations including agencies, arms length bodies and educational establishments",4000141425,"90,000"
Department for Education,DEPARTMENT FOR EDUCATION,23/08/2013,Grants,Academies Delivery Group,PORTSMOUTH CITY COUNCIL,Public Sector,"Grants paid to organisations including agencies, arms length bodies and educational establishments",4000141436,"25,000"
Department for Education,DEPARTMENT FOR EDUCATION,23/08/2013,Grants,Academies Delivery Group,WAKEFIELD DIOCESAN ACADEMIES TRUST,Public Sector,"Grants paid to organisations including agencies, arms length bodies and educational establishments",4000141460,"65,000"
Department for Education,DEPARTMENT FOR EDUCATION,23/08/2013,Grants,Academies Delivery Group,VERYAN CHURCH OF ENGLAND PRIMARY SCHOOL,Public Sector,"Grants paid to organisations including agencies, arms length bodies and educational establishments",4000141477,"25,000"
Department for Education,DEPARTMENT FOR EDUCATION,23/08/2013,Grants,Academies Delivery Group,LADOCK CHURCH OF ENGLAND VA PRIMARY SCHOOL,Public Sector,"Grants paid to organisations including agencies, arms length bodies and educational establishments",4000141478,"25,000"
Department for Education,DEPARTMENT FOR EDUCATION,23/08/2013,Grants,Academies Delivery Group,OUR CO OPERATIVE ACADEMIES TRUST,Public Sector,"Grants paid to organisations including agencies, arms length bodies and educational establishments",4000141479,"90,000"
Department for Education,DEPARTMENT FOR EDUCATION,23/08/2013,Grants,Academies Delivery Group,SUMMERCOURT CP SCHOOL,Public Sector,"Grants paid to organisations including agencies, arms length bodies and educational establishments",4000141480,"25,000"
Department for Education,DEPARTMENT FOR EDUCATION,23/08/2013,Grants,Academies Delivery Group,BISHOP BRONESCOMBE COFE VA PRIMARY SCHOOL,Public Sector,"Grants paid to organisations including agencies, arms length bodies and educational establishments",4000141481,"25,000"
Department for Education,DEPARTMENT FOR EDUCATION,23/08/2013,Grants,Academies Delivery Group,GRAMPOUND ROAD VILLAGE COFE (VA)PRIMARY SCHOOL,Public Sector,"Grants paid to organisations including agencies, arms length bodies and educational establishments",4000141493,"25,000"
Department for Education,DEPARTMENT FOR EDUCATION,23/08/2013,Grants,Academies Delivery Group,GRAMPOUND WITH CREED C OF E PRIMARY SCHOOL,Public Sector,"Grants paid to organisations including agencies, arms length bodies and educational establishments",4000141494,"25,000"
Department for Education,DEPARTMENT FOR EDUCATION,23/08/2013,Grants,Academies Delivery Group,ST PATRICKS CATHOLIC PRIMARY & NURSERY SCHOOL,Public Sector,"Grants paid to organisations including agencies, arms length bodies and educational establishments",4000141495,"25,000"
Department for Education,DEPARTMENT FOR EDUCATION,23/08/2013,Grants,Academies Delivery Group,ST JOSEPHS CATHOLIC PRIMARY & NURSERY SCHOOL,Public Sector,"Grants paid to organisations including agencies, arms length bodies and educational establishments",4000141496,"25,000"
Department for Education,DEPARTMENT FOR EDUCATION,23/08/2013,Grants,Academies Delivery Group,ST JOSEPHS CATHOLIC PRIMARY SCHOOL,Public Sector,"Grants paid to organisations including agencies, arms length bodies and educational establishments",4000141497,"25,000"
Department for Education,DEPARTMENT FOR EDUCATION,23/08/2013,Grants,Academies Delivery Group,RAWMARSH SANDHILL SCHOOL,Public Sector,"Grants paid to organisations including agencies, arms length bodies and educational establishments",4000141498,"25,000"
Department for Education,DEPARTMENT FOR EDUCATION,23/08/2013,Grants,Academies Delivery Group,HOLY TRINITY CATHOLIC PRIMARY SCHOOL,Public Sector,"Grants paid to organisations including agencies, arms length bodies and educational establishments",4000141513,"25,000"
Department for Education,DEPARTMENT FOR EDUCATION,23/08/2013,Grants,Academies Delivery Group,NEW ROAD PRIMARY SCHOOL,Public Sector,"Grants paid to organisations including agencies, arms length bodies and educational establishments",4000141514,"25,000"
Department for Education,DEPARTMENT FOR EDUCATION,23/08/2013,Grants,Academies Delivery Group,ST PHILIP NERI WITH ST BEDE CATHOLIC PRIMARY SCHOOL,Public Sector,"Grants paid to organisations including agencies, arms length bodies and educational establishments",4000141515,"25,000"
Department for Education,DEPARTMENT FOR EDUCATION,23/08/2013,Grants,Academies Delivery Group,WHITEFRIARS SCHOOL,Public Sector,"Grants paid to organisations including agencies, arms length bodies and educational establishments",4000141516,"25,000"
Department for Education,DEPARTMENT FOR EDUCATION,23/08/2013,Grants,Academies Delivery Group,WHEATFIELD PRIMARY SCHOOL,Public Sector,"Grants paid to organisations including agencies, arms length bodies and educational establishments",4000141517,"25,000"
Department for Education,DEPARTMENT FOR EDUCATION,23/08/2013,Grants,Academies Delivery Group,TRENANCE LEARNING ACADEMY TRUST,Public Sector,"Grants paid to organisations including agencies, arms length bodies and educational establishments",4000141519,"65,000"
Department for Education,DEPARTMENT FOR EDUCATION,23/08/2013,Grants,Academies Delivery Group,LEICESTER DIOCESAN BOARD OG EDUCATION,Public Sector,"Grants paid to organisations including agencies, arms length bodies and educational establishments",4000141524,"25,000"
Department for Education,DEPARTMENT FOR EDUCATION,23/08/2013,Programme costs,Academies Delivery Group,NAVIGANT CONSULTING,Commercial,Funding to deliver policies (excluding consultancy) paid to third parties via a service delivery contract,4000141536,"34,078"
Department for Education,DEPARTMENT FOR EDUCATION,27/08/2013,Grants,Academies Delivery Group,OASIS COMMUNITY LEARNING,Public Sector,"Grants paid to organisations including agencies, arms length bodies and educational establishments",4000141537,"25,000"
Department for Education,DEPARTMENT FOR EDUCATION,27/08/2013,Grants,Academies Delivery Group,HABERDASHERS ASKES CRAYFORD ACADEMY,Public Sector,"Grants paid to organisations including agencies, arms length bodies and educational establishments",4000141543,"32,500"
Department for Education,DEPARTMENT FOR EDUCATION,27/08/2013,Grants,Academies Delivery Group,LEIGH JUNIOR INFANT & NURSERY SCHOOL,Public Sector,"Grants paid to organisations including agencies, arms length bodies and educational establishments",4000141587,"25,000"
Department for Education,DEPARTMENT FOR EDUCATION,27/08/2013,Grants,Academies Delivery Group,OAKWOOD COLLEGE,Public Sector,"Grants paid to organisations including agencies, arms length bodies and educational establishments",4000141606,"25,000"
Department for Education,DEPARTMENT FOR EDUCATION,27/08/2013,Grants,Academies Delivery Group,SHERWOOD PARK PRIMARY SCHOOL,Public Sector,"Grants paid to organisations including agencies, arms length bodies and educational establishments",4000141610,"25,000"
Department for Education,DEPARTMENT FOR EDUCATION,27/08/2013,Grants,Academies Delivery Group,BRIGHT FUTURES EDUCATIONAL TRUST,Public Sector,"Grants paid to organisations including agencies, arms length bodies and educational establishments",4000141640,"115,000"
Department for Education,DEPARTMENT FOR EDUCATION,27/08/2013,Grants,Academies Delivery Group,SNEINTON ST STEPHENS C OF E PRIMARY SCHOOL,Public Sector,"Grants paid to organisations including agencies, arms length bodies and educational establishments",4000141643,"65,000"
Department for Education,DEPARTMENT FOR EDUCATION,27/08/2013,Grants,Academies Delivery Group,WOODARD ACADAMIES TRUST,Public Sector,"Grants paid to organisations including agencies, arms length bodies and educational establishments",4000141659,"65,186"
Department for Education,DEPARTMENT FOR EDUCATION,28/08/2013,Grants,Academies Delivery Group,THE HAYESBROOK SCHOOL,Public Sector,"Grants paid to organisations including agencies, arms length bodies and educational establishments",4000141696,"135,417"
Department for Education,DEPARTMENT FOR EDUCATION,28/08/2013,Professional Services Consultancy and Contingent Labour,Academies Delivery Group,VEREDUS C/O CAPITA RESOURCING LTD,Commercial,"Fees / expenses of professionals from the private sector such as auditors, accountants, lawyers, etc. engaged to provide advice or opinion on how to affect something",4000141723,"75,176"
Department for Education,DEPARTMENT FOR EDUCATION,28/08/2013,Grants,Academies Delivery Group,UNIVERSITY OF CHESTER ACADEMIES TRUST,Public Sector,"Grants paid to organisations including agencies, arms length bodies and educational establishments",4000141748,"120,000"
Department for Education,DEPARTMENT FOR EDUCATION,29/08/2013,Professional Services Other,Academies Delivery Group,VEREDUS C/O CAPITA RESOURCING LTD,Commercial,"Fees / expenses of professionals from the private sector, for example to implement advice or changes",4000141887,"62,366"
Department for Education,DEPARTMENT FOR EDUCATION,30/08/2013,Grants,Academies Delivery Group,NORTHERN EDUCATION TRUST,Public Sector,"Grants paid to organisations including agencies, arms length bodies and educational establishments",4000141963,"100,000"
Department for Education,DEPARTMENT FOR EDUCATION,30/08/2013,Grants,Free School Group,THE ROSEDALE HEWENS ACADEMIES TRUST,Public Sector,"Grants paid to organisations including agencies, arms length bodies and educational establishments",4000141964,"90,000"
Department for Education,DEPARTMENT FOR EDUCATION,30/08/2013,Grants,Free School Group,LUTTERWORTH COLLEGE,Public Sector,"Grants paid to organisations including agencies, arms length bodies and educational establishments",4000141995,"90,000"
Department for Education,DEPARTMENT FOR EDUCATION,30/08/2013,Grants,Academies Delivery Group,SOLENT ACADEMIES TRUST,Public Sector,"Grants paid to organisations including agencies, arms length bodies and educational establishments",4000142001,"60,000"
Department for Education,DEPARTMENT FOR EDUCATION,30/08/2013,Grants,Academies Delivery Group,HILLCREST PRIMARY SCHOOL,Public Sector,"Grants paid to organisations including agencies, arms length bodies and educational establishments",4000142008,"40,000"
Department for Education,DEPARTMENT FOR EDUCATION,30/08/2013,Grants,Free School Group,KENTON SCHOOLS ACADEMY TRUST,Public Sector,"Grants paid to organisations including agencies, arms length bodies and educational establishments",4000142009,"90,000"
Department for Education,DEPARTMENT FOR EDUCATION,30/08/2013,Grants,Free School Group,KNUTSFORD ACADEMY TRUST,Public Sector,"Grants paid to organisations including agencies, arms length bodies and educational establishments",4000142010,"90,000"
Department for Education,DEPARTMENT FOR EDUCATION,30/08/2013,Grants,Free School Group,WEST NOTTINGHAMSHIRE EDUCATIONAL TRUST,Public Sector,"Grants paid to organisations including agencies, arms length bodies and educational establishments",4000142011,"90,000"
Department for Education,DEPARTMENT FOR EDUCATION,30/08/2013,Grants,Free School Group,MANCHESTER CREATIVE STUDIO,Public Sector,"Grants paid to organisations including agencies, arms length bodies and educational establishments",4000142012,"90,000"
Department for Education,DEPARTMENT FOR EDUCATION,30/08/2013,Grants,Free School Group,BATH STUDIO SCHOOL,Public Sector,"Grants paid to organisations including agencies, arms length bodies and educational establishments",4000142014,"90,000"
Department for Education,DEPARTMENT FOR EDUCATION,30/08/2013,Grants,Academies Delivery Group,MANCHESTER COLLEGE EDUCATION TRUST,Public Sector,"Grants paid to organisations including agencies, arms length bodies and educational establishments",4000142015,"30,000"
Department for Education,DEPARTMENT FOR EDUCATION,30/08/2013,Grants,Free School Group,ASPIRATIONS ACADEMIES TRUST,Public Sector,"Grants paid to organisations including agencies, arms length bodies and educational establishments",4000142016,"90,000"
Department for Education,DEPARTMENT FOR EDUCATION,30/08/2013,Grants,Free School Group,WARRINGTON COLLEGIATE EDUCATION TRUST,Public Sector,"Grants paid to organisations including agencies, arms length bodies and educational establishments",4000142023,"90,000"
Department for Education,DEPARTMENT FOR EDUCATION,30/08/2013,Grants,Academies Delivery Group,DAVID ROSS EDUCATION TRUST,Public Sector,"Grants paid to organisations including agencies, arms length bodies and educational establishments",4000142035,"40,000"
Department for Education,DEPARTMENT FOR EDUCATION,30/08/2013,Grants,Free School Group,EAST LONDON UTC LTD,Commercial,"Grants paid to organisations including agencies, arms length bodies and educational establishments",4000142050,"30,000"
Department for Education,DEPARTMENT FOR EDUCATION,30/08/2013,Grants,Academies Delivery Group,NOTLEY HIGH SCHOOL & BRAINTREE SIXTH FORM,Public Sector,"Grants paid to organisations including agencies, arms length bodies and educational establishments",4000142060,"50,000"
Department for Education,DEPARTMENT FOR EDUCATION,30/08/2013,Grants,Academies Delivery Group,ACADEMY TRANSFORMATION TRUST,Public Sector,"Grants paid to organisations including agencies, arms length bodies and educational establishments",4000142066,"43,196"
Department for Education,DEPARTMENT FOR EDUCATION,30/08/2013,Grants,Free School Group,FULHAM BOYS SCHOOL LTD,Public Sector,"Grants paid to organisations including agencies, arms length bodies and educational establishments",4000142074,"50,000"
Department for Education,DEPARTMENT FOR EDUCATION,07/08/2013,ICT,Legal Advisers Office,VODAFONE CORPORATE,Commercial,Telecoms Facilities and Services,4000139428,45
Department for Education,DEPARTMENT FOR EDUCATION,09/08/2013,Operational Goods,Legal Advisers Office,THE STATIONERY OFFICE LTD,Commercial,Learning and Development Materials,4000139835,325
Department for Education,DEPARTMENT FOR EDUCATION,12/08/2013,Travel,Legal Advisers Office,REDFERN TRAVEL LTD,Commercial,"Staff business travel including air, coach, ferry, rail and taxi",4000139985,663
Department for Education,NATIONAL COLLEGE FOR SCHOOL LEADERSHIP AGENCY,02/08/2013,Grants,Supply Directorate,HUNTINGDON PRIMARY SCHOOL,Public Sector,Grants to third sector organisations / not for profit organisations,4000138899,"10,000"
Department for Education,NATIONAL COLLEGE FOR SCHOOL LEADERSHIP AGENCY,02/08/2013,Grants,Teaching Schools Directorate,HUNTINGDON PRIMARY SCHOOL,Public Sector,"Grants paid to organisations including agencies, arms length bodies and educational establishments",4000138899,"50,000"
Department for Education,NATIONAL COLLEGE FOR SCHOOL LEADERSHIP AGENCY,02/08/2013,Grants,Teaching Schools Directorate,BISHOP LUFFA SCHOOL,Public Sector,"Grants paid to organisations including agencies, arms length bodies and educational establishments",4000138900,"69,208"
Department for Education,NATIONAL COLLEGE FOR SCHOOL LEADERSHIP AGENCY,02/08/2013,Grants,Teaching Schools Directorate,ST THOMAS MORE CATHOLIC SCHOOL,Public Sector,"Grants paid to organisations including agencies, arms length bodies and educational establishments",4000138901,"73,000"
Department for Education,NATIONAL COLLEGE FOR SCHOOL LEADERSHIP AGENCY,02/08/2013,Grants,Teaching Schools Directorate,JOHN JAMIESON SCHOOL,Public Sector,"Grants paid to organisations including agencies, arms length bodies and educational establishments",4000138902,"40,000"
Department for Education,NATIONAL COLLEGE FOR SCHOOL LEADERSHIP AGENCY,02/08/2013,Grants,Teaching Schools Directorate,PERSEID SCHOOL,Public Sector,"Grants paid to organisations including agencies, arms length bodies and educational establishments",4000138910,"33,000"
Department for Education,NATIONAL COLLEGE FOR SCHOOL LEADERSHIP AGENCY,02/08/2013,Programme costs,Supply Directorate,NETWORK FOR BLACK PROFESSIONALS LTD,Commercial,Funding to deliver policies (excluding consultancy) paid to third parties via a service delivery contract,4000138920,"25,300"
Department for Education,NATIONAL COLLEGE FOR SCHOOL LEADERSHIP AGENCY,02/08/2013,Grants,Teaching Schools Directorate,PALLISTER PARK PRIMARY SCHOOL,Public Sector,"Grants paid to organisations including agencies, arms length bodies and educational establishments",4000138925,"50,000"
Department for Education,NATIONAL COLLEGE FOR SCHOOL LEADERSHIP AGENCY,02/08/2013,Grants,Teaching Schools Directorate,BITTERNE PARK SCHOOL TS ACC,Public Sector,"Grants paid to organisations including agencies, arms length bodies and educational establishments",4000138929,"33,000"
Department for Education,NATIONAL COLLEGE FOR SCHOOL LEADERSHIP AGENCY,02/08/2013,Grants,Teaching Schools Directorate,WOODLAND SCHOOL PARTNERSHIP,Public Sector,"Grants paid to organisations including agencies, arms length bodies and educational establishments",4000138933,"33,000"
Department for Education,NATIONAL COLLEGE FOR SCHOOL LEADERSHIP AGENCY,02/08/2013,Grants,Teaching Schools Directorate,ROBERT BLOOMFIELD ACADEMY TS ACCOUNT,Public Sector,"Grants paid to organisations including agencies, arms length bodies and educational establishments",4000138942,"50,000"
Department for Education,NATIONAL COLLEGE FOR SCHOOL LEADERSHIP AGENCY,02/08/2013,Grants,Teaching Schools Directorate,ST THOMAS MORE CATHOLIC SCHOOL TS ACCOUNT,Public Sector,"Grants paid to organisations including agencies, arms length bodies and educational establishments",4000138943,"40,000"
Department for Education,NATIONAL COLLEGE FOR SCHOOL LEADERSHIP AGENCY,02/08/2013,Grants,Supply Directorate,BOVINGDON PRIMARY ACADEMY TS ACCOUNT,Public Sector,Grants to third sector organisations / not for profit organisations,4000138944,"10,000"
Department for Education,NATIONAL COLLEGE FOR SCHOOL LEADERSHIP AGENCY,02/08/2013,Grants,Teaching Schools Directorate,BOVINGDON PRIMARY ACADEMY TS ACCOUNT,Public Sector,"Grants paid to organisations including agencies, arms length bodies and educational establishments",4000138944,"40,000"
Department for Education,NATIONAL COLLEGE FOR SCHOOL LEADERSHIP AGENCY,02/08/2013,Grants,Teaching Schools Directorate,NORTHAMPTON SCHOOL FOR BOYS,Public Sector,"Grants paid to organisations including agencies, arms length bodies and educational establishments",4000138947,"50,000"
Department for Education,NATIONAL COLLEGE FOR SCHOOL LEADERSHIP AGENCY,02/08/2013,Grants,Teaching Schools Directorate,AYLESBURY GRAMMAR SCHOOL TS ACCOUNT,Public Sector,"Grants paid to organisations including agencies, arms length bodies and educational establishments",4000138951,"50,000"
Department for Education,NATIONAL COLLEGE FOR SCHOOL LEADERSHIP AGENCY,02/08/2013,Grants,Teaching Schools Directorate,GEORGE SPENCER ACADEMY,Public Sector,"Grants paid to organisations including agencies, arms length bodies and educational establishments",4000138957,"60,000"
Department for Education,NATIONAL COLLEGE FOR SCHOOL LEADERSHIP AGENCY,02/08/2013,Grants,Teaching Schools Directorate,SOUTHFIELDS ACADEMY TS ACCOUNT,Public Sector,"Grants paid to organisations including agencies, arms length bodies and educational establishments",4000138963,"40,000"
Department for Education,NATIONAL COLLEGE FOR SCHOOL LEADERSHIP AGENCY,02/08/2013,Grants,Teaching Schools Directorate,HARRIS CITY ACADEMY,Public Sector,"Grants paid to organisations including agencies, arms length bodies and educational establishments",4000138969,"40,000"
Department for Education,NATIONAL COLLEGE FOR SCHOOL LEADERSHIP AGENCY,02/08/2013,Grants,Supply Directorate,SEVEN KINGS HIGH SCHOOL TS ACCOUNT,Public Sector,Grants to third sector organisations / not for profit organisations,4000138980,"10,000"
Department for Education,NATIONAL COLLEGE FOR SCHOOL LEADERSHIP AGENCY,02/08/2013,Grants,Teaching Schools Directorate,SEVEN KINGS HIGH SCHOOL TS ACCOUNT,Public Sector,"Grants paid to organisations including agencies, arms length bodies and educational establishments",4000138980,"40,000"
Department for Education,NATIONAL COLLEGE FOR SCHOOL LEADERSHIP AGENCY,02/08/2013,Grants,Teaching Schools Directorate,THE HAYESBROOK SCHOOL TS ACCOUNT,Public Sector,"Grants paid to organisations including agencies, arms length bodies and educational establishments",4000138981,"40,000"
Department for Education,NATIONAL COLLEGE FOR SCHOOL LEADERSHIP AGENCY,02/08/2013,Grants,Teaching Schools Directorate,BELLEVIEW PRIMARY SCHOOL,Public Sector,"Grants paid to organisations including agencies, arms length bodies and educational establishments",4000138985,"60,000"
Department for Education,NATIONAL COLLEGE FOR SCHOOL LEADERSHIP AGENCY,02/08/2013,Grants,Teaching Schools Directorate,ALTRINCHAM GRAMMAR SCHOOL FOR GIRLS,Public Sector,"Grants paid to organisations including agencies, arms length bodies and educational establishments",4000138989,"40,000"
Department for Education,NATIONAL COLLEGE FOR SCHOOL LEADERSHIP AGENCY,02/08/2013,Grants,Teaching Schools Directorate,DENBIGH SCHOOL,Public Sector,"Grants paid to organisations including agencies, arms length bodies and educational establishments",4000138990,"40,000"
Department for Education,NATIONAL COLLEGE FOR SCHOOL LEADERSHIP AGENCY,02/08/2013,Grants,Teaching Schools Directorate,THE BRIDGE SCHOOL,Public Sector,"Grants paid to organisations including agencies, arms length bodies and educational establishments",4000138992,"50,000"
Department for Education,NATIONAL COLLEGE FOR SCHOOL LEADERSHIP AGENCY,02/08/2013,Grants,Teaching Schools Directorate,BROOKE WESTON CTC,Public Sector,"Grants paid to organisations including agencies, arms length bodies and educational establishments",4000138999,"40,000"
Department for Education,NATIONAL COLLEGE FOR SCHOOL LEADERSHIP AGENCY,02/08/2013,Grants,Teaching Schools Directorate,ASHTON ON MERSEY SCHOOL,Public Sector,"Grants paid to organisations including agencies, arms length bodies and educational establishments",4000139002,"44,000"
Department for Education,NATIONAL COLLEGE FOR SCHOOL LEADERSHIP AGENCY,02/08/2013,Grants,Teaching Schools Directorate,MARY ROSE SCHOOL,Public Sector,"Grants paid to organisations including agencies, arms length bodies and educational establishments",4000139005,"50,000"
Department for Education,NATIONAL COLLEGE FOR SCHOOL LEADERSHIP AGENCY,02/08/2013,Grants,Teaching Schools Directorate,RAVENS WOOD SCHOOL,Public Sector,"Grants paid to organisations including agencies, arms length bodies and educational establishments",4000139021,"40,000"
Department for Education,NATIONAL COLLEGE FOR SCHOOL LEADERSHIP AGENCY,02/08/2013,Grants,Supply Directorate,WEST HILL SCHOOL,Public Sector,Grants to third sector organisations / not for profit organisations,4000139024,"10,000"
Department for Education,NATIONAL COLLEGE FOR SCHOOL LEADERSHIP AGENCY,02/08/2013,Grants,Teaching Schools Directorate,WEST HILL SCHOOL,Public Sector,"Grants paid to organisations including agencies, arms length bodies and educational establishments",4000139024,"40,000"
Department for Education,NATIONAL COLLEGE FOR SCHOOL LEADERSHIP AGENCY,02/08/2013,Grants,Supply Directorate,TWO MILE ASH SCHOOL TS,Public Sector,Grants to third sector organisations / not for profit organisations,4000139033,"10,000"
Department for Education,NATIONAL COLLEGE FOR SCHOOL LEADERSHIP AGENCY,02/08/2013,Grants,Teaching Schools Directorate,TWO MILE ASH SCHOOL TS,Public Sector,"Grants paid to organisations including agencies, arms length bodies and educational establishments",4000139033,"83,000"
Department for Education,NATIONAL COLLEGE FOR SCHOOL LEADERSHIP AGENCY,02/08/2013,Grants,Teaching Schools Directorate,CLAPTON GIRLS ACADEMY,Public Sector,"Grants paid to organisations including agencies, arms length bodies and educational establishments",4000139039,"33,000"
Department for Education,NATIONAL COLLEGE FOR SCHOOL LEADERSHIP AGENCY,02/08/2013,Grants,Teaching Schools Directorate,CLAREMONT PRIMARY SCHOOL,Public Sector,"Grants paid to organisations including agencies, arms length bodies and educational establishments",4000139040,"40,000"
Department for Education,NATIONAL COLLEGE FOR SCHOOL LEADERSHIP AGENCY,02/08/2013,Grants,Teaching Schools Directorate,BRAYS SCHOOL,Public Sector,"Grants paid to organisations including agencies, arms length bodies and educational establishments",4000139041,"50,000"
Department for Education,NATIONAL COLLEGE FOR SCHOOL LEADERSHIP AGENCY,02/08/2013,Grants,Teaching Schools Directorate,HAWTHORNS SCHOOL,Public Sector,"Grants paid to organisations including agencies, arms length bodies and educational establishments",4000139049,"50,000"
Department for Education,NATIONAL COLLEGE FOR SCHOOL LEADERSHIP AGENCY,02/08/2013,Grants,Teaching Schools Directorate,THOMAS TELFORD SCHOOL,Public Sector,"Grants paid to organisations including agencies, arms length bodies and educational establishments",4000139055,"86,000"
Department for Education,NATIONAL COLLEGE FOR SCHOOL LEADERSHIP AGENCY,02/08/2013,Grants,Teaching Schools Directorate,ASKWITH COMMUNITY PRIMARY SCHOOL,Public Sector,"Grants paid to organisations including agencies, arms length bodies and educational establishments",4000139056,"73,000"
Department for Education,NATIONAL COLLEGE FOR SCHOOL LEADERSHIP AGENCY,02/08/2013,Grants,Supply Directorate,JOHN CABOT FEDERATION,Public Sector,Grants to third sector organisations / not for profit organisations,4000139060,"1,000"
Department for Education,NATIONAL COLLEGE FOR SCHOOL LEADERSHIP AGENCY,02/08/2013,Grants,Teaching Schools Directorate,JOHN CABOT FEDERATION,Public Sector,"Grants paid to organisations including agencies, arms length bodies and educational establishments",4000139060,"40,000"
Department for Education,NATIONAL COLLEGE FOR SCHOOL LEADERSHIP AGENCY,02/08/2013,Grants,Teaching Schools Directorate,THE ROCHESTER GRAMMAR SCHOOL,Public Sector,"Grants paid to organisations including agencies, arms length bodies and educational establishments",4000139064,"50,000"
Department for Education,NATIONAL COLLEGE FOR SCHOOL LEADERSHIP AGENCY,02/08/2013,Grants,Teaching Schools Directorate,VALENTINES HIGH SCHOOL,Public Sector,"Grants paid to organisations including agencies, arms length bodies and educational establishments",4000139066,"40,000"
Department for Education,NATIONAL COLLEGE FOR SCHOOL LEADERSHIP AGENCY,05/08/2013,Programme costs,Membership Directorate,THE NEC GROUP,Commercial,Funding to deliver policies (excluding consultancy) paid to third parties via a service delivery contract,4000139077,"150,735"
Department for Education,NATIONAL COLLEGE FOR SCHOOL LEADERSHIP AGENCY,05/08/2013,Programme costs,Membership Directorate,CREATIVE CHOICE,Public Sector,Funding to deliver policies (excluding consultancy) paid to third parties via a service delivery contract,4000139113,"16,405"
Department for Education,NATIONAL COLLEGE FOR SCHOOL LEADERSHIP AGENCY,05/08/2013,Grants,Supply Directorate,ST PETERS CATHOLIC PRIMARY SCHOOL TS ACCOUNT ONLY,Public Sector,Grants to third sector organisations / not for profit organisations,4000139119,"13,000"
Department for Education,NATIONAL COLLEGE FOR SCHOOL LEADERSHIP AGENCY,05/08/2013,Grants,Teaching Schools Directorate,ST PETERS CATHOLIC PRIMARY SCHOOL TS ACCOUNT ONLY,Public Sector,"Grants paid to organisations including agencies, arms length bodies and educational establishments",4000139119,"50,000"
Department for Education,NATIONAL COLLEGE FOR SCHOOL LEADERSHIP AGENCY,05/08/2013,Professional Services Other,Design and Development Directorate,ACHIEVEMENT FOR ALL 3AS LTD,VCS,"Fees / expenses of professionals from the private sector, for example to implement advice or changes",4000139166,"1,800"
Department for Education,NATIONAL COLLEGE FOR SCHOOL LEADERSHIP AGENCY,05/08/2013,Programme costs,School Business Management and Efficiency,SERCO LTD,Commercial,Funding to deliver policies (excluding consultancy) paid to third parties via a service delivery contract,4000139216,"28,625"
Department for Education,NATIONAL COLLEGE FOR SCHOOL LEADERSHIP AGENCY,06/08/2013,Programme costs,Early Years,LONDON METROPOLITAN UNIVERSITY,Public Sector,Funding to deliver policies (excluding consultancy) paid to third parties via a service delivery contract,4000139352,"26,612"
Department for Education,NATIONAL COLLEGE FOR SCHOOL LEADERSHIP AGENCY,06/08/2013,Programme costs,Early Years,LANCASTER UNIVERSITY,Public Sector,Funding to deliver policies (excluding consultancy) paid to third parties via a service delivery contract,4000139388,"45,074"
